Service Delivery Area(T),Service Delivery Team(T),ExpenditureGroup(T),Account(T),Supplier Name(T),Trans Date,Amount
Adult Social Care,ASC Prevention & Enablement,Supplies & Services,Mobile Phones,EE LTD EQUIPMENT ,20/01/2023,142.00
Adult Social Care,ASC Prevention & Enablement,Supplies & Services,Mobile Phones,EE LTD EQUIPMENT ,19/01/2023,142.00
Adult Social Care,"Commissioning, Procurement & Brokerage",Third Party Payments,Interpreters Fees,EXPRESS INTERPRETING & TRANSLATION,18/01/2023,"7,140.60"
Adult Social Care,"Commissioning, Procurement & Brokerage",Supplies & Services,Other Grants (Expenses),TELFORD & WREKIN CVS,31/01/2023,"90,000.00"
Adult Social Care,"Commissioning, Procurement & Brokerage",Supplies & Services,Other Grants (Expenses),THE STROKE ASSOCIATION,18/01/2023,"11,499.44"
Adult Social Care,"Commissioning, Procurement & Brokerage",Supplies & Services,Other Grants (Expenses),TELFORD & WREKIN CVS,09/01/2023,"18,500.00"
Adult Social Care,"Commissioning, Procurement & Brokerage",Supplies & Services,Grants To Voluntary Organis,Doro Care Uk,18/01/2023,"5,217.17"
Adult Social Care,"Commissioning, Procurement & Brokerage",Supplies & Services,Grants To Voluntary Organis,Doro Care Uk,09/01/2023,"5,217.17"
Adult Social Care,"Commissioning, Procurement & Brokerage",Supplies & Services,Grants To Voluntary Organis,Doro Care Uk,09/01/2023,"3,815.12"
Adult Social Care,"Commissioning, Procurement & Brokerage",Supplies & Services,Grants To Voluntary Organis,Doro Care Uk,09/01/2023,"2,249.59"
Adult Social Care,"Commissioning, Procurement & Brokerage",Supplies & Services,Grants To Voluntary Organis,Doro Care Uk,09/01/2023,"5,217.17"
Adult Social Care,"Commissioning, Procurement & Brokerage",Supplies & Services,Other Grants (Expenses),Doro Care Uk,18/01/2023,"3,815.12"
Adult Social Care,"Commissioning, Procurement & Brokerage",Supplies & Services,Other Grants (Expenses),Doro Care Uk,18/01/2023,"2,205.28"
Adult Social Care,"Commissioning, Procurement & Brokerage",Supplies & Services,Other Grants (Expenses),Doro Care Uk,09/01/2023,"3,815.12"
Adult Social Care,"Commissioning, Procurement & Brokerage",Supplies & Services,Other Grants (Expenses),Doro Care Uk,09/01/2023,"2,405.50"
Adult Social Care,Community Social Work & Adult Safeguarding,Supplies & Services,Legal Expenses,HM Courts and Tribunal Service,31/01/2023,-485.00
Adult Social Care,Community Social Work & Adult Safeguarding,Employees,Staff Training,UNIVERSITY OF WOLVERHAMPTON ,27/01/2023,"2,665.00"
Adult Social Care,Community Social Work & Adult Safeguarding,Supplies & Services,Medical Consultants Fees,REDACTED PERSONAL INFORMATION,25/01/2023,723.00
Adult Social Care,Community Social Work (Principal Social Worker),Transfer Payments,Block Voids,First Choice Housing Association LTD,12/01/2023,"4,124.60"
Adult Social Care,Community Social Work (Principal Social Worker),Transfer Payments,Block Voids,First Choice Housing Association LTD,12/01/2023,"1,237.38"
Adult Social Care,My Options,Supplies & Services,Artistes Fees,Casey�s Cordingley Hall,24/01/2023,833.33
Adult Social Care,My Options,Employees,Staff Training,SHROPSHIRE COUNCIL ,23/01/2023,108.00
Adult Social Care,My Options,Premises-Related Expenditure,Clean Mats & Toilet Requisites,PHS GROUP,10/01/2023,125.22
Adult Social Care,My Options,Supplies & Services,Laundry & Towel Hire,PHS GROUP,24/01/2023,122.00
Adult Social Care,My Options,Premises-Related Expenditure,Hire Of Rooms,All Saints Wellington,10/01/2023,180.00
Adult Social Care,My Options,Premises-Related Expenditure,Hire Of Rooms,Dawley Baptist Church,05/01/2023,165.00
Adult Social Care,My Options,Premises-Related Expenditure,Hire Of Rooms,Dawley Baptist Church,31/01/2023,286.00
Adult Social Care,My Options,Employees,Agency Supply Costs,Nurse Plus and Carer Plus Limited,03/01/2023,783.88
Adult Social Care,My Options,Employees,Agency Supply Costs,Nurse Plus and Carer Plus Limited,03/01/2023,946.80
Adult Social Care,My Options,Employees,Agency Supply Costs,Nurse Plus and Carer Plus Limited,17/01/2023,882.90
Adult Social Care,My Options,Employees,Agency Supply Costs,Nurse Plus and Carer Plus Limited,10/01/2023,"1,398.00"
Adult Social Care,My Options,Employees,Agency Supply Costs,Nurse Plus and Carer Plus Limited,31/01/2023,"1,785.58"
Adult Social Care,My Options,Employees,Agency Supply Costs,Safehands Recruitment,24/01/2023,840.00
Adult Social Care,My Options,Employees,Agency Supply Costs,Safehands Recruitment,03/01/2023,"1,201.75"
Adult Social Care,My Options,Employees,Agency Supply Costs,Safehands Recruitment,17/01/2023,"1,179.50"
Adult Social Care,My Options,Employees,Agency Supply Costs,Safehands Recruitment,10/01/2023,"2,023.00"
Adult Social Care,My Options,Employees,Agency Supply Costs,Safehands Recruitment,23/01/2023,399.50
Adult Social Care,My Options,Employees,Agency Supply Costs,Safehands Recruitment,31/01/2023,"1,937.00"
Adult Social Care,My Options,Premises-Related Expenditure,R&M -Buildings DLO Charge,A E Chapman & Co Ltd,23/01/2023,108.00
Adult Social Care,My Options,Premises-Related Expenditure,R&M -Buildings DLO Charge,A E Chapman & Co Ltd,23/01/2023,168.00
Adult Social Care,My Options,Premises-Related Expenditure,Clean Mats & Toilet Requisites,BERWICK CARE EQUIPMENT LTD,03/01/2023,102.40
Adult Social Care,My Options,Premises-Related Expenditure,Clean Mats & Toilet Requisites,BERWICK CARE EQUIPMENT LTD,03/01/2023,397.97
Adult Social Care,My Options,Premises-Related Expenditure,Clean Mats & Toilet Requisites,BERWICK CARE EQUIPMENT LTD,17/01/2023,334.73
Adult Social Care,My Options,Premises-Related Expenditure,Clean Mats & Toilet Requisites,BERWICK CARE EQUIPMENT LTD,31/01/2023,298.45
Adult Social Care,My Options,Supplies & Services,Equipment - Purchase,MEDACO,24/01/2023,702.00
Adult Social Care,My Options,Supplies & Services,Equipment - Purchase,MEDACO,17/01/2023,138.00
Adult Social Care,My Options,Employees,Agency Supply Costs,Acton Banks Limited,24/01/2023,311.35
Adult Social Care,My Options,Employees,Agency Supply Costs,Acton Banks Limited,24/01/2023,311.35
Adult Social Care,My Options,Employees,Agency Supply Costs,Acton Banks Limited,24/01/2023,311.35
Adult Social Care,My Options,Employees,Agency Supply Costs,Acton Banks Limited,24/01/2023,311.35
Adult Social Care,My Options,Employees,Agency Supply Costs,Acton Banks Limited,24/01/2023,311.35
Adult Social Care,My Options,Employees,Agency Supply Costs,Acton Banks Limited,24/01/2023,231.60
Adult Social Care,My Options,Employees,Agency Supply Costs,Acton Banks Limited,24/01/2023,215.55
Adult Social Care,My Options,Employees,Agency Supply Costs,Acton Banks Limited,24/01/2023,311.35
Adult Social Care,My Options,Employees,Agency Supply Costs,Acton Banks Limited,24/01/2023,311.35
Adult Social Care,My Options,Employees,Agency Supply Costs,Acton Banks Limited,24/01/2023,311.35
Adult Social Care,My Options,Employees,Agency Supply Costs,Acton Banks Limited,24/01/2023,231.60
Adult Social Care,My Options,Employees,Agency Supply Costs,Acton Banks Limited,24/01/2023,311.35
Adult Social Care,My Options,Employees,Agency Supply Costs,Acton Banks Limited,24/01/2023,311.35
Adult Social Care,My Options,Employees,Agency Supply Costs,Acton Banks Limited,24/01/2023,311.35
Adult Social Care,My Options,Employees,Agency Supply Costs,Acton Banks Limited,24/01/2023,231.60
Adult Social Care,My Options,Employees,Agency Supply Costs,Acton Banks Limited,24/01/2023,311.35
Adult Social Care,My Options,Employees,Agency Supply Costs,Acton Banks Limited,24/01/2023,311.35
Adult Social Care,My Options,Employees,Agency Supply Costs,Acton Banks Limited,24/01/2023,311.35
Adult Social Care,My Options,Employees,Agency Supply Costs,Acton Banks Limited,24/01/2023,311.35
Adult Social Care,My Options,Employees,Agency Supply Costs,Acton Banks Limited,24/01/2023,311.35
Adult Social Care,My Options,Employees,Agency Supply Costs,Acton Banks Limited,24/01/2023,167.65
Adult Social Care,My Options,Employees,Agency Supply Costs,Acton Banks Limited,24/01/2023,155.68
Adult Social Care,My Options,Employees,Agency Supply Costs,Acton Banks Limited,24/01/2023,311.35
Adult Social Care,My Options,Employees,Agency Supply Costs,Acton Banks Limited,24/01/2023,311.35
Adult Social Care,My Options,Employees,Agency Supply Costs,Acton Banks Limited,24/01/2023,231.60
Adult Social Care,My Options,Employees,Agency Supply Costs,Acton Banks Limited,24/01/2023,311.35
Adult Social Care,My Options,Employees,Agency Supply Costs,Acton Banks Limited,24/01/2023,295.30
Adult Social Care,My Options,Employees,Agency Supply Costs,Acton Banks Limited,24/01/2023,231.60
Adult Social Care,My Options,Employees,Agency Supply Costs,Acton Banks Limited,24/01/2023,227.53
Adult Social Care,My Options,Employees,Agency Supply Costs,Acton Banks Limited,24/01/2023,227.53
Adult Social Care,My Options,Employees,Agency Supply Costs,Acton Banks Limited,24/01/2023,311.35
Adult Social Care,My Options,Employees,Agency Supply Costs,Acton Banks Limited,24/01/2023,231.60
Adult Social Care,My Options,Employees,Agency Supply Costs,Acton Banks Limited,24/01/2023,231.60
Adult Social Care,My Options,Employees,Agency Supply Costs,Acton Banks Limited,24/01/2023,231.60
Adult Social Care,My Options,Employees,Agency Supply Costs,Acton Banks Limited,24/01/2023,231.60
Adult Social Care,My Options,Employees,Agency Supply Costs,Acton Banks Limited,24/01/2023,311.35
Adult Social Care,My Options,Employees,Agency Supply Costs,JN Recruitment,10/01/2023,"1,002.38"
Adult Social Care,My Options,Employees,Agency Supply Costs,JN Recruitment,10/01/2023,882.75
Adult Social Care,My Options,Employees,Agency Supply Costs,JN Recruitment,10/01/2023,498.75
Adult Social Care,My Options,Employees,Agency Supply Costs,JN Recruitment,10/01/2023,"1,111.01"
Adult Social Care,My Options,Employees,Agency Supply Costs,JN Recruitment,31/01/2023,763.13
Adult Social Care,My Options,Employees,Agency Supply Costs,JN Recruitment,31/01/2023,786.50
Adult Social Care,My Options,Employees,Agency Supply Costs,JN Recruitment,31/01/2023,671.00
Adult Social Care,My Options,Employees,Agency Supply Costs,Nurse Plus and Carer Plus Limited,24/01/2023,"4,615.47"
Adult Social Care,My Options,Employees,Agency Supply Costs,Nurse Plus and Carer Plus Limited,31/01/2023,150.50
Adult Social Care,My Options,Employees,Agency Supply Costs,Nurse Plus and Carer Plus Limited,31/01/2023,"1,439.83"
Adult Social Care,My Options,Employees,Agency Supply Costs,Nurse Plus and Carer Plus Limited,31/01/2023,"1,551.80"
Adult Social Care,My Options,Employees,Agency Supply Costs,Nurse Plus and Carer Plus Limited,10/01/2023,811.56
Adult Social Care,My Options,Employees,Agency Supply Costs,Nurse Plus and Carer Plus Limited,10/01/2023,224.00
Adult Social Care,My Options,Employees,Agency Supply Costs,Nurse Plus and Carer Plus Limited,10/01/2023,"1,443.00"
Adult Social Care,My Options,Employees,Agency Supply Costs,Nurse Plus and Carer Plus Limited,10/01/2023,"2,816.25"
Adult Social Care,My Options,Employees,Agency Supply Costs,Nurse Plus and Carer Plus Limited,31/01/2023,"4,872.44"
Adult Social Care,My Options,Employees,Agency Supply Costs,Nurse Plus and Carer Plus Limited,31/01/2023,817.45
Adult Social Care,My Options,Employees,Agency Supply Costs,Nurse Plus and Carer Plus Limited,17/01/2023,587.41
Adult Social Care,My Options,Employees,Agency Supply Costs,Nurse Plus and Carer Plus Limited,17/01/2023,691.80
Adult Social Care,My Options,Employees,Agency Supply Costs,Nurse Plus and Carer Plus Limited,17/01/2023,"1,887.95"
Adult Social Care,My Options,Employees,Agency Supply Costs,Nurse Plus and Carer Plus Limited,17/01/2023,458.40
Adult Social Care,My Options,Employees,Agency Supply Costs,Nurse Plus and Carer Plus Limited,10/01/2023,"5,938.44"
Adult Social Care,My Options,Employees,Agency Supply Costs,Nurse Plus and Carer Plus Limited,10/01/2023,"1,233.38"
Adult Social Care,My Options,Employees,Agency Supply Costs,Nurse Plus and Carer Plus Limited,03/01/2023,"2,239.80"
Adult Social Care,My Options,Employees,Agency Supply Costs,Nurse Plus and Carer Plus Limited,03/01/2023,"1,291.30"
Adult Social Care,My Options,Employees,Agency Supply Costs,Nurse Plus and Carer Plus Limited,03/01/2023,"5,588.38"
Adult Social Care,My Options,Employees,Agency Supply Costs,Nurse Plus and Carer Plus Limited,03/01/2023,"1,182.13"
Adult Social Care,My Options,Employees,Agency Supply Costs,Nurse Plus and Carer Plus Limited,03/01/2023,585.00
Adult Social Care,My Options,Employees,Agency Supply Costs,Nurse Plus and Carer Plus Limited,17/01/2023,"4,653.74"
Adult Social Care,My Options,Employees,Agency Supply Costs,Nurse Plus and Carer Plus Limited,24/01/2023,678.79
Adult Social Care,My Options,Employees,Agency Supply Costs,Nurse Plus and Carer Plus Limited,24/01/2023,"1,388.83"
Adult Social Care,My Options,Employees,Agency Supply Costs,Nurse Plus and Carer Plus Limited,24/01/2023,"1,278.97"
Adult Social Care,My Options,Employees,Agency Supply Costs,Nurse Plus and Carer Plus Limited,24/01/2023,"1,432.47"
Adult Social Care,My Options,Employees,Agency Supply Costs,Nurse Plus and Carer Plus Limited,03/01/2023,"5,311.49"
Adult Social Care,My Options,Employees,Agency Supply Costs,Nurse Plus and Carer Plus Limited,03/01/2023,"1,551.37"
Adult Social Care,My Options,Employees,Agency Supply Costs,Safehands Recruitment,10/01/2023,570.25
Adult Social Care,My Options,Employees,Agency Supply Costs,Safehands Recruitment,31/01/2023,903.00
Adult Social Care,My Options,Employees,Agency Supply Costs,Safehands Recruitment,31/01/2023,"1,370.02"
Adult Social Care,My Options,Employees,Agency Supply Costs,Safehands Recruitment,31/01/2023,252.00
Adult Social Care,My Options,Employees,Agency Supply Costs,Safehands Recruitment,31/01/2023,257.61
Adult Social Care,My Options,Employees,Agency Supply Costs,Safehands Recruitment,31/01/2023,380.00
Adult Social Care,My Options,Employees,Agency Supply Costs,Safehands Recruitment,17/01/2023,"1,023.00"
Adult Social Care,My Options,Employees,Agency Supply Costs,Safehands Recruitment,17/01/2023,"1,255.50"
Adult Social Care,My Options,Employees,Agency Supply Costs,Safehands Recruitment,17/01/2023,649.50
Adult Social Care,My Options,Employees,Agency Supply Costs,Safehands Recruitment,10/01/2023,"4,362.81"
Adult Social Care,My Options,Employees,Agency Supply Costs,Safehands Recruitment,10/01/2023,728.00
Adult Social Care,My Options,Employees,Agency Supply Costs,Safehands Recruitment,10/01/2023,"1,019.50"
Adult Social Care,My Options,Employees,Agency Supply Costs,Safehands Recruitment,03/01/2023,254.19
Adult Social Care,My Options,Employees,Agency Supply Costs,Safehands Recruitment,03/01/2023,"2,167.54"
Adult Social Care,My Options,Employees,Agency Supply Costs,Safehands Recruitment,03/01/2023,646.00
Adult Social Care,My Options,Employees,Agency Supply Costs,Safehands Recruitment,03/01/2023,456.00
Adult Social Care,My Options,Employees,Agency Supply Costs,Safehands Recruitment,17/01/2023,465.50
Adult Social Care,My Options,Employees,Agency Supply Costs,Safehands Recruitment,17/01/2023,"2,545.11"
Adult Social Care,My Options,Employees,Agency Supply Costs,Safehands Recruitment,03/01/2023,200.00
Adult Social Care,My Options,Employees,Agency Supply Costs,Safehands Recruitment,03/01/2023,275.50
Adult Social Care,My Options,Employees,Agency Supply Costs,Safehands Recruitment,03/01/2023,"4,682.47"
Adult Social Care,My Options,Employees,Agency Supply Costs,Safehands Recruitment,03/01/2023,535.23
Adult Social Care,My Options,Employees,Agency Supply Costs,Safehands Recruitment,03/01/2023,221.00
Adult Social Care,My Options,Employees,Agency Supply Costs,Safehands Recruitment,03/01/2023,764.50
Adult Social Care,My Options,Employees,Agency Supply Costs,Safehands Recruitment,24/01/2023,238.00
Adult Social Care,My Options,Employees,Agency Supply Costs,Safehands Recruitment,24/01/2023,847.00
Adult Social Care,My Options,Employees,Agency Supply Costs,Safehands Recruitment,24/01/2023,275.50
Adult Social Care,My Options,Employees,Agency Supply Costs,Safehands Recruitment,24/01/2023,133.00
Adult Social Care,My Options,Employees,Agency Supply Costs,Safehands Recruitment,24/01/2023,788.00
Adult Social Care,My Options,Employees,Agency Supply Costs,Safehands Recruitment,24/01/2023,"2,582.25"
Adult Social Care,My Options,Supplies & Services,Computer Software (Maint),Access UK Ltd,06/01/2023,644.40
Adult Social Care,My Options,Supplies & Services,Computer Software (Maint),Access UK Ltd,10/01/2023,644.40
Adult Social Care,My Options,Supplies & Services,Computer Software (Maint),Access UK Ltd,10/01/2023,644.40
Adult Social Care,My Options,Supplies & Services,Other Travel,REDACTED PERSONAL INFORMATION,27/01/2023,540.00
Adult Social Care,My Options,Supplies & Services,Adult Flexi / Day Care,REDACTED PERSONAL INFORMATION,27/01/2023,"1,602.00"
Adult Social Care,My Options,Supplies & Services,Respite Care,REDACTED PERSONAL INFORMATION,10/01/2023,"1,559.24"
Adult Social Care,My Options,Supplies & Services,Respite Care,REDACTED PERSONAL INFORMATION,27/01/2023,106.80
Adult Social Care,My Options,Supplies & Services,Respite Care,REDACTED PERSONAL INFORMATION,10/01/2023,953.08
Adult Social Care,My Options,Supplies & Services,Respite Care,REDACTEDPERSONAL INFORMATION,10/01/2023,"1,372.40"
Adult Social Care,My Options,Supplies & Services,Adult Flexi / Day Care,REDACTED PERSONAL INFORMATION,09/01/2023,267.00
Adult Social Care,My Options,Supplies & Services,Adult Flexi / Day Care,REDACTED PERSONAL INFORMATION,09/01/2023,160.20
Adult Social Care,My Options,Supplies & Services,Adult Flexi / Day Care,REDACTED PERSONAL INFORMATION,09/01/2023,427.20
Adult Social Care,My Options,Supplies & Services,Adult Flexi / Day Care,REDACTED PERSONAL INFORMATION,09/01/2023,267.00
Adult Social Care,My Options,Employees,Agency Supply Costs,Safehands Recruitment,17/01/2023,"10,687.44"
Adult Social Care,My Options,Employees,Agency Supply Costs,Safehands Recruitment,10/01/2023,"1,047.00"
Adult Social Care,My Options,Employees,Agency Supply Costs,Safehands Recruitment,10/01/2023,"12,566.50"
Adult Social Care,My Options,Employees,Agency Supply Costs,Safehands Recruitment,31/01/2023,996.00
Adult Social Care,My Options,Employees,Agency Supply Costs,Safehands Recruitment,24/01/2023,722.50
Adult Social Care,My Options,Employees,Agency Supply Costs,Safehands Recruitment,03/01/2023,962.00
Adult Social Care,My Options,Employees,Agency Supply Costs,Safehands Recruitment,03/01/2023,"14,112.90"
Adult Social Care,My Options,Employees,Agency Supply Costs,Safehands Recruitment,03/01/2023,792.00
Adult Social Care,My Options,Employees,Agency Supply Costs,Safehands Recruitment,03/01/2023,"12,276.86"
Adult Social Care,My Options,Employees,Agency Supply Costs,Safehands Recruitment,17/01/2023,381.00
Adult Social Care,My Options,Capital Expenditure,Payments to Contractor,W and P Building Contractors Ltd,31/01/2023,"40,947.46"
Adult Social Care,Prevention & Independence - Older Adults & Disability,Supplies & Services,Aids & Appliances,SUPREME HOME CARE,09/01/2023,"1,746.00"
Adult Social Care,Prevention & Independence - Older Adults & Disability,Supplies & Services,Aids & Appliances,SUPREME HOME CARE,09/01/2023,"17,460.00"
Adult Social Care,Prevention & Independence - Older Adults & Disability,Supplies & Services,Aids & Appliances,SUPREME HOME CARE,09/01/2023,"1,746.00"
Adult Social Care,Prevention & Independence - Older Adults & Disability,Supplies & Services,Aids & Appliances,SUPREME HOME CARE,09/01/2023,"1,746.00"
Adult Social Care,Prevention & Independence - Older Adults & Disability,Supplies & Services,Aids & Appliances,SUPREME HOME CARE,12/01/2023,"1,746.00"
Adult Social Care,Prevention & Independence - Older Adults & Disability,Supplies & Services,Aids & Appliances,SUPREME HOME CARE,12/01/2023,"-17,460.00"
Adult Social Care,Prevention & Independence - Older Adults & Disability,Premises-Related Expenditure,Bed & Breakfast Charges,A Hanover Group,30/01/2023,390.00
Adult Social Care,Prevention & Independence - Older Adults & Disability,Transport-Related Expenditure,Taxi Costs,Cartello Ambulance,11/01/2023,131.25
Adult Social Care,Prevention & Independence - Older Adults & Disability,Transport-Related Expenditure,Taxi Costs,Cartello Ambulance,11/01/2023,157.50
Adult Social Care,Prevention & Independence - Older Adults & Disability,Transport-Related Expenditure,Taxi Costs,Telford and Wrekin Community Enterprise LTD,11/01/2023,108.00
Adult Social Care,Prevention & Independence - Older Adults & Disability,Transport-Related Expenditure,Taxi Costs,Telford and Wrekin Community Enterprise LTD,25/01/2023,473.00
Adult Social Care,Prevention & Independence - Older Adults & Disability,Transport-Related Expenditure,Taxi Costs,Telford Taxi Hire Limited,25/01/2023,800.00
Adult Social Care,Prevention & Independence - Older Adults & Disability,Transport-Related Expenditure,Taxi Costs,Telford Taxi Hire Limited,25/01/2023,800.00
Adult Social Care,Prevention & Independence - Older Adults & Disability,Supplies & Services,Aids & Appliances,Easylink,16/01/2023,403.10
Adult Social Care,Prevention & Independence - Older Adults & Disability,Supplies & Services,Aids & Appliances,Easylink,16/01/2023,321.30
Adult Social Care,Prevention & Independence - Older Adults & Disability,Supplies & Services,Aids & Appliances,Easylink,16/01/2023,157.10
Adult Social Care,Prevention & Independence - Older Adults & Disability,Supplies & Services,Aids & Appliances,Medequip,20/01/2023,204.75
Adult Social Care,Prevention & Independence - Older Adults & Disability,Supplies & Services,Aids & Appliances,Medequip,06/01/2023,256.42
Adult Social Care,Prevention & Independence - Older Adults & Disability,Supplies & Services,Aids & Appliances,Medequip,26/01/2023,261.32
Adult Social Care,Prevention & Independence - Older Adults & Disability,Supplies & Services,Aids & Appliances,Oysta technology Ltd,06/01/2023,403.50
Adult Social Care,Prevention & Independence - Older Adults & Disability,Supplies & Services,Aids & Appliances,Oysta technology Ltd,06/01/2023,416.95
Adult Social Care,Prevention & Independence - Older Adults & Disability,Supplies & Services,Aids & Appliances,Oysta technology Ltd,06/01/2023,416.95
Adult Social Care,Prevention & Independence - Older Adults & Disability,Supplies & Services,Aids & Appliances,Oysta technology Ltd,06/01/2023,451.21
Adult Social Care,Prevention & Independence - Older Adults & Disability,Supplies & Services,Aids & Appliances,Oysta technology Ltd,06/01/2023,443.85
Adult Social Care,Prevention & Independence - Older Adults & Disability,Supplies & Services,Aids & Appliances,Oysta technology Ltd,06/01/2023,416.95
Adult Social Care,Prevention & Independence - Older Adults & Disability,Supplies & Services,Aids & Appliances,Oysta technology Ltd,06/01/2023,452.17
Adult Social Care,Prevention & Independence - Older Adults & Disability,Supplies & Services,Aids & Appliances,Ravencourt Ltd,25/01/2023,"2,838.50"
Adult Social Care,Prevention & Independence - Older Adults & Disability,Supplies & Services,Aids & Appliances,SARABEC LIMITED,17/01/2023,407.00
Adult Social Care,Prevention & Independence - Older Adults & Disability,Supplies & Services,Aids & Appliances,SARABEC LIMITED,17/01/2023,349.36
Adult Social Care,Prevention & Independence - Older Adults & Disability,Supplies & Services,Aids & Appliances,SARABEC LIMITED,17/01/2023,419.94
Adult Social Care,Prevention & Independence - Older Adults & Disability,Supplies & Services,Aids & Appliances,CEFNDY ENTERPRISES HEALTHCARE,05/01/2023,120.17
Adult Social Care,Prevention & Independence - Older Adults & Disability,Supplies & Services,Aids & Appliances,CEFNDY ENTERPRISES HEALTHCARE,20/01/2023,124.99
Adult Social Care,Prevention & Independence - Older Adults & Disability,Supplies & Services,Equipment - Hire,Closomat Limited,03/01/2023,190.00
Adult Social Care,Prevention & Independence - Older Adults & Disability,Supplies & Services,Equipment - Repair,Closomat Limited,25/01/2023,190.00
Adult Social Care,Prevention & Independence - Older Adults & Disability,Supplies & Services,Books,National Back Pain Association,06/01/2023,120.00
Adult Social Care,Prevention & Independence - Older Adults & Disability,Supplies & Services,Aids & Appliances,Nottingham Rehab Ltd,19/01/2023,854.85
Adult Social Care,Prevention & Independence - Older Adults & Disability,Supplies & Services,Aids & Appliances,Nottingham Rehab Ltd,04/01/2023,"3,032.00"
Adult Social Care,Prevention & Independence - Older Adults & Disability,Supplies & Services,Aids & Appliances,OSPREY HEALTHCARE LTD,13/01/2023,192.00
Adult Social Care,Prevention & Independence - Older Adults & Disability,Supplies & Services,Aids & Appliances,OSPREY HEALTHCARE LTD,13/01/2023,151.80
Adult Social Care,Prevention & Independence - Older Adults & Disability,Supplies & Services,Aids & Appliances,OSPREY HEALTHCARE LTD,25/01/2023,204.00
Adult Social Care,Prevention & Independence - Older Adults & Disability,Supplies & Services,Aids & Appliances,OSPREY HEALTHCARE LTD,25/01/2023,518.00
Adult Social Care,Prevention & Independence - Older Adults & Disability,Supplies & Services,Aids & Appliances,OSPREY HEALTHCARE LTD,24/01/2023,"2,145.40"
Adult Social Care,Prevention & Independence - Older Adults & Disability,Supplies & Services,Aids & Appliances,PRISM MEDICAL WESTHOLME DIVISION,20/01/2023,164.46
Adult Social Care,Prevention & Independence - Older Adults & Disability,Supplies & Services,Aids & Appliances,PRISM MEDICAL WESTHOLME DIVISION,03/01/2023,150.23
Adult Social Care,Prevention & Independence - Older Adults & Disability,Supplies & Services,Aids & Appliances,PRISM MEDICAL WESTHOLME DIVISION,12/01/2023,177.91
Adult Social Care,Prevention & Independence - Older Adults & Disability,Supplies & Services,Aids & Appliances,STANNAH LIFT SERVICES LTD,12/01/2023,478.39
Adult Social Care,Prevention & Independence - Older Adults & Disability,Supplies & Services,Equipment - Repair,STANNAH LIFT SERVICES LTD,20/01/2023,"1,036.42"
Adult Social Care,Prevention & Independence - Older Adults & Disability,Supplies & Services,Equipment - Repair,STANNAH LIFT SERVICES LTD,20/01/2023,"1,248.00"
Adult Social Care,Prevention & Independence - Older Adults & Disability,Supplies & Services,Equipment - Repair,STANNAH LIFT SERVICES LTD,20/01/2023,467.52
Adult Social Care,Prevention & Independence - Older Adults & Disability,Supplies & Services,Equipment - Repair,STANNAH LIFT SERVICES LTD,20/01/2023,"2,869.99"
Adult Social Care,Prevention & Independence - Older Adults & Disability,Supplies & Services,Mobile Phones,EE LTD EQUIPMENT ,20/01/2023,142.00
Adult Social Care,Prevention & Independence - Older Adults & Disability,Employees,Agency Supply Costs,Reed Talent Solutions Ltd,11/01/2023,"3,600.00"
Adult Social Care,Prevention & Independence - Older Adults & Disability,Employees,Agency Supply Costs,Reed Talent Solutions Ltd,11/01/2023,135.90
Adult Social Care,Prevention & Independence - Older Adults & Disability,Employees,Agency Supply Costs,Reed Talent Solutions Ltd,11/01/2023,"3,960.00"
Adult Social Care,Prevention & Independence - Older Adults & Disability,Employees,Agency Supply Costs,Reed Talent Solutions Ltd,11/01/2023,"3,960.00"
Adult Social Care,Prevention & Independence - Older Adults & Disability,Employees,Agency Supply Costs,Reed Talent Solutions Ltd,11/01/2023,"3,600.00"
Adult Social Care,Prevention & Independence - Older Adults & Disability,Employees,Agency Supply Costs,Reed Talent Solutions Ltd,11/01/2023,"3,600.00"
Adult Social Care,Prevention & Independence - Older Adults & Disability,Employees,Agency Supply Costs,Reed Talent Solutions Ltd,25/01/2023,"3,600.00"
Adult Social Care,Prevention & Independence - Older Adults & Disability,Employees,Agency Supply Costs,Reed Talent Solutions Ltd,25/01/2023,143.37
Adult Social Care,Prevention & Independence - Older Adults & Disability,Employees,Agency Supply Costs,Reed Talent Solutions Ltd,25/01/2023,"4,680.00"
Adult Social Care,Prevention & Independence - Older Adults & Disability,Employees,Agency Supply Costs,Reed Talent Solutions Ltd,30/01/2023,346.05
Adult Social Care,Prevention & Independence - Older Adults & Disability,Employees,Agency Supply Costs,Reed Talent Solutions Ltd,30/01/2023,"3,600.00"
Adult Social Care,Prevention & Independence - Older Adults & Disability,Employees,Agency Supply Costs,Reed Talent Solutions Ltd,11/01/2023,135.49
Adult Social Care,Prevention & Independence - Older Adults & Disability,Employees,Agency Supply Costs,Reed Talent Solutions Ltd,19/01/2023,"3,960.00"
Adult Social Care,Prevention & Independence - Older Adults & Disability,Employees,Agency Supply Costs,Reed Talent Solutions Ltd,19/01/2023,"3,240.00"
Adult Social Care,Prevention & Independence - Older Adults & Disability,Employees,Agency Supply Costs,Reed Talent Solutions Ltd,19/01/2023,143.37
Adult Social Care,Prevention & Independence - Older Adults & Disability,Employees,Agency Supply Costs,Reed Talent Solutions Ltd,19/01/2023,"1,440.00"
Adult Social Care,Prevention & Independence - Older Adults & Disability,Employees,Agency Supply Costs,Reed Talent Solutions Ltd,19/01/2023,"2,160.00"
Adult Social Care,Service Improvement & Efficiency,Supplies & Services,Systems Procurement,Prepaid Financial Services Limited,11/01/2023,596.82
Adult Social Care,Service Improvement & Efficiency,Employees,Staff Training,escalla,20/01/2023,199.00
Children�s Safeguarding & Family Support,Child Protection & Family Support,Supplies & Services,Grants To Voluntary Organis,YMCA,31/01/2023,"19,876.40"
Children�s Safeguarding & Family Support,Child Protection & Family Support,Supplies & Services,Comp Software (Purch / Hire),PHOENIX SOFTWARE LTD,17/01/2023,150.00
Children�s Safeguarding & Family Support,Child Protection & Family Support,Supplies & Services,Comp Software (Purch / Hire),PHOENIX SOFTWARE LTD,20/01/2023,150.00
Children�s Safeguarding & Family Support,Child Protection & Family Support,Supplies & Services,Mobile Phones,EE LTD EQUIPMENT ,20/01/2023,142.00
Children�s Safeguarding & Family Support,Child Protection & Family Support,Supplies & Services,Mobile Phones,EE LTD EQUIPMENT ,20/01/2023,142.00
Children�s Safeguarding & Family Support,Child Protection & Family Support,Employees,Staff Training,SHROPSHIRE COUNCIL ,23/01/2023,125.00
Children�s Safeguarding & Family Support,Child Protection & Family Support,Supplies & Services,Mobile Phones,EE LTD EQUIPMENT ,05/01/2023,142.00
Children�s Safeguarding & Family Support,Child Protection & Family Support,Employees,Staff Training,Strengthening Practice,23/01/2023,"1,650.00"
Children�s Safeguarding & Family Support,Child Protection & Family Support,Employees,Staff Training,ACAS,31/01/2023,"1,800.00"
Children�s Safeguarding & Family Support,Child Protection & Family Support,Employees,Staff Training,Collective Space Limited,31/01/2023,"1,800.00"
Children�s Safeguarding & Family Support,Child Protection & Family Support,Employees,Staff Training,Collective Space Limited,31/01/2023,238.25
Children�s Safeguarding & Family Support,Child Protection & Family Support,Supplies & Services,Events,Telford Balloons,31/01/2023,180.50
Children�s Safeguarding & Family Support,Child Protection & Family Support,Premises-Related Expenditure,Hire Of Rooms,Mercure Telford Centre Hotel,18/01/2023,"1,144.50"
Children�s Safeguarding & Family Support,Child Protection & Family Support,Supplies & Services,Comp Software (Purch / Hire),PHOENIX SOFTWARE LTD,17/01/2023,150.00
Children�s Safeguarding & Family Support,Child Protection & Family Support,Supplies & Services,Other Grants (Expenses),NHS Shropshire Telford & Wrekin ICB QOC Receivables ,31/01/2023,"48,000.00"
Children�s Safeguarding & Family Support,Family Connect & Childrens Centres,Employees,Training Expenses,DEPARTMENT FOR WORK & PENSIONS,25/01/2023,369.92
Children�s Safeguarding & Family Support,Family Connect & Childrens Centres,Premises-Related Expenditure,R&M -Building Other,GRANVILLE CONSTRUCTION & MAINTENANCE LTD,25/01/2023,168.45
Children�s Safeguarding & Family Support,Family Connect & Childrens Centres,Premises-Related Expenditure,R&M -Building Other,GRANVILLE CONSTRUCTION & MAINTENANCE LTD,25/01/2023,220.95
Children�s Safeguarding & Family Support,Family Connect & Childrens Centres,Premises-Related Expenditure,Hire Of Rooms,MEETING POINT TRUST LTD,18/01/2023,205.00
Children�s Safeguarding & Family Support,Family Connect & Childrens Centres,Employees,Childcare Provision,CHILDCARE SOS,10/01/2023,144.00
Children�s Safeguarding & Family Support,Family Connect & Childrens Centres,Premises-Related Expenditure,Hire Of Rooms,MEETING POINT TRUST LTD,18/01/2023,205.00
Children�s Safeguarding & Family Support,Family Connect & Childrens Centres,Premises-Related Expenditure,Hire Of Rooms,KETLEY PARISH COUNCIL,18/01/2023,270.00
Children�s Safeguarding & Family Support,Family Connect & Childrens Centres,Premises-Related Expenditure,Hire Of Rooms,MEETING POINT TRUST LTD,18/01/2023,205.00
Children�s Safeguarding & Family Support,Family Connect & Childrens Centres,Supplies & Services,Other Expenses,Ability Smart Ltd,18/01/2023,"5,530.83"
Children�s Safeguarding & Family Support,Family Connect & Childrens Centres,Supplies & Services,Equipment - Purchase,Texthelp Ltd,09/01/2023,415.00
Children�s Safeguarding & Family Support,Family Connect & Childrens Centres,Supplies & Services,Stationery,MEETING POINT TRUST LTD,10/01/2023,161.25
Children�s Safeguarding & Family Support,Family Connect & Childrens Centres,Supplies & Services,Stationery,MEETING POINT TRUST LTD,10/01/2023,372.50
Children�s Safeguarding & Family Support,Family Connect & Childrens Centres,Supplies & Services,Stationery,MEETING POINT TRUST LTD,12/01/2023,104.61
Children�s Safeguarding & Family Support,"Family Placements, Children in Care, Leaving Care & Emergency Duty Team",Supplies & Services,Form F Assessments,ES-PBS Services,18/01/2023,500.00
Children�s Safeguarding & Family Support,"Family Placements, Children in Care, Leaving Care & Emergency Duty Team",Supplies & Services,Form F Assessments,ES-PBS Services,18/01/2023,500.00
Children�s Safeguarding & Family Support,"Family Placements, Children in Care, Leaving Care & Emergency Duty Team",Supplies & Services,Equipment - Repair,ARJO UK LTD,24/01/2023,108.00
Children�s Safeguarding & Family Support,"Family Placements, Children in Care, Leaving Care & Emergency Duty Team",Supplies & Services,Equipment - Repair,ARJO UK LTD,24/01/2023,464.48
Children�s Safeguarding & Family Support,"Family Placements, Children in Care, Leaving Care & Emergency Duty Team",Supplies & Services,Equipment - Repair,Closomat Limited,05/01/2023,307.00
Children�s Safeguarding & Family Support,"Family Placements, Children in Care, Leaving Care & Emergency Duty Team",Supplies & Services,Aids & Appliances,G & S S LTD,20/01/2023,530.00
Children�s Safeguarding & Family Support,"Family Placements, Children in Care, Leaving Care & Emergency Duty Team",Supplies & Services,Aids & Appliances,M A S Associates,09/01/2023,980.00
Children�s Safeguarding & Family Support,"Family Placements, Children in Care, Leaving Care & Emergency Duty Team",Supplies & Services,Aids & Appliances,M A S Associates,09/01/2023,400.00
Children�s Safeguarding & Family Support,"Family Placements, Children in Care, Leaving Care & Emergency Duty Team",Supplies & Services,Aids & Appliances,Neater Solutions Ltd,12/01/2023,"2,253.00"
Children�s Safeguarding & Family Support,"Family Placements, Children in Care, Leaving Care & Emergency Duty Team",Supplies & Services,Aids & Appliances,Schuchmann LLP,27/01/2023,736.00
Children�s Safeguarding & Family Support,"Family Placements, Children in Care, Leaving Care & Emergency Duty Team",Supplies & Services,Aids & Appliances,Specialised Orthotic Services Ltd,25/01/2023,776.18
Children�s Safeguarding & Family Support,"Family Placements, Children in Care, Leaving Care & Emergency Duty Team",Supplies & Services,Equipment - Repair,STANNAH LIFT SERVICES LTD,20/01/2023,607.25
Children�s Safeguarding & Family Support,"Family Placements, Children in Care, Leaving Care & Emergency Duty Team",Supplies & Services,Aids & Appliances,Strettons Upholstery,18/01/2023,"1,980.00"
Children�s Safeguarding & Family Support,"Family Placements, Children in Care, Leaving Care & Emergency Duty Team",Premises-Related Expenditure,Hire Of Rooms,MEETING POINT TRUST LTD,12/01/2023,117.50
Children�s Safeguarding & Family Support,"Family Placements, Children in Care, Leaving Care & Emergency Duty Team",Premises-Related Expenditure,Hire Of Rooms,MEETING POINT TRUST LTD,23/01/2023,130.00
Children�s Safeguarding & Family Support,"Family Placements, Children in Care, Leaving Care & Emergency Duty Team",Supplies & Services,Section 17 Childrens Act,Zebra Access,12/01/2023,180.00
Children�s Safeguarding & Family Support,"Family Placements, Children in Care, Leaving Care & Emergency Duty Team",Third Party Payments,Interpreters Fees,VISS Sign Language Interpreting Service,12/01/2023,115.00
Children�s Safeguarding & Family Support,"Family Placements, Children in Care, Leaving Care & Emergency Duty Team",Premises-Related Expenditure,Hire Of Rooms,MEETING POINT TRUST LTD,24/01/2023,"2,571.25"
Children�s Safeguarding & Family Support,"Family Placements, Children in Care, Leaving Care & Emergency Duty Team",Premises-Related Expenditure,Gas,SHROPSHIRE COUNCIL ,18/01/2023,599.51
Children�s Safeguarding & Family Support,"Family Placements, Children in Care, Leaving Care & Emergency Duty Team",Supplies & Services,Mobile Phones,EE LTD EQUIPMENT ,20/01/2023,142.00
Children�s Safeguarding & Family Support,"Family Placements, Children in Care, Leaving Care & Emergency Duty Team",Supplies & Services,Supportive Lodgings,Key2 Futures Ltd,17/01/2023,"5,856.84"
Children�s Safeguarding & Family Support,"Family Placements, Children in Care, Leaving Care & Emergency Duty Team",Supplies & Services,Doctors Fees,COURT STREET MEDICAL PRACTICE,18/01/2023,108.00
Children�s Safeguarding & Family Support,"Family Placements, Children in Care, Leaving Care & Emergency Duty Team",Supplies & Services,Doctors Fees,COURT STREET MEDICAL PRACTICE,19/01/2023,108.00
Children�s Safeguarding & Family Support,"Family Placements, Children in Care, Leaving Care & Emergency Duty Team",Supplies & Services,Doctors Fees,WOODSIDE MEDICAL PRACTICE,12/01/2023,125.00
Children�s Safeguarding & Family Support,"Family Placements, Children in Care, Leaving Care & Emergency Duty Team",Supplies & Services,Doctors Fees,WOODSIDE MEDICAL PRACTICE,25/01/2023,125.00
Children�s Safeguarding & Family Support,"Family Placements, Children in Care, Leaving Care & Emergency Duty Team",Employees,Staff Training,SHROPSHIRE COUNCIL ,19/01/2023,400.00
Children�s Safeguarding & Family Support,"Family Placements, Children in Care, Leaving Care & Emergency Duty Team",Supplies & Services,Subscriptions,FOSTERING NETWORK,18/01/2023,"2,166.00"
Children�s Safeguarding & Family Support,"Family Placements, Children in Care, Leaving Care & Emergency Duty Team",Supplies & Services,Advertising,Newsquest Media Group,03/01/2023,"2,800.00"
Children�s Safeguarding & Family Support,"Family Placements, Children in Care, Leaving Care & Emergency Duty Team",Supplies & Services,Advertising,Newsquest Media Group,23/01/2023,"2,800.00"
Children�s Safeguarding & Family Support,"Family Placements, Children in Care, Leaving Care & Emergency Duty Team",Supplies & Services,Other Services,Share Foundation,23/01/2023,428.56
Children�s Safeguarding & Family Support,"Family Placements, Children in Care, Leaving Care & Emergency Duty Team",Supplies & Services,Other Services,Share Foundation,20/01/2023,521.00
Children�s Safeguarding & Family Support,"Family Placements, Children in Care, Leaving Care & Emergency Duty Team",Supplies & Services,Other Services,POST ROOM,18/01/2023,113.15
Children�s Safeguarding & Family Support,"Family Placements, Children in Care, Leaving Care & Emergency Duty Team",Supplies & Services,Other Services,POST ROOM,17/01/2023,-113.15
Children�s Safeguarding & Family Support,"Family Placements, Children in Care, Leaving Care & Emergency Duty Team",Third Party Payments,Childminders,CHILDCARE SOS,19/01/2023,160.00
Children�s Safeguarding & Family Support,Safeguarding & Community Social Work,Supplies & Services,Fees,NWG Network,31/01/2023,114.80
Children�s Safeguarding & Family Support,Safeguarding Advisory,Supplies & Services,Printing - Other,MEETING POINT TRUST LTD,09/01/2023,130.00
Children�s Safeguarding & Family Support,Safeguarding Advisory,Supplies & Services,Public Transport Subsidy,MEETING POINT TRUST LTD,12/01/2023,144.83
Children's Safeguarding,Child Protection & Family Support,contribution to provision,legal,HM Courts and Tribunal service,16/01/2023," 4,392.00 "
"Communities, Customer & Commercial Services",Community Services,Supplies & Services,Grants To Voluntary Organis,Telford Crisis Support,10/01/2023,"1,000.00"
"Communities, Customer & Commercial Services",Community Services,Supplies & Services,Equipment - Purchase,Silk Group,12/01/2023,775.50
"Communities, Customer & Commercial Services",Community Services,Supplies & Services,Equipment - Purchase,Silk Group,12/01/2023,535.00
"Communities, Customer & Commercial Services",Community Services,Supplies & Services,Equipment - Purchase,Waterhaul Ltd ,30/01/2023,"1,093.50"
"Communities, Customer & Commercial Services",Community Services,Supplies & Services,Grants To Voluntary Organis,DONNINGTON & MUXTON PARISH COUNCIL,04/01/2023,"2,000.00"
"Communities, Customer & Commercial Services",Community Services,Supplies & Services,Grants To Voluntary Organis,Gorge Film Club,27/01/2023,150.00
"Communities, Customer & Commercial Services",Community Services,Supplies & Services,Grants To Voluntary Organis,GREAT DAWLEY PARISH COUNCIL,24/01/2023,"1,000.00"
"Communities, Customer & Commercial Services",Community Services,Supplies & Services,Grants To Voluntary Organis,GREAT DAWLEY PARISH COUNCIL,24/01/2023,"3,750.00"
"Communities, Customer & Commercial Services",Community Services,Supplies & Services,Grants To Voluntary Organis,Great Dawley Town Council,24/01/2023,"1,000.00"
"Communities, Customer & Commercial Services",Community Services,Supplies & Services,Grants To Voluntary Organis,KETLEY PARISH COUNCIL,23/01/2023,"4,497.00"
"Communities, Customer & Commercial Services",Community Services,Supplies & Services,Grants To Voluntary Organis,KETLEY PARISH COUNCIL,23/01/2023,"1,400.00"
"Communities, Customer & Commercial Services",Community Services,Supplies & Services,Grants To Voluntary Organis,LAWLEY & OVERDALE PARISH COUNCIL,05/01/2023,500.00
"Communities, Customer & Commercial Services",Community Services,Supplies & Services,Grants To Voluntary Organis,MADELEY TOWN COUNCIL ,04/01/2023,500.00
"Communities, Customer & Commercial Services",Community Services,Supplies & Services,Grants To Voluntary Organis,Telford Crisis Support,23/01/2023,"1,567.00"
"Communities, Customer & Commercial Services",Community Services,Supplies & Services,Grants To Voluntary Organis,WATERS UPTON PARISH COUNCIL,24/01/2023,"2,500.00"
"Communities, Customer & Commercial Services",Community Services,Supplies & Services,Grants To Voluntary Organis,WROCKWARDINE PARISH COUNCIL ,24/01/2023,"2,000.00"
"Communities, Customer & Commercial Services",Community Services,Supplies & Services,Grants To Voluntary Organis,BOURNVILLE VILLAGE TRUST,13/01/2023,"3,040.75"
"Communities, Customer & Commercial Services",Community Services,Premises-Related Expenditure,Electricity,West Mercia Energy ,25/01/2023,578.57
"Communities, Customer & Commercial Services",Community Services,Capital Expenditure,Expenditure on loans & other financial assistance,Arleston Community Centre,13/01/2023,"10,000.00"
"Communities, Customer & Commercial Services",Community Services,Capital Expenditure,Expenditure on loans & other financial assistance,Dawley Social Club,10/01/2023,"10,000.00"
"Communities, Customer & Commercial Services",Community Services,Capital Expenditure,Expenditure on loans & other financial assistance,EXOTIC ZOO COMMUNITY INTEREST COMPANY,19/01/2023,"10,000.00"
"Communities, Customer & Commercial Services",Community Services,Capital Expenditure,Expenditure on loans & other financial assistance,LITTLE WENLOCK VILLAGE HALL,19/01/2023,"1,500.00"
"Communities, Customer & Commercial Services",Community Services,Capital Expenditure,Other Capital Expenditure,WPD MIDLANDS NETWORKS SERVICES LTD,10/01/2023,"5,534.53"
"Communities, Customer & Commercial Services",Culture & Events,Supplies & Services,Marketing & Publicity,APL Media Ltd,20/01/2023,"2,571.00"
"Communities, Customer & Commercial Services",Culture & Events,Supplies & Services,Marketing & Publicity,APL Media Ltd,20/01/2023,"4,000.00"
"Communities, Customer & Commercial Services",Culture & Events,Employees,Recruitment Advertising,The Stage Newspaper Ltd,24/01/2023,650.00
"Communities, Customer & Commercial Services",Culture & Events,Supplies & Services,Marketing & Publicity,ALLWAG PROMOTIONS LTD,11/01/2023,178.00
"Communities, Customer & Commercial Services",Culture & Events,Supplies & Services,Promotion Expenses,crowdEngage Limited,04/01/2023,330.14
"Communities, Customer & Commercial Services",Culture & Events,Supplies & Services,Service Contracts,FREELANCE BUSINESS ASSOCIATES,13/01/2023,135.00
"Communities, Customer & Commercial Services",Culture & Events,Supplies & Services,Marketing & Publicity,M C MARKETING LTD,24/01/2023,725.00
"Communities, Customer & Commercial Services",Culture & Events,Supplies & Services,Promotion Expenses,Spektrix Limited,16/01/2023,"4,550.85"
"Communities, Customer & Commercial Services",Culture & Events,Supplies & Services,Equipment - Purchase,STAGE ELECTRICS PARTNERSHIP LTD,13/01/2023,260.90
"Communities, Customer & Commercial Services",Culture & Events,Supplies & Services,Promotion Expenses,Sure Digital Limited,04/01/2023,"1,788.00"
"Communities, Customer & Commercial Services",Culture & Events,Supplies & Services,Promotion Expenses,Sure Digital Limited,04/01/2023,504.00
"Communities, Customer & Commercial Services",Culture & Events,Supplies & Services,Advertising,THE SIGN SHOP,09/01/2023,980.00
"Communities, Customer & Commercial Services",Culture & Events,Supplies & Services,Artistes Fees,Ticketplan Limited,04/01/2023,"1,550.96"
"Communities, Customer & Commercial Services",Culture & Events,Supplies & Services,Advertising,VISS Sign Language Interpreting Service,16/01/2023,435.00
"Communities, Customer & Commercial Services",Culture & Events,Supplies & Services,Advertising,WHATS ON MAGAZINES LTD,04/01/2023,275.00
"Communities, Customer & Commercial Services",Culture & Events,Third Party Payments,Contractor Recharge,Association of British Theatre Technicians,25/01/2023,250.00
"Communities, Customer & Commercial Services",Culture & Events,Supplies & Services,Artistes Fees,Anstice Community Trust,16/01/2023,979.20
"Communities, Customer & Commercial Services",Culture & Events,Supplies & Services,Promotion Expenses,crowdEngage Limited,19/01/2023,510.99
"Communities, Customer & Commercial Services",Culture & Events,Supplies & Services,Other Services,OFF THE KERB PRODUCTIONS,24/01/2023,"3,572.96"
"Communities, Customer & Commercial Services",Culture & Events,Supplies & Services,Artistes Fees,P N Treasurer Rotary Club of Ironbridge,17/01/2023,160.00
"Communities, Customer & Commercial Services",Culture & Events,Supplies & Services,Artistes Fees,Shones Productions Limited,25/01/2023,"105,228.55"
"Communities, Customer & Commercial Services",Culture & Events,Supplies & Services,Artistes Fees,Ticketplan Limited,04/01/2023,"1,405.44"
"Communities, Customer & Commercial Services",Culture & Events,Supplies & Services,Furniture - Repair,BRADLEY INDUSTRIAL SERVICES,09/01/2023,470.00
"Communities, Customer & Commercial Services",Culture & Events,Supplies & Services,Equipment - Purchase,E N CATERING EQUIPMENT AND SERVICES  LTD,30/01/2023,358.90
"Communities, Customer & Commercial Services",Culture & Events,Supplies & Services,Wet Resale Provision,M C BREWING COMPANY UK LTD,16/01/2023,112.13
"Communities, Customer & Commercial Services",Culture & Events,Supplies & Services,Wet Resale Provision,M C BREWING COMPANY UK LTD,03/01/2023,129.88
"Communities, Customer & Commercial Services",Culture & Events,Supplies & Services,Wet Resale Provision,M C BREWING COMPANY UK LTD,03/01/2023,110.19
"Communities, Customer & Commercial Services",Culture & Events,Supplies & Services,Wet Resale Provision,M C BREWING COMPANY UK LTD,27/01/2023,220.38
"Communities, Customer & Commercial Services",Culture & Events,Supplies & Services,Wet Resale Provision,M C BREWING COMPANY UK LTD,13/01/2023,129.88
"Communities, Customer & Commercial Services",Culture & Events,Supplies & Services,Wet Resale Provision,M C BREWING COMPANY UK LTD,13/01/2023,110.19
"Communities, Customer & Commercial Services",Culture & Events,Supplies & Services,Wet Resale Provision,M C BREWING COMPANY UK LTD,13/01/2023,259.76
"Communities, Customer & Commercial Services",Culture & Events,Supplies & Services,Wet Resale Provision,M C BREWING COMPANY UK LTD,13/01/2023,220.38
"Communities, Customer & Commercial Services",Culture & Events,Supplies & Services,Wet Resale Provision,M C BREWING COMPANY UK LTD,13/01/2023,176.48
"Communities, Customer & Commercial Services",Culture & Events,Supplies & Services,Wet Resale Provision,M C BREWING COMPANY UK LTD,13/01/2023,112.13
"Communities, Customer & Commercial Services",Culture & Events,Supplies & Services,Wet Resale Provision,M C BREWING COMPANY UK LTD,04/01/2023,129.88
"Communities, Customer & Commercial Services",Culture & Events,Supplies & Services,Wet Resale Provision,M C BREWING COMPANY UK LTD,04/01/2023,105.96
"Communities, Customer & Commercial Services",Culture & Events,Supplies & Services,Wet Resale Provision,M C BREWING COMPANY UK LTD,13/01/2023,129.88
"Communities, Customer & Commercial Services",Culture & Events,Supplies & Services,Confectionery & Snacks,BIKOLD,03/01/2023,150.00
"Communities, Customer & Commercial Services",Culture & Events,Supplies & Services,Confectionery & Snacks,BIKOLD,03/01/2023,125.00
"Communities, Customer & Commercial Services",Culture & Events,Supplies & Services,Confectionery & Snacks,Eden Farm Hulleys,12/01/2023,148.20
"Communities, Customer & Commercial Services",Culture & Events,Supplies & Services,Confectionery & Snacks,Eden Farm Hulleys,12/01/2023,431.20
"Communities, Customer & Commercial Services",Culture & Events,Supplies & Services,Confectionery & Snacks,Eden Farm Hulleys,12/01/2023,452.76
"Communities, Customer & Commercial Services",Culture & Events,Supplies & Services,Confectionery & Snacks,Eden Farm Hulleys,12/01/2023,831.50
"Communities, Customer & Commercial Services",Culture & Events,Supplies & Services,Confectionery & Snacks,Eden Farm Hulleys,27/01/2023,411.84
"Communities, Customer & Commercial Services",Culture & Events,Supplies & Services,Confectionery & Snacks,Eden Farm Hulleys,27/01/2023,444.60
"Communities, Customer & Commercial Services",Culture & Events,Supplies & Services,Confectionery & Snacks,Eden Farm Hulleys,03/01/2023,398.86
"Communities, Customer & Commercial Services",Culture & Events,Supplies & Services,Confectionery & Snacks,Eden Farm Hulleys,03/01/2023,495.88
"Communities, Customer & Commercial Services",Culture & Events,Supplies & Services,Confectionery & Snacks,Eden Farm Hulleys,03/01/2023,300.96
"Communities, Customer & Commercial Services",Culture & Events,Supplies & Services,Confectionery & Snacks,Eden Farm Hulleys,12/01/2023,160.80
"Communities, Customer & Commercial Services",Culture & Events,Supplies & Services,Confectionery & Snacks,Eden Farm Hulleys,12/01/2023,134.16
"Communities, Customer & Commercial Services",Culture & Events,Supplies & Services,Wet Resale Provision,M C BREWING COMPANY UK LTD,13/01/2023,317.88
"Communities, Customer & Commercial Services",Culture & Events,Supplies & Services,Wet Resale Provision,M C BREWING COMPANY UK LTD,13/01/2023,326.70
"Communities, Customer & Commercial Services",Culture & Events,Supplies & Services,Wet Resale Provision,M C BREWING COMPANY UK LTD,13/01/2023,114.40
"Communities, Customer & Commercial Services",Culture & Events,Supplies & Services,Wet Resale Provision,M C BREWING COMPANY UK LTD,13/01/2023,115.70
"Communities, Customer & Commercial Services",Culture & Events,Supplies & Services,Confectionery & Snacks,M C BREWING COMPANY UK LTD,13/01/2023,233.10
"Communities, Customer & Commercial Services",Culture & Events,Supplies & Services,Wet Resale Provision,M C BREWING COMPANY UK LTD,13/01/2023,224.04
"Communities, Customer & Commercial Services",Culture & Events,Supplies & Services,Wet Resale Provision,M C BREWING COMPANY UK LTD,13/01/2023,661.14
"Communities, Customer & Commercial Services",Culture & Events,Supplies & Services,Wet Resale Provision,M C BREWING COMPANY UK LTD,13/01/2023,205.90
"Communities, Customer & Commercial Services",Culture & Events,Supplies & Services,Wet Resale Provision,M C BREWING COMPANY UK LTD,13/01/2023,217.80
"Communities, Customer & Commercial Services",Culture & Events,Supplies & Services,Wet Resale Provision,M C BREWING COMPANY UK LTD,13/01/2023,151.95
"Communities, Customer & Commercial Services",Culture & Events,Supplies & Services,Wet Resale Provision,M C BREWING COMPANY UK LTD,13/01/2023,162.84
"Communities, Customer & Commercial Services",Culture & Events,Supplies & Services,Wet Resale Provision,M C BREWING COMPANY UK LTD,05/01/2023,"2,499.82"
"Communities, Customer & Commercial Services",Culture & Events,Supplies & Services,Wet Resale Provision,M C BREWING COMPANY UK LTD,09/01/2023,"1,213.30"
"Communities, Customer & Commercial Services",Culture & Events,Supplies & Services,Wet Resale Provision,M C BREWING COMPANY UK LTD,13/01/2023,330.57
"Communities, Customer & Commercial Services",Culture & Events,Supplies & Services,Wet Resale Provision,M C BREWING COMPANY UK LTD,13/01/2023,265.38
"Communities, Customer & Commercial Services",Culture & Events,Supplies & Services,Confectionery & Snacks,M C BREWING COMPANY UK LTD,13/01/2023,345.00
"Communities, Customer & Commercial Services",Culture & Events,Supplies & Services,Service Contracts,PROKILL UK LIMITED,19/01/2023,159.60
"Communities, Customer & Commercial Services",Culture & Events,Supplies & Services,Equipment - Hire,Blachere Illumination UK Ltd,12/01/2023,"6,120.00"
"Communities, Customer & Commercial Services",Culture & Events,Supplies & Services,Other Expenses,ETAK Creative Ltd,17/01/2023,650.00
"Communities, Customer & Commercial Services",Culture & Events,Supplies & Services,Consultancy,Full Blown Metals Ltd,24/01/2023,"9,320.00"
"Communities, Customer & Commercial Services",Culture & Events,Supplies & Services,Equipment - Hire,Illuminate Audio Visual Effects,11/01/2023,"2,430.00"
"Communities, Customer & Commercial Services",Culture & Events,Supplies & Services,Equipment - Hire,Illuminate Audio Visual Effects,11/01/2023,"2,280.00"
"Communities, Customer & Commercial Services",Culture & Events,Supplies & Services,Equipment - Hire,J.E.F Scaffolding Ltd,20/01/2023,"6,265.00"
"Communities, Customer & Commercial Services",Culture & Events,Supplies & Services,Equipment - Hire,JCE & SONS LTD,03/01/2023,"5,166.30"
"Communities, Customer & Commercial Services",Culture & Events,Supplies & Services,Equipment - Hire,JCE & SONS LTD,05/01/2023,"4,862.33"
"Communities, Customer & Commercial Services",Culture & Events,Supplies & Services,Equipment - Hire,JCE & SONS LTD,03/01/2023,191.82
"Communities, Customer & Commercial Services",Culture & Events,Supplies & Services,Artistes Fees,LITE,10/01/2023,"7,170.40"
"Communities, Customer & Commercial Services",Culture & Events,Supplies & Services,Equipment - Hire,MSM Hire Ltd,20/01/2023,"2,510.00"
"Communities, Customer & Commercial Services",Culture & Events,Supplies & Services,First Aid,MW MEDICS LTD,10/01/2023,720.00
"Communities, Customer & Commercial Services",Culture & Events,Supplies & Services,First Aid,MW MEDICS LTD,09/01/2023,540.00
"Communities, Customer & Commercial Services",Culture & Events,Supplies & Services,First Aid,MW MEDICS LTD,11/01/2023,"1,883.33"
"Communities, Customer & Commercial Services",Culture & Events,Supplies & Services,Equipment - Hire,PG Skips Ltd,11/01/2023,366.00
"Communities, Customer & Commercial Services",Culture & Events,Supplies & Services,Equipment - Hire,TELFORD TOILET HIRE,10/01/2023,"2,480.00"
"Communities, Customer & Commercial Services",Culture & Events,Supplies & Services,Equipment - Purchase,Spektrix Limited,04/01/2023,900.00
"Communities, Customer & Commercial Services",Culture & Events,Supplies & Services,Artistes Fees,Stage and Studios Services Limited,10/01/2023,800.00
"Communities, Customer & Commercial Services",Culture & Events,Supplies & Services,Administrative/Office Supplies,TECHNICAL SERVICES  LIMITED,16/01/2023,"1,280.76"
"Communities, Customer & Commercial Services",Culture & Events,Supplies & Services,Adaptations,Kernock Park Plants Ltd,31/01/2023,"-6,985.00"
"Communities, Customer & Commercial Services",Culture & Events,Supplies & Services,Artistes Fees,Wild Strawberry Interactive Multimedia Ltd,09/01/2023,"6,250.00"
"Communities, Customer & Commercial Services",Customer Relationships & Welfare Services,Employees,Agency Supply Costs,EDEN BROWN LTD,25/01/2023,"1,066.50"
"Communities, Customer & Commercial Services",Customer Relationships & Welfare Services,Employees,Agency Supply Costs,EDEN BROWN LTD,06/01/2023,"1,066.50"
"Communities, Customer & Commercial Services",Customer Relationships & Welfare Services,Employees,Agency Supply Costs,EDEN BROWN LTD,16/01/2023,864.00
"Communities, Customer & Commercial Services",Customer Relationships & Welfare Services,Employees,Agency Supply Costs,EDEN BROWN LTD,31/01/2023,"1,059.75"
"Communities, Customer & Commercial Services",Customer Relationships & Welfare Services,Employees,Agency Supply Costs,G2 Recruitment Solutions,16/01/2023,"1,674.90"
"Communities, Customer & Commercial Services",Customer Relationships & Welfare Services,Supplies & Services,Other Grants (Expenses),Discretionary Household Support,05/01/2023,629.13
"Communities, Customer & Commercial Services",Customer Relationships & Welfare Services,Supplies & Services,Other Grants (Expenses),Hawk Incentives Ltd,18/01/2023,"19,744.00"
"Communities, Customer & Commercial Services",Customer Relationships & Welfare Services,Supplies & Services,Other Grants (Expenses),Hawk Incentives Ltd ,09/01/2023,"537,530.40"
"Communities, Customer & Commercial Services",Customer Relationships & Welfare Services,Transfer Payments,Crisis Assistance Awards,PayPoint Network Limited,11/01/2023,368.20
"Communities, Customer & Commercial Services",Customer Relationships & Welfare Services,Transfer Payments,Crisis Assistance Awards,PayPoint Network Limited,03/01/2023,"1,214.00"
"Communities, Customer & Commercial Services",Customer Relationships & Welfare Services,Transfer Payments,Crisis Assistance Awards,PayPoint Network Limited,04/01/2023,335.80
"Communities, Customer & Commercial Services",Customer Relationships & Welfare Services,Transfer Payments,Crisis Assistance Awards,PayPoint Network Limited,23/01/2023,"1,121.00"
"Communities, Customer & Commercial Services",Customer Relationships & Welfare Services,Transfer Payments,Crisis Assistance Awards,PayPoint Network Limited,18/01/2023,647.00
"Communities, Customer & Commercial Services",Customer Relationships & Welfare Services,Employees,Professional Subs,IRRV,13/01/2023,780.00
"Communities, Customer & Commercial Services",Customer Relationships & Welfare Services,Supplies & Services,Printing - Other,Financial Data Management plc,19/01/2023,-233.85
"Communities, Customer & Commercial Services",Customer Relationships & Welfare Services,Supplies & Services,Printing - Other,Financial Data Management plc,11/01/2023,134.45
"Communities, Customer & Commercial Services",Customer Relationships & Welfare Services,Supplies & Services,Postages,Financial Data Management plc,11/01/2023,133.28
"Communities, Customer & Commercial Services",Customer Relationships & Welfare Services,Supplies & Services,Comp Software (Purch / Hire),NEC Software Solutions UK Ltd,18/01/2023,"1,950.00"
"Communities, Customer & Commercial Services",Customer Relationships & Welfare Services,Supplies & Services,Permit Production - Blue Badge,APS Group,10/01/2023,764.63
"Communities, Customer & Commercial Services",Customer Relationships & Welfare Services,Supplies & Services,Bus Pass Production,Euclid Limited,10/01/2023,662.58
"Communities, Customer & Commercial Services",Customer Relationships & Welfare Services,Supplies & Services,Fees,PayPoint Network Ltd ,10/01/2023,127.28
"Communities, Customer & Commercial Services",Customer Relationships & Welfare Services,Supplies & Services,Bus Pass Production,Unicard Ltd,13/01/2023,318.00
"Communities, Customer & Commercial Services",Customer Relationships & Welfare Services,Supplies & Services,Bus Pass Production,Unicard Ltd,16/01/2023,538.08
"Communities, Customer & Commercial Services",Customer Relationships & Welfare Services,Supplies & Services,Permit Production - Blue Badge,Valtech Limited,09/01/2023,348.44
"Communities, Customer & Commercial Services",Customer Relationships & Welfare Services,Transfer Payments,Crisis Assistance Awards,Kings of the Road,11/01/2023,275.00
"Communities, Customer & Commercial Services",Customer Relationships & Welfare Services,Transfer Payments,Crisis Assistance Awards,Kings of the Road,26/01/2023,525.00
"Communities, Customer & Commercial Services",Customer Relationships & Welfare Services,Transfer Payments,Crisis Assistance Awards,Kings of the Road,03/01/2023,395.00
"Communities, Customer & Commercial Services",Customer Relationships & Welfare Services,Transfer Payments,Crisis Assistance Awards,Kings of the Road,03/01/2023,495.00
"Communities, Customer & Commercial Services",Customer Relationships & Welfare Services,Transfer Payments,Crisis Assistance Awards,Kings of the Road,20/01/2023,275.00
"Communities, Customer & Commercial Services",Customer Relationships & Welfare Services,Transfer Payments,Crisis Assistance Awards,Kings of the Road,20/01/2023,375.00
"Communities, Customer & Commercial Services",ICT,Supplies & Services,Comp Hardware (Purch / Hire),CCS MEDIA LIMITED,24/01/2023,"1,965.00"
"Communities, Customer & Commercial Services",ICT,Supplies & Services,Comp Hardware (Purch / Hire),CCS MEDIA LIMITED,17/01/2023,"1,965.00"
"Communities, Customer & Commercial Services",ICT,Supplies & Services,Comp Hardware (Purch / Hire),CCS MEDIA LIMITED,17/01/2023,"1,346.00"
"Communities, Customer & Commercial Services",ICT,Supplies & Services,Telephones,BRITISH TELECOMMUNICATIONS PLC ,17/01/2023,"5,519.12"
"Communities, Customer & Commercial Services",ICT,Supplies & Services,Mobile Phones,EE LTD AIRTIME,17/01/2023,"12,191.61"
"Communities, Customer & Commercial Services",ICT,Supplies & Services,Text Messages,PROCESS FLOWS UK LTD,09/01/2023,"1,123.75"
"Communities, Customer & Commercial Services",ICT,Supplies & Services,Text Messages,PROCESS FLOWS UK LTD,05/01/2023,226.74
"Communities, Customer & Commercial Services",ICT,Supplies & Services,Telephones,Trustmarque Solutions Limited,23/01/2023,"2,827.80"
"Communities, Customer & Commercial Services",ICT,Supplies & Services,Comp Hardware (Purch / Hire),CCS MEDIA LIMITED,05/01/2023,458.05
"Communities, Customer & Commercial Services",ICT,Supplies & Services,Comp Hardware (Purch / Hire),CCS MEDIA LIMITED,09/01/2023,112.00
"Communities, Customer & Commercial Services",ICT,Premises-Related Expenditure,R&M -Building Other,Charlton Academy,12/01/2023,"1,715.95"
"Communities, Customer & Commercial Services",ICT,Premises-Related Expenditure,R&M -Buildings DLO Charge,PP ELECTRICAL SERVICES Ltd,30/01/2023,180.00
"Communities, Customer & Commercial Services",ICT,Supplies & Services,Comp Software (Purch / Hire),ICS.Al Ltd,04/01/2023,"70,000.00"
"Communities, Customer & Commercial Services",ICT,Supplies & Services,External Computer Use,NEC Software Solutions UK Ltd,26/01/2023,"10,350.00"
"Communities, Customer & Commercial Services",ICT,Supplies & Services,Comp Software (Purch / Hire),NEC Software Solutions UK Ltd,31/01/2023,550.00
"Communities, Customer & Commercial Services",ICT,Supplies & Services,Comp Software (Purch / Hire),PHOENIX SOFTWARE LTD,17/01/2023,"9,398.36"
"Communities, Customer & Commercial Services",ICT,Supplies & Services,Software Purchases,PHOENIX SOFTWARE LTD,16/01/2023,"4,301.48"
"Communities, Customer & Commercial Services",ICT,Supplies & Services,Comp Software (Purch / Hire),ROL Solutions Ltd,23/01/2023,"2,636.00"
"Communities, Customer & Commercial Services",ICT,Supplies & Services,Comp Software (Purch / Hire),ROL Solutions Ltd,23/01/2023,"2,803.20"
"Communities, Customer & Commercial Services",ICT,Supplies & Services,Comp Software (Purch / Hire),Strive AV Ltd,31/01/2023,550.00
"Communities, Customer & Commercial Services",ICT,Supplies & Services,Comp Software (Purch / Hire),Strive AV Ltd,31/01/2023,600.00
"Communities, Customer & Commercial Services",ICT,Supplies & Services,Comp Software (Purch / Hire),Strive AV Ltd,31/01/2023,600.00
"Communities, Customer & Commercial Services",ICT,Supplies & Services,Comp Software (Purch / Hire),V1 Limited,20/01/2023,"11,770.96"
"Communities, Customer & Commercial Services",ICT,Supplies & Services,Telecomms,VODAFONE LTD,23/01/2023,"1,694.00"
"Communities, Customer & Commercial Services",ICT,Supplies & Services,Stationery,PREMIER PAPER GROUP LTD,03/01/2023,490.50
"Communities, Customer & Commercial Services",ICT,Supplies & Services,Stationery,PREMIER PAPER GROUP LTD,23/01/2023,163.50
"Communities, Customer & Commercial Services",ICT,Supplies & Services,Comp Hardware (Purch / Hire),CCS MEDIA LIMITED,20/01/2023,"1,560.04"
"Communities, Customer & Commercial Services",ICT,Supplies & Services,Comp Hardware (Purch / Hire),CCS MEDIA LIMITED,20/01/2023,492.10
"Communities, Customer & Commercial Services",ICT,Supplies & Services,Comp Hardware (Purch / Hire),CCS MEDIA LIMITED,20/01/2023,149.00
"Communities, Customer & Commercial Services",ICT,Supplies & Services,Comp Hardware (Purch / Hire),CCS MEDIA LIMITED,19/01/2023,175.00
"Communities, Customer & Commercial Services",ICT,Supplies & Services,Comp Hardware (Purch / Hire),CCS MEDIA LIMITED,20/01/2023,"44,849.15"
"Communities, Customer & Commercial Services",ICT,Supplies & Services,Comp Hardware (Purch / Hire),CCS MEDIA LIMITED,31/01/2023,485.00
"Communities, Customer & Commercial Services",ICT,Supplies & Services,Mobile Phones,EE LTD EQUIPMENT ,31/01/2023,707.50
"Communities, Customer & Commercial Services",ICT,Supplies & Services,Equipment - Purchase,ICTn Limited,20/01/2023,108.00
"Communities, Customer & Commercial Services",ICT,Supplies & Services,Comp Software (Purch / Hire),Bromcom Computers Plc,18/01/2023,"3,589.30"
"Communities, Customer & Commercial Services",ICT,Capital Expenditure,Computer Software,Bramble Hub Limited,09/01/2023,"2,221.56"
"Communities, Customer & Commercial Services",ICT,Capital Expenditure,Payments to Contractor,Bramble Hub Limited,11/01/2023,"14,089.99"
"Communities, Customer & Commercial Services",ICT,Capital Expenditure,Payments to Contractor,Bramble Hub Limited,19/01/2023,"31,201.66"
"Communities, Customer & Commercial Services",ICT,Capital Expenditure,Payments to Contractor,CAPITA BUSINESS SERVICES LTD,10/01/2023,"18,450.00"
"Communities, Customer & Commercial Services",ICT,Capital Expenditure,Payments to Contractor,CAPITA IT SERVICES LIMITED,20/01/2023,"5,250.00"
"Communities, Customer & Commercial Services",ICT,Capital Expenditure,Computer Hardware,CCS MEDIA LIMITED,20/01/2023,464.00
"Communities, Customer & Commercial Services",ICT,Capital Expenditure,Computer Hardware,CCS MEDIA LIMITED,17/01/2023,394.50
"Communities, Customer & Commercial Services",ICT,Capital Expenditure,Computer Hardware,CCS MEDIA LIMITED,17/01/2023,244.50
"Communities, Customer & Commercial Services",ICT,Capital Expenditure,Computer Hardware,CCS MEDIA LIMITED,17/01/2023,208.50
"Communities, Customer & Commercial Services",ICT,Capital Expenditure,Computer Hardware,CCS MEDIA LIMITED,19/01/2023,"6,860.00"
"Communities, Customer & Commercial Services",ICT,Capital Expenditure,Computer Hardware,CCS MEDIA LIMITED,12/01/2023,"2,700.00"
"Communities, Customer & Commercial Services",ICT,Capital Expenditure,Computer Hardware,CCS MEDIA LIMITED,12/01/2023,"1,180.00"
"Communities, Customer & Commercial Services",ICT,Capital Expenditure,Computer Hardware,CCS MEDIA LIMITED,12/01/2023,"1,100.00"
"Communities, Customer & Commercial Services",ICT,Capital Expenditure,Computer Hardware,CCS MEDIA LIMITED,04/01/2023,"50,785.38"
"Communities, Customer & Commercial Services",ICT,Capital Expenditure,Computer Hardware,CCS MEDIA LIMITED,16/01/2023,320.00
"Communities, Customer & Commercial Services",ICT,Capital Expenditure,Computer Hardware,CCS MEDIA LIMITED,24/01/2023,175.00
"Communities, Customer & Commercial Services",ICT,Capital Expenditure,Computer Hardware,CCS MEDIA LIMITED,31/01/2023,180.89
"Communities, Customer & Commercial Services",ICT,Capital Expenditure,Computer Hardware,CCS MEDIA LIMITED,31/01/2023,180.89
"Communities, Customer & Commercial Services",ICT,Capital Expenditure,Payments to Contractor,FarrPoint Ltd,05/01/2023,"1,062.50"
"Communities, Customer & Commercial Services",ICT,Capital Expenditure,Payments to Contractor,FarrPoint Ltd,05/01/2023,425.00
"Communities, Customer & Commercial Services",ICT,Capital Expenditure,Payments to Contractor,Flint Studios Limited,17/01/2023,"2,812.50"
"Communities, Customer & Commercial Services",ICT,Capital Expenditure,Computer Hardware,XMA LIMITED,13/01/2023,700.00
"Communities, Customer & Commercial Services",ICT,Capital Expenditure,Computer Hardware,XMA LIMITED,13/01/2023,262.50
"Communities, Customer & Commercial Services",ICT,Capital Expenditure,Computer Hardware,XMA LIMITED,13/01/2023,262.50
"Communities, Customer & Commercial Services",ICT,Capital Expenditure,Computer Hardware,XMA LIMITED,31/01/2023,700.00
"Communities, Customer & Commercial Services",ICT,Capital Expenditure,Payments to Contractor,Zellis UK Ltd,12/01/2023,"1,504.00"
"Communities, Customer & Commercial Services",ICT,Capital Expenditure,Payments to Contractor,Zellis UK Ltd,17/01/2023,"3,948.00"
"Communities, Customer & Commercial Services",Sport & Leisure,Premises-Related Expenditure,Electricity,EON next,12/01/2023,224.65
"Communities, Customer & Commercial Services",Sport & Leisure,Supplies & Services,Protective Clothing,Border Janitorial Supplies Limited,18/01/2023,117.00
"Communities, Customer & Commercial Services",Sport & Leisure,Supplies & Services,Crockery/Hardware/Light Equip,E N CATERING EQUIPMENT AND SERVICES  LTD,18/01/2023,145.00
"Communities, Customer & Commercial Services",Sport & Leisure,Supplies & Services,Protective Clothing,IMAGE@WORK LTD,27/01/2023,"1,117.25"
"Communities, Customer & Commercial Services",Sport & Leisure,Supplies & Services,Crockery/Hardware/Light Equip,PLANGLOW LTD,18/01/2023,612.10
"Communities, Customer & Commercial Services",Sport & Leisure,Supplies & Services,Provisions,J DAIRIES,18/01/2023,793.61
"Communities, Customer & Commercial Services",Sport & Leisure,Supplies & Services,EEC Whole Milk,J DAIRIES,12/01/2023,487.79
"Communities, Customer & Commercial Services",Sport & Leisure,Supplies & Services,Provisions,J DAIRIES,17/01/2023,"1,362.71"
"Communities, Customer & Commercial Services",Sport & Leisure,Supplies & Services,Provisions,J DAIRIES,17/01/2023,"1,788.88"
"Communities, Customer & Commercial Services",Sport & Leisure,Supplies & Services,Provisions,J DAIRIES,27/01/2023,"1,822.68"
"Communities, Customer & Commercial Services",Sport & Leisure,Supplies & Services,EEC Whole Milk,J DAIRIES,27/01/2023,797.68
"Communities, Customer & Commercial Services",Sport & Leisure,Supplies & Services,Provisions,J DAIRIES,27/01/2023,"1,822.68"
"Communities, Customer & Commercial Services",Sport & Leisure,Supplies & Services,Provisions,BIKOLD,20/01/2023,135.73
"Communities, Customer & Commercial Services",Sport & Leisure,Employees,Agency Supply Costs,TOTAL CATERING SOLUTONS RECRUITMENT LTD,18/01/2023,320.00
"Communities, Customer & Commercial Services",Sport & Leisure,Employees,Agency Supply Costs,TOTAL CATERING SOLUTONS RECRUITMENT LTD,27/01/2023,192.00
"Communities, Customer & Commercial Services",Sport & Leisure,Employees,Agency Supply Costs,TOTAL CATERING SOLUTONS RECRUITMENT LTD,27/01/2023,320.00
"Communities, Customer & Commercial Services",Sport & Leisure,Employees,Agency Supply Costs,TOTAL CATERING SOLUTONS RECRUITMENT LTD,27/01/2023,192.00
"Communities, Customer & Commercial Services",Sport & Leisure,Premises-Related Expenditure,Clean Mats & Toilet Requisites,Border Janitorial Supplies Limited,18/01/2023,128.06
"Communities, Customer & Commercial Services",Sport & Leisure,Premises-Related Expenditure,Clean Mats & Toilet Requisites,Border Janitorial Supplies Limited,18/01/2023,343.06
"Communities, Customer & Commercial Services",Sport & Leisure,Premises-Related Expenditure,Clean Mats & Toilet Requisites,Border Janitorial Supplies Limited,18/01/2023,165.19
"Communities, Customer & Commercial Services",Sport & Leisure,Premises-Related Expenditure,Clean Mats & Toilet Requisites,Border Janitorial Supplies Limited,19/01/2023,131.09
"Communities, Customer & Commercial Services",Sport & Leisure,Premises-Related Expenditure,Clean Mats & Toilet Requisites,Border Janitorial Supplies Limited,18/01/2023,162.83
"Communities, Customer & Commercial Services",Sport & Leisure,Premises-Related Expenditure,Clean Mats & Toilet Requisites,Border Janitorial Supplies Limited,18/01/2023,248.62
"Communities, Customer & Commercial Services",Sport & Leisure,Premises-Related Expenditure,Clean Mats & Toilet Requisites,Border Janitorial Supplies Limited,18/01/2023,122.23
"Communities, Customer & Commercial Services",Sport & Leisure,Supplies & Services,Computer Hardware (Maint),CIVICA UK LIMITED ,19/01/2023,140.00
"Communities, Customer & Commercial Services",Sport & Leisure,Supplies & Services,Provisions,BIKOLD,30/01/2023,148.08
"Communities, Customer & Commercial Services",Sport & Leisure,Supplies & Services,Provisions,BIKOLD,30/01/2023,123.92
"Communities, Customer & Commercial Services",Sport & Leisure,Supplies & Services,Provisions,BIKOLD,30/01/2023,145.85
"Communities, Customer & Commercial Services",Sport & Leisure,Supplies & Services,Provisions,BIKOLD,30/01/2023,313.07
"Communities, Customer & Commercial Services",Sport & Leisure,Supplies & Services,Provisions,BIKOLD,30/01/2023,300.46
"Communities, Customer & Commercial Services",Sport & Leisure,Supplies & Services,Provisions,BIKOLD,30/01/2023,166.44
"Communities, Customer & Commercial Services",Sport & Leisure,Supplies & Services,Provisions,BIKOLD,30/01/2023,417.97
"Communities, Customer & Commercial Services",Sport & Leisure,Supplies & Services,Provisions,BIKOLD,30/01/2023,150.36
"Communities, Customer & Commercial Services",Sport & Leisure,Supplies & Services,Provisions,BIKOLD,30/01/2023,386.13
"Communities, Customer & Commercial Services",Sport & Leisure,Supplies & Services,Provisions,BIKOLD,30/01/2023,334.59
"Communities, Customer & Commercial Services",Sport & Leisure,Supplies & Services,Provisions,BIKOLD,30/01/2023,203.05
"Communities, Customer & Commercial Services",Sport & Leisure,Supplies & Services,Provisions,BIKOLD,30/01/2023,205.95
"Communities, Customer & Commercial Services",Sport & Leisure,Supplies & Services,Provisions,BIKOLD,30/01/2023,338.92
"Communities, Customer & Commercial Services",Sport & Leisure,Supplies & Services,Provisions,BIKOLD,30/01/2023,103.63
"Communities, Customer & Commercial Services",Sport & Leisure,Supplies & Services,Provisions,BIKOLD,30/01/2023,298.34
"Communities, Customer & Commercial Services",Sport & Leisure,Supplies & Services,Provisions,BIKOLD,30/01/2023,383.92
"Communities, Customer & Commercial Services",Sport & Leisure,Supplies & Services,Provisions,BIKOLD,30/01/2023,225.12
"Communities, Customer & Commercial Services",Sport & Leisure,Supplies & Services,Provisions,BIKOLD,30/01/2023,258.07
"Communities, Customer & Commercial Services",Sport & Leisure,Supplies & Services,Provisions,BIKOLD,30/01/2023,221.21
"Communities, Customer & Commercial Services",Sport & Leisure,Supplies & Services,Provisions,BIKOLD,30/01/2023,181.58
"Communities, Customer & Commercial Services",Sport & Leisure,Supplies & Services,Provisions,BIKOLD,30/01/2023,328.75
"Communities, Customer & Commercial Services",Sport & Leisure,Supplies & Services,Provisions,BIKOLD,30/01/2023,103.55
"Communities, Customer & Commercial Services",Sport & Leisure,Supplies & Services,Provisions,BIKOLD,30/01/2023,346.01
"Communities, Customer & Commercial Services",Sport & Leisure,Supplies & Services,Provisions,BIKOLD,30/01/2023,205.68
"Communities, Customer & Commercial Services",Sport & Leisure,Supplies & Services,Provisions,BIKOLD,30/01/2023,213.87
"Communities, Customer & Commercial Services",Sport & Leisure,Supplies & Services,Provisions,BIKOLD,30/01/2023,115.26
"Communities, Customer & Commercial Services",Sport & Leisure,Supplies & Services,Provisions,BIKOLD,30/01/2023,165.82
"Communities, Customer & Commercial Services",Sport & Leisure,Supplies & Services,Provisions,BIKOLD,30/01/2023,124.83
"Communities, Customer & Commercial Services",Sport & Leisure,Supplies & Services,Provisions,BIKOLD,30/01/2023,345.90
"Communities, Customer & Commercial Services",Sport & Leisure,Supplies & Services,Provisions,BIKOLD,30/01/2023,270.12
"Communities, Customer & Commercial Services",Sport & Leisure,Supplies & Services,Provisions,BIKOLD,30/01/2023,143.65
"Communities, Customer & Commercial Services",Sport & Leisure,Supplies & Services,Provisions,BIKOLD,30/01/2023,128.92
"Communities, Customer & Commercial Services",Sport & Leisure,Supplies & Services,Provisions,BIKOLD,30/01/2023,246.92
"Communities, Customer & Commercial Services",Sport & Leisure,Supplies & Services,Provisions,BIKOLD,30/01/2023,219.27
"Communities, Customer & Commercial Services",Sport & Leisure,Supplies & Services,Provisions,BIKOLD,30/01/2023,100.83
"Communities, Customer & Commercial Services",Sport & Leisure,Supplies & Services,Provisions,BIKOLD,30/01/2023,145.13
"Communities, Customer & Commercial Services",Sport & Leisure,Supplies & Services,Provisions,BIKOLD,30/01/2023,287.48
"Communities, Customer & Commercial Services",Sport & Leisure,Supplies & Services,Provisions,BIKOLD,30/01/2023,232.05
"Communities, Customer & Commercial Services",Sport & Leisure,Supplies & Services,Provisions,BIKOLD,30/01/2023,104.15
"Communities, Customer & Commercial Services",Sport & Leisure,Supplies & Services,Provisions,BIKOLD,30/01/2023,367.88
"Communities, Customer & Commercial Services",Sport & Leisure,Supplies & Services,Provisions,BIKOLD,30/01/2023,154.35
"Communities, Customer & Commercial Services",Sport & Leisure,Supplies & Services,Provisions,BIKOLD,30/01/2023,179.34
"Communities, Customer & Commercial Services",Sport & Leisure,Supplies & Services,Provisions,BIKOLD,30/01/2023,100.16
"Communities, Customer & Commercial Services",Sport & Leisure,Supplies & Services,Provisions,BIKOLD,30/01/2023,619.75
"Communities, Customer & Commercial Services",Sport & Leisure,Supplies & Services,Provisions,BIKOLD,30/01/2023,246.06
"Communities, Customer & Commercial Services",Sport & Leisure,Supplies & Services,Provisions,BIKOLD,30/01/2023,302.83
"Communities, Customer & Commercial Services",Sport & Leisure,Supplies & Services,Provisions,BIKOLD,30/01/2023,342.98
"Communities, Customer & Commercial Services",Sport & Leisure,Supplies & Services,Provisions,BIKOLD,30/01/2023,563.12
"Communities, Customer & Commercial Services",Sport & Leisure,Supplies & Services,Provisions,BIKOLD,30/01/2023,113.32
"Communities, Customer & Commercial Services",Sport & Leisure,Supplies & Services,Provisions,BIKOLD,30/01/2023,239.60
"Communities, Customer & Commercial Services",Sport & Leisure,Supplies & Services,Provisions,BIKOLD,30/01/2023,208.33
"Communities, Customer & Commercial Services",Sport & Leisure,Supplies & Services,Provisions,BIKOLD,30/01/2023,187.23
"Communities, Customer & Commercial Services",Sport & Leisure,Supplies & Services,Provisions,BIKOLD,30/01/2023,122.21
"Communities, Customer & Commercial Services",Sport & Leisure,Supplies & Services,Provisions,BIKOLD,30/01/2023,190.37
"Communities, Customer & Commercial Services",Sport & Leisure,Supplies & Services,Provisions,BIKOLD,30/01/2023,342.92
"Communities, Customer & Commercial Services",Sport & Leisure,Supplies & Services,Provisions,BIKOLD,30/01/2023,321.62
"Communities, Customer & Commercial Services",Sport & Leisure,Supplies & Services,Provisions,BIKOLD,30/01/2023,211.76
"Communities, Customer & Commercial Services",Sport & Leisure,Supplies & Services,Provisions,BIKOLD,30/01/2023,780.64
"Communities, Customer & Commercial Services",Sport & Leisure,Supplies & Services,Provisions,BIKOLD,30/01/2023,192.04
"Communities, Customer & Commercial Services",Sport & Leisure,Supplies & Services,Provisions,BIKOLD,30/01/2023,295.19
"Communities, Customer & Commercial Services",Sport & Leisure,Supplies & Services,Provisions,BIKOLD,30/01/2023,376.73
"Communities, Customer & Commercial Services",Sport & Leisure,Supplies & Services,Provisions,BIKOLD,30/01/2023,126.96
"Communities, Customer & Commercial Services",Sport & Leisure,Supplies & Services,Provisions,BIKOLD,30/01/2023,128.42
"Communities, Customer & Commercial Services",Sport & Leisure,Supplies & Services,Provisions,BIKOLD,30/01/2023,171.49
"Communities, Customer & Commercial Services",Sport & Leisure,Supplies & Services,Provisions,BIKOLD,30/01/2023,187.84
"Communities, Customer & Commercial Services",Sport & Leisure,Supplies & Services,Provisions,BIKOLD,30/01/2023,434.48
"Communities, Customer & Commercial Services",Sport & Leisure,Supplies & Services,Provisions,BIKOLD,30/01/2023,391.79
"Communities, Customer & Commercial Services",Sport & Leisure,Supplies & Services,Provisions,BIKOLD,30/01/2023,161.47
"Communities, Customer & Commercial Services",Sport & Leisure,Supplies & Services,Provisions,BIKOLD,30/01/2023,103.99
"Communities, Customer & Commercial Services",Sport & Leisure,Supplies & Services,Provisions,BIKOLD,30/01/2023,130.05
"Communities, Customer & Commercial Services",Sport & Leisure,Supplies & Services,Provisions,BIKOLD,30/01/2023,178.31
"Communities, Customer & Commercial Services",Sport & Leisure,Supplies & Services,Provisions,BIKOLD,30/01/2023,-137.12
"Communities, Customer & Commercial Services",Sport & Leisure,Supplies & Services,Provisions,BIKOLD,30/01/2023,256.37
"Communities, Customer & Commercial Services",Sport & Leisure,Supplies & Services,Provisions,BIKOLD,30/01/2023,169.26
"Communities, Customer & Commercial Services",Sport & Leisure,Supplies & Services,Provisions,BIKOLD,30/01/2023,295.32
"Communities, Customer & Commercial Services",Sport & Leisure,Supplies & Services,Provisions,BIKOLD,30/01/2023,192.23
"Communities, Customer & Commercial Services",Sport & Leisure,Supplies & Services,Provisions,BIKOLD,30/01/2023,196.19
"Communities, Customer & Commercial Services",Sport & Leisure,Supplies & Services,Provisions,BIKOLD,30/01/2023,171.49
"Communities, Customer & Commercial Services",Sport & Leisure,Supplies & Services,Provisions,BIKOLD,30/01/2023,113.18
"Communities, Customer & Commercial Services",Sport & Leisure,Supplies & Services,Provisions,BIKOLD,30/01/2023,143.52
"Communities, Customer & Commercial Services",Sport & Leisure,Supplies & Services,Provisions,BIKOLD,30/01/2023,262.40
"Communities, Customer & Commercial Services",Sport & Leisure,Supplies & Services,Provisions,BIKOLD,30/01/2023,263.42
"Communities, Customer & Commercial Services",Sport & Leisure,Supplies & Services,Provisions,BIKOLD,30/01/2023,110.63
"Communities, Customer & Commercial Services",Sport & Leisure,Supplies & Services,Provisions,BIKOLD,30/01/2023,221.24
"Communities, Customer & Commercial Services",Sport & Leisure,Supplies & Services,Provisions,BIKOLD,30/01/2023,102.00
"Communities, Customer & Commercial Services",Sport & Leisure,Supplies & Services,Provisions,BIKOLD,30/01/2023,111.19
"Communities, Customer & Commercial Services",Sport & Leisure,Supplies & Services,Provisions,BIKOLD,30/01/2023,202.31
"Communities, Customer & Commercial Services",Sport & Leisure,Supplies & Services,Provisions,BIKOLD,30/01/2023,136.58
"Communities, Customer & Commercial Services",Sport & Leisure,Supplies & Services,Provisions,BIKOLD,30/01/2023,224.13
"Communities, Customer & Commercial Services",Sport & Leisure,Supplies & Services,Provisions,BIKOLD,30/01/2023,286.61
"Communities, Customer & Commercial Services",Sport & Leisure,Supplies & Services,Provisions,BIKOLD,30/01/2023,235.18
"Communities, Customer & Commercial Services",Sport & Leisure,Supplies & Services,Provisions,BIKOLD,30/01/2023,587.20
"Communities, Customer & Commercial Services",Sport & Leisure,Supplies & Services,Provisions,BIKOLD,20/01/2023,609.45
"Communities, Customer & Commercial Services",Sport & Leisure,Supplies & Services,Provisions,BIKOLD,20/01/2023,169.01
"Communities, Customer & Commercial Services",Sport & Leisure,Supplies & Services,Provisions,BIKOLD,20/01/2023,155.13
"Communities, Customer & Commercial Services",Sport & Leisure,Supplies & Services,Provisions,BIKOLD,30/01/2023,148.60
"Communities, Customer & Commercial Services",Sport & Leisure,Supplies & Services,Provisions,BIKOLD,30/01/2023,232.04
"Communities, Customer & Commercial Services",Sport & Leisure,Supplies & Services,Provisions,BIKOLD,30/01/2023,287.66
"Communities, Customer & Commercial Services",Sport & Leisure,Supplies & Services,Provisions,BIKOLD,30/01/2023,181.59
"Communities, Customer & Commercial Services",Sport & Leisure,Supplies & Services,Provisions,BIKOLD,30/01/2023,169.09
"Communities, Customer & Commercial Services",Sport & Leisure,Supplies & Services,Provisions,BIKOLD,30/01/2023,428.26
"Communities, Customer & Commercial Services",Sport & Leisure,Supplies & Services,Provisions,BIKOLD,30/01/2023,136.03
"Communities, Customer & Commercial Services",Sport & Leisure,Supplies & Services,Provisions,BIKOLD,30/01/2023,449.61
"Communities, Customer & Commercial Services",Sport & Leisure,Supplies & Services,Provisions,BIKOLD,30/01/2023,243.84
"Communities, Customer & Commercial Services",Sport & Leisure,Supplies & Services,Provisions,BIKOLD,20/01/2023,275.86
"Communities, Customer & Commercial Services",Sport & Leisure,Supplies & Services,Provisions,BIKOLD,20/01/2023,323.97
"Communities, Customer & Commercial Services",Sport & Leisure,Supplies & Services,Provisions,BIKOLD,20/01/2023,179.90
"Communities, Customer & Commercial Services",Sport & Leisure,Supplies & Services,Provisions,BIKOLD,30/01/2023,209.49
"Communities, Customer & Commercial Services",Sport & Leisure,Supplies & Services,Provisions,BIKOLD,30/01/2023,280.11
"Communities, Customer & Commercial Services",Sport & Leisure,Supplies & Services,Provisions,BIKOLD,30/01/2023,283.47
"Communities, Customer & Commercial Services",Sport & Leisure,Supplies & Services,Provisions,BIKOLD,20/01/2023,253.68
"Communities, Customer & Commercial Services",Sport & Leisure,Supplies & Services,Provisions,BIKOLD,20/01/2023,175.45
"Communities, Customer & Commercial Services",Sport & Leisure,Supplies & Services,Provisions,BIKOLD,20/01/2023,112.70
"Communities, Customer & Commercial Services",Sport & Leisure,Supplies & Services,Provisions,BIKOLD,20/01/2023,100.79
"Communities, Customer & Commercial Services",Sport & Leisure,Supplies & Services,Provisions,BIKOLD,20/01/2023,102.33
"Communities, Customer & Commercial Services",Sport & Leisure,Supplies & Services,Provisions,BIKOLD,20/01/2023,102.32
"Communities, Customer & Commercial Services",Sport & Leisure,Supplies & Services,Provisions,BIKOLD,20/01/2023,414.33
"Communities, Customer & Commercial Services",Sport & Leisure,Supplies & Services,Provisions,BIKOLD,30/01/2023,231.11
"Communities, Customer & Commercial Services",Sport & Leisure,Supplies & Services,Provisions,BIKOLD,30/01/2023,167.74
"Communities, Customer & Commercial Services",Sport & Leisure,Supplies & Services,Provisions,BIKOLD,30/01/2023,182.08
"Communities, Customer & Commercial Services",Sport & Leisure,Supplies & Services,Provisions,BIKOLD,20/01/2023,103.52
"Communities, Customer & Commercial Services",Sport & Leisure,Supplies & Services,Provisions,BIKOLD,20/01/2023,191.84
"Communities, Customer & Commercial Services",Sport & Leisure,Supplies & Services,Provisions,BIKOLD,20/01/2023,731.31
"Communities, Customer & Commercial Services",Sport & Leisure,Supplies & Services,Provisions,BIKOLD,20/01/2023,242.77
"Communities, Customer & Commercial Services",Sport & Leisure,Supplies & Services,Provisions,BIKOLD,20/01/2023,327.22
"Communities, Customer & Commercial Services",Sport & Leisure,Supplies & Services,Provisions,BIKOLD,20/01/2023,214.88
"Communities, Customer & Commercial Services",Sport & Leisure,Supplies & Services,Provisions,BIKOLD,20/01/2023,186.30
"Communities, Customer & Commercial Services",Sport & Leisure,Supplies & Services,Provisions,BIKOLD,20/01/2023,117.44
"Communities, Customer & Commercial Services",Sport & Leisure,Supplies & Services,Provisions,BIKOLD,20/01/2023,615.45
"Communities, Customer & Commercial Services",Sport & Leisure,Supplies & Services,Provisions,BIKOLD,20/01/2023,308.75
"Communities, Customer & Commercial Services",Sport & Leisure,Supplies & Services,Provisions,BIKOLD,20/01/2023,148.19
"Communities, Customer & Commercial Services",Sport & Leisure,Supplies & Services,Provisions,BIKOLD,20/01/2023,170.63
"Communities, Customer & Commercial Services",Sport & Leisure,Supplies & Services,Provisions,BIKOLD,20/01/2023,361.89
"Communities, Customer & Commercial Services",Sport & Leisure,Supplies & Services,Provisions,BIKOLD,20/01/2023,169.38
"Communities, Customer & Commercial Services",Sport & Leisure,Supplies & Services,Provisions,BIKOLD,20/01/2023,206.53
"Communities, Customer & Commercial Services",Sport & Leisure,Supplies & Services,Provisions,BIKOLD,20/01/2023,221.92
"Communities, Customer & Commercial Services",Sport & Leisure,Supplies & Services,Provisions,BIKOLD,20/01/2023,204.88
"Communities, Customer & Commercial Services",Sport & Leisure,Supplies & Services,Provisions,BIKOLD,20/01/2023,191.85
"Communities, Customer & Commercial Services",Sport & Leisure,Supplies & Services,Provisions,BIKOLD,20/01/2023,154.33
"Communities, Customer & Commercial Services",Sport & Leisure,Supplies & Services,Provisions,BIKOLD,20/01/2023,136.59
"Communities, Customer & Commercial Services",Sport & Leisure,Supplies & Services,Provisions,BIKOLD,20/01/2023,248.50
"Communities, Customer & Commercial Services",Sport & Leisure,Supplies & Services,Provisions,BIKOLD,20/01/2023,129.04
"Communities, Customer & Commercial Services",Sport & Leisure,Supplies & Services,Provisions,BIKOLD,20/01/2023,202.97
"Communities, Customer & Commercial Services",Sport & Leisure,Supplies & Services,Provisions,BIKOLD,20/01/2023,103.16
"Communities, Customer & Commercial Services",Sport & Leisure,Supplies & Services,Provisions,BIKOLD,20/01/2023,106.53
"Communities, Customer & Commercial Services",Sport & Leisure,Supplies & Services,Provisions,BIKOLD,20/01/2023,219.24
"Communities, Customer & Commercial Services",Sport & Leisure,Supplies & Services,Provisions,BIKOLD,20/01/2023,256.39
"Communities, Customer & Commercial Services",Sport & Leisure,Supplies & Services,Provisions,BIKOLD,20/01/2023,488.38
"Communities, Customer & Commercial Services",Sport & Leisure,Supplies & Services,Provisions,BIKOLD,20/01/2023,147.42
"Communities, Customer & Commercial Services",Sport & Leisure,Supplies & Services,Provisions,BIKOLD,20/01/2023,197.11
"Communities, Customer & Commercial Services",Sport & Leisure,Supplies & Services,Provisions,BIKOLD,20/01/2023,454.28
"Communities, Customer & Commercial Services",Sport & Leisure,Supplies & Services,Provisions,BIKOLD,20/01/2023,330.61
"Communities, Customer & Commercial Services",Sport & Leisure,Supplies & Services,Provisions,BIKOLD,20/01/2023,447.37
"Communities, Customer & Commercial Services",Sport & Leisure,Supplies & Services,Provisions,BIKOLD,20/01/2023,168.80
"Communities, Customer & Commercial Services",Sport & Leisure,Supplies & Services,Provisions,BIKOLD,20/01/2023,261.89
"Communities, Customer & Commercial Services",Sport & Leisure,Supplies & Services,Provisions,BIKOLD,20/01/2023,127.81
"Communities, Customer & Commercial Services",Sport & Leisure,Supplies & Services,Provisions,BIKOLD,20/01/2023,243.30
"Communities, Customer & Commercial Services",Sport & Leisure,Supplies & Services,Provisions,BIKOLD,20/01/2023,309.44
"Communities, Customer & Commercial Services",Sport & Leisure,Supplies & Services,Provisions,BIKOLD,20/01/2023,142.66
"Communities, Customer & Commercial Services",Sport & Leisure,Supplies & Services,Provisions,BIKOLD,20/01/2023,115.19
"Communities, Customer & Commercial Services",Sport & Leisure,Supplies & Services,Provisions,BIKOLD,20/01/2023,215.27
"Communities, Customer & Commercial Services",Sport & Leisure,Supplies & Services,Provisions,BIKOLD,20/01/2023,126.68
"Communities, Customer & Commercial Services",Sport & Leisure,Supplies & Services,Provisions,BIKOLD,20/01/2023,221.34
"Communities, Customer & Commercial Services",Sport & Leisure,Supplies & Services,Provisions,BIKOLD,20/01/2023,116.35
"Communities, Customer & Commercial Services",Sport & Leisure,Supplies & Services,Provisions,BIKOLD,20/01/2023,147.63
"Communities, Customer & Commercial Services",Sport & Leisure,Supplies & Services,Provisions,BIKOLD,20/01/2023,232.35
"Communities, Customer & Commercial Services",Sport & Leisure,Supplies & Services,Provisions,BIKOLD,20/01/2023,183.12
"Communities, Customer & Commercial Services",Sport & Leisure,Supplies & Services,Provisions,BIKOLD,20/01/2023,387.14
"Communities, Customer & Commercial Services",Sport & Leisure,Supplies & Services,Provisions,BIKOLD,20/01/2023,146.84
"Communities, Customer & Commercial Services",Sport & Leisure,Supplies & Services,Provisions,BIKOLD,20/01/2023,175.47
"Communities, Customer & Commercial Services",Sport & Leisure,Supplies & Services,Provisions,BIKOLD,20/01/2023,367.01
"Communities, Customer & Commercial Services",Sport & Leisure,Supplies & Services,Provisions,BIKOLD,20/01/2023,334.87
"Communities, Customer & Commercial Services",Sport & Leisure,Supplies & Services,Provisions,BIKOLD,20/01/2023,206.15
"Communities, Customer & Commercial Services",Sport & Leisure,Supplies & Services,Provisions,BIKOLD,20/01/2023,311.96
"Communities, Customer & Commercial Services",Sport & Leisure,Supplies & Services,Provisions,BIKOLD,20/01/2023,305.34
"Communities, Customer & Commercial Services",Sport & Leisure,Supplies & Services,Provisions,BIKOLD,20/01/2023,327.04
"Communities, Customer & Commercial Services",Sport & Leisure,Supplies & Services,Provisions,BIKOLD,20/01/2023,248.52
"Communities, Customer & Commercial Services",Sport & Leisure,Supplies & Services,Provisions,BIKOLD,20/01/2023,118.41
"Communities, Customer & Commercial Services",Sport & Leisure,Supplies & Services,Provisions,BIKOLD,20/01/2023,202.78
"Communities, Customer & Commercial Services",Sport & Leisure,Supplies & Services,Provisions,BIKOLD,20/01/2023,364.24
"Communities, Customer & Commercial Services",Sport & Leisure,Supplies & Services,Provisions,BIKOLD,20/01/2023,192.42
"Communities, Customer & Commercial Services",Sport & Leisure,Supplies & Services,Provisions,BIKOLD,20/01/2023,179.52
"Communities, Customer & Commercial Services",Sport & Leisure,Supplies & Services,Provisions,BIKOLD,20/01/2023,292.30
"Communities, Customer & Commercial Services",Sport & Leisure,Supplies & Services,Provisions,BIKOLD,20/01/2023,360.49
"Communities, Customer & Commercial Services",Sport & Leisure,Supplies & Services,Provisions,BIKOLD,20/01/2023,410.18
"Communities, Customer & Commercial Services",Sport & Leisure,Supplies & Services,Provisions,BIKOLD,20/01/2023,130.69
"Communities, Customer & Commercial Services",Sport & Leisure,Supplies & Services,Provisions,BIKOLD,20/01/2023,220.04
"Communities, Customer & Commercial Services",Sport & Leisure,Supplies & Services,Provisions,BIKOLD,20/01/2023,379.60
"Communities, Customer & Commercial Services",Sport & Leisure,Supplies & Services,Provisions,BIKOLD,20/01/2023,217.61
"Communities, Customer & Commercial Services",Sport & Leisure,Supplies & Services,Provisions,BIKOLD,20/01/2023,135.67
"Communities, Customer & Commercial Services",Sport & Leisure,Supplies & Services,Provisions,BIKOLD,20/01/2023,100.35
"Communities, Customer & Commercial Services",Sport & Leisure,Supplies & Services,Provisions,BIKOLD,20/01/2023,105.69
"Communities, Customer & Commercial Services",Sport & Leisure,Supplies & Services,Provisions,BIKOLD,20/01/2023,312.64
"Communities, Customer & Commercial Services",Sport & Leisure,Supplies & Services,Provisions,BIKOLD,20/01/2023,154.64
"Communities, Customer & Commercial Services",Sport & Leisure,Supplies & Services,Provisions,BIKOLD,20/01/2023,104.96
"Communities, Customer & Commercial Services",Sport & Leisure,Supplies & Services,Provisions,BIKOLD,20/01/2023,644.19
"Communities, Customer & Commercial Services",Sport & Leisure,Supplies & Services,Provisions,BIKOLD,20/01/2023,119.23
"Communities, Customer & Commercial Services",Sport & Leisure,Supplies & Services,Provisions,BIKOLD,20/01/2023,620.29
"Communities, Customer & Commercial Services",Sport & Leisure,Supplies & Services,Provisions,BIKOLD,20/01/2023,342.20
"Communities, Customer & Commercial Services",Sport & Leisure,Supplies & Services,Provisions,BIKOLD,20/01/2023,164.50
"Communities, Customer & Commercial Services",Sport & Leisure,Supplies & Services,Provisions,BIKOLD,20/01/2023,194.54
"Communities, Customer & Commercial Services",Sport & Leisure,Supplies & Services,Provisions,BIKOLD,20/01/2023,103.68
"Communities, Customer & Commercial Services",Sport & Leisure,Supplies & Services,Provisions,BIKOLD,20/01/2023,459.73
"Communities, Customer & Commercial Services",Sport & Leisure,Supplies & Services,Provisions,BIKOLD,20/01/2023,234.25
"Communities, Customer & Commercial Services",Sport & Leisure,Supplies & Services,Provisions,BIKOLD,20/01/2023,120.01
"Communities, Customer & Commercial Services",Sport & Leisure,Supplies & Services,Provisions,BIKOLD,20/01/2023,360.51
"Communities, Customer & Commercial Services",Sport & Leisure,Supplies & Services,Provisions,BIKOLD,20/01/2023,102.85
"Communities, Customer & Commercial Services",Sport & Leisure,Supplies & Services,Provisions,BIKOLD,20/01/2023,192.41
"Communities, Customer & Commercial Services",Sport & Leisure,Supplies & Services,Provisions,BIKOLD,20/01/2023,147.36
"Communities, Customer & Commercial Services",Sport & Leisure,Supplies & Services,Provisions,BIKOLD,20/01/2023,139.92
"Communities, Customer & Commercial Services",Sport & Leisure,Supplies & Services,Provisions,BIKOLD,20/01/2023,106.35
"Communities, Customer & Commercial Services",Sport & Leisure,Supplies & Services,Provisions,BIKOLD,20/01/2023,229.41
"Communities, Customer & Commercial Services",Sport & Leisure,Supplies & Services,Provisions,BIKOLD,12/01/2023,120.88
"Communities, Customer & Commercial Services",Sport & Leisure,Supplies & Services,Provisions,BIKOLD,12/01/2023,128.80
"Communities, Customer & Commercial Services",Sport & Leisure,Supplies & Services,Provisions,BIKOLD,20/01/2023,361.75
"Communities, Customer & Commercial Services",Sport & Leisure,Supplies & Services,Provisions,BIKOLD,20/01/2023,151.24
"Communities, Customer & Commercial Services",Sport & Leisure,Supplies & Services,Provisions,BIKOLD,20/01/2023,301.84
"Communities, Customer & Commercial Services",Sport & Leisure,Supplies & Services,Provisions,BIKOLD,20/01/2023,165.55
"Communities, Customer & Commercial Services",Sport & Leisure,Supplies & Services,Provisions,BIKOLD,12/01/2023,118.01
"Communities, Customer & Commercial Services",Sport & Leisure,Supplies & Services,Provisions,BIKOLD,12/01/2023,227.09
"Communities, Customer & Commercial Services",Sport & Leisure,Supplies & Services,Provisions,BIKOLD,12/01/2023,388.25
"Communities, Customer & Commercial Services",Sport & Leisure,Supplies & Services,Provisions,BIKOLD,12/01/2023,102.51
"Communities, Customer & Commercial Services",Sport & Leisure,Supplies & Services,Provisions,BIKOLD,12/01/2023,183.99
"Communities, Customer & Commercial Services",Sport & Leisure,Supplies & Services,Provisions,BIKOLD,12/01/2023,121.62
"Communities, Customer & Commercial Services",Sport & Leisure,Supplies & Services,Provisions,BIKOLD,20/01/2023,210.56
"Communities, Customer & Commercial Services",Sport & Leisure,Supplies & Services,Provisions,BIKOLD,20/01/2023,233.09
"Communities, Customer & Commercial Services",Sport & Leisure,Supplies & Services,Provisions,BIKOLD,12/01/2023,197.85
"Communities, Customer & Commercial Services",Sport & Leisure,Supplies & Services,Provisions,BIKOLD,12/01/2023,257.92
"Communities, Customer & Commercial Services",Sport & Leisure,Supplies & Services,Provisions,BIKOLD,12/01/2023,388.48
"Communities, Customer & Commercial Services",Sport & Leisure,Supplies & Services,Provisions,BIKOLD,12/01/2023,284.75
"Communities, Customer & Commercial Services",Sport & Leisure,Supplies & Services,Provisions,BIKOLD,12/01/2023,121.95
"Communities, Customer & Commercial Services",Sport & Leisure,Supplies & Services,Provisions,BIKOLD,12/01/2023,140.78
"Communities, Customer & Commercial Services",Sport & Leisure,Supplies & Services,Provisions,BIKOLD,12/01/2023,257.72
"Communities, Customer & Commercial Services",Sport & Leisure,Supplies & Services,Provisions,BIKOLD,12/01/2023,144.41
"Communities, Customer & Commercial Services",Sport & Leisure,Supplies & Services,Provisions,BIKOLD,20/01/2023,367.68
"Communities, Customer & Commercial Services",Sport & Leisure,Supplies & Services,Provisions,BIKOLD,20/01/2023,153.81
"Communities, Customer & Commercial Services",Sport & Leisure,Supplies & Services,Provisions,BIKOLD,12/01/2023,447.37
"Communities, Customer & Commercial Services",Sport & Leisure,Supplies & Services,Provisions,BIKOLD,12/01/2023,319.30
"Communities, Customer & Commercial Services",Sport & Leisure,Supplies & Services,Provisions,BIKOLD,12/01/2023,184.63
"Communities, Customer & Commercial Services",Sport & Leisure,Supplies & Services,Provisions,BIKOLD,12/01/2023,265.87
"Communities, Customer & Commercial Services",Sport & Leisure,Supplies & Services,Provisions,BIKOLD,12/01/2023,118.05
"Communities, Customer & Commercial Services",Sport & Leisure,Supplies & Services,Provisions,BIKOLD,12/01/2023,130.82
"Communities, Customer & Commercial Services",Sport & Leisure,Supplies & Services,Provisions,BIKOLD,12/01/2023,148.77
"Communities, Customer & Commercial Services",Sport & Leisure,Supplies & Services,Provisions,BIKOLD,12/01/2023,143.57
"Communities, Customer & Commercial Services",Sport & Leisure,Supplies & Services,Provisions,BIKOLD,12/01/2023,133.35
"Communities, Customer & Commercial Services",Sport & Leisure,Supplies & Services,Provisions,BIKOLD,12/01/2023,302.44
"Communities, Customer & Commercial Services",Sport & Leisure,Supplies & Services,Provisions,BIKOLD,12/01/2023,345.80
"Communities, Customer & Commercial Services",Sport & Leisure,Supplies & Services,Provisions,BIKOLD,12/01/2023,110.66
"Communities, Customer & Commercial Services",Sport & Leisure,Supplies & Services,Provisions,BIKOLD,12/01/2023,198.47
"Communities, Customer & Commercial Services",Sport & Leisure,Supplies & Services,Provisions,BIKOLD,12/01/2023,124.63
"Communities, Customer & Commercial Services",Sport & Leisure,Supplies & Services,Provisions,BIKOLD,12/01/2023,168.11
"Communities, Customer & Commercial Services",Sport & Leisure,Supplies & Services,Provisions,BIKOLD,12/01/2023,250.03
"Communities, Customer & Commercial Services",Sport & Leisure,Supplies & Services,Provisions,BIKOLD,12/01/2023,125.05
"Communities, Customer & Commercial Services",Sport & Leisure,Supplies & Services,Provisions,BIKOLD,12/01/2023,109.58
"Communities, Customer & Commercial Services",Sport & Leisure,Supplies & Services,Provisions,BIKOLD,12/01/2023,150.18
"Communities, Customer & Commercial Services",Sport & Leisure,Supplies & Services,Provisions,BIKOLD,12/01/2023,203.98
"Communities, Customer & Commercial Services",Sport & Leisure,Supplies & Services,Provisions,BIKOLD,12/01/2023,247.24
"Communities, Customer & Commercial Services",Sport & Leisure,Supplies & Services,Provisions,BIKOLD,12/01/2023,106.01
"Communities, Customer & Commercial Services",Sport & Leisure,Supplies & Services,Provisions,BIKOLD,12/01/2023,220.61
"Communities, Customer & Commercial Services",Sport & Leisure,Supplies & Services,Provisions,BIKOLD,12/01/2023,135.82
"Communities, Customer & Commercial Services",Sport & Leisure,Supplies & Services,Provisions,BIKOLD,12/01/2023,339.11
"Communities, Customer & Commercial Services",Sport & Leisure,Supplies & Services,Provisions,BIKOLD,12/01/2023,115.64
"Communities, Customer & Commercial Services",Sport & Leisure,Supplies & Services,Provisions,BIKOLD,12/01/2023,242.31
"Communities, Customer & Commercial Services",Sport & Leisure,Supplies & Services,Provisions,BIKOLD,12/01/2023,283.48
"Communities, Customer & Commercial Services",Sport & Leisure,Supplies & Services,Provisions,BIKOLD,12/01/2023,147.94
"Communities, Customer & Commercial Services",Sport & Leisure,Supplies & Services,Provisions,BIKOLD,12/01/2023,145.78
"Communities, Customer & Commercial Services",Sport & Leisure,Supplies & Services,Provisions,BIKOLD,12/01/2023,138.91
"Communities, Customer & Commercial Services",Sport & Leisure,Supplies & Services,Provisions,BIKOLD,12/01/2023,130.32
"Communities, Customer & Commercial Services",Sport & Leisure,Supplies & Services,Provisions,BIKOLD,12/01/2023,302.87
"Communities, Customer & Commercial Services",Sport & Leisure,Supplies & Services,Provisions,BIKOLD,12/01/2023,217.08
"Communities, Customer & Commercial Services",Sport & Leisure,Supplies & Services,Provisions,BIKOLD,12/01/2023,262.48
"Communities, Customer & Commercial Services",Sport & Leisure,Supplies & Services,Provisions,BIKOLD,12/01/2023,186.85
"Communities, Customer & Commercial Services",Sport & Leisure,Supplies & Services,Provisions,BIKOLD,12/01/2023,132.24
"Communities, Customer & Commercial Services",Sport & Leisure,Supplies & Services,Provisions,BIKOLD,12/01/2023,-106.12
"Communities, Customer & Commercial Services",Sport & Leisure,Supplies & Services,Provisions,BIKOLD,12/01/2023,141.08
"Communities, Customer & Commercial Services",Sport & Leisure,Supplies & Services,Provisions,BIKOLD,12/01/2023,309.65
"Communities, Customer & Commercial Services",Sport & Leisure,Supplies & Services,Provisions,BIKOLD,12/01/2023,122.75
"Communities, Customer & Commercial Services",Sport & Leisure,Supplies & Services,Provisions,BIKOLD,12/01/2023,203.93
"Communities, Customer & Commercial Services",Sport & Leisure,Supplies & Services,Provisions,BIKOLD,09/01/2023,305.84
"Communities, Customer & Commercial Services",Sport & Leisure,Supplies & Services,Provisions,BIKOLD,09/01/2023,496.13
"Communities, Customer & Commercial Services",Sport & Leisure,Supplies & Services,Provisions,BIKOLD,09/01/2023,283.32
"Communities, Customer & Commercial Services",Sport & Leisure,Supplies & Services,Provisions,BIKOLD,12/01/2023,100.93
"Communities, Customer & Commercial Services",Sport & Leisure,Supplies & Services,Provisions,BIKOLD,12/01/2023,119.63
"Communities, Customer & Commercial Services",Sport & Leisure,Supplies & Services,Provisions,BIKOLD,09/01/2023,707.99
"Communities, Customer & Commercial Services",Sport & Leisure,Supplies & Services,Provisions,BIKOLD,12/01/2023,288.35
"Communities, Customer & Commercial Services",Sport & Leisure,Supplies & Services,Provisions,BIKOLD,12/01/2023,353.40
"Communities, Customer & Commercial Services",Sport & Leisure,Supplies & Services,Provisions,BIKOLD,12/01/2023,281.72
"Communities, Customer & Commercial Services",Sport & Leisure,Supplies & Services,Provisions,BIKOLD,12/01/2023,421.18
"Communities, Customer & Commercial Services",Sport & Leisure,Supplies & Services,Provisions,BIKOLD,09/01/2023,204.61
"Communities, Customer & Commercial Services",Sport & Leisure,Supplies & Services,Provisions,BIKOLD,09/01/2023,464.59
"Communities, Customer & Commercial Services",Sport & Leisure,Supplies & Services,Provisions,BIKOLD,12/01/2023,243.80
"Communities, Customer & Commercial Services",Sport & Leisure,Supplies & Services,Provisions,BIKOLD,12/01/2023,165.43
"Communities, Customer & Commercial Services",Sport & Leisure,Supplies & Services,Provisions,BIKOLD,12/01/2023,184.08
"Communities, Customer & Commercial Services",Sport & Leisure,Supplies & Services,Provisions,BIKOLD,12/01/2023,360.76
"Communities, Customer & Commercial Services",Sport & Leisure,Supplies & Services,Provisions,BIKOLD,12/01/2023,346.75
"Communities, Customer & Commercial Services",Sport & Leisure,Supplies & Services,Provisions,BIKOLD,12/01/2023,284.57
"Communities, Customer & Commercial Services",Sport & Leisure,Supplies & Services,Provisions,BIKOLD,12/01/2023,248.32
"Communities, Customer & Commercial Services",Sport & Leisure,Supplies & Services,Provisions,BIKOLD,12/01/2023,302.06
"Communities, Customer & Commercial Services",Sport & Leisure,Supplies & Services,Provisions,BIKOLD,12/01/2023,257.07
"Communities, Customer & Commercial Services",Sport & Leisure,Supplies & Services,Provisions,BIKOLD,12/01/2023,163.22
"Communities, Customer & Commercial Services",Sport & Leisure,Supplies & Services,Provisions,BIKOLD,12/01/2023,306.85
"Communities, Customer & Commercial Services",Sport & Leisure,Supplies & Services,Provisions,BIKOLD,12/01/2023,217.11
"Communities, Customer & Commercial Services",Sport & Leisure,Supplies & Services,Provisions,BIKOLD,12/01/2023,185.45
"Communities, Customer & Commercial Services",Sport & Leisure,Supplies & Services,Provisions,BIKOLD,12/01/2023,322.75
"Communities, Customer & Commercial Services",Sport & Leisure,Supplies & Services,Provisions,BIKOLD,12/01/2023,328.16
"Communities, Customer & Commercial Services",Sport & Leisure,Supplies & Services,Provisions,BIKOLD,12/01/2023,123.82
"Communities, Customer & Commercial Services",Sport & Leisure,Supplies & Services,Provisions,BIKOLD,12/01/2023,104.88
"Communities, Customer & Commercial Services",Sport & Leisure,Supplies & Services,Provisions,BIKOLD,12/01/2023,118.81
"Communities, Customer & Commercial Services",Sport & Leisure,Supplies & Services,Provisions,BIKOLD,12/01/2023,173.32
"Communities, Customer & Commercial Services",Sport & Leisure,Supplies & Services,Provisions,BIKOLD,12/01/2023,141.99
"Communities, Customer & Commercial Services",Sport & Leisure,Supplies & Services,Provisions,BIKOLD,12/01/2023,307.57
"Communities, Customer & Commercial Services",Sport & Leisure,Supplies & Services,Provisions,BIKOLD,12/01/2023,371.33
"Communities, Customer & Commercial Services",Sport & Leisure,Supplies & Services,Provisions,BIKOLD,12/01/2023,493.56
"Communities, Customer & Commercial Services",Sport & Leisure,Supplies & Services,Provisions,BIKOLD,12/01/2023,233.66
"Communities, Customer & Commercial Services",Sport & Leisure,Supplies & Services,Provisions,BIKOLD,12/01/2023,311.57
"Communities, Customer & Commercial Services",Sport & Leisure,Supplies & Services,Provisions,BIKOLD,12/01/2023,141.73
"Communities, Customer & Commercial Services",Sport & Leisure,Supplies & Services,Provisions,BIKOLD,12/01/2023,258.70
"Communities, Customer & Commercial Services",Sport & Leisure,Supplies & Services,Provisions,BIKOLD,12/01/2023,257.52
"Communities, Customer & Commercial Services",Sport & Leisure,Supplies & Services,Provisions,BIKOLD,12/01/2023,456.46
"Communities, Customer & Commercial Services",Sport & Leisure,Supplies & Services,Provisions,BIKOLD,12/01/2023,189.48
"Communities, Customer & Commercial Services",Sport & Leisure,Supplies & Services,Provisions,BIKOLD,12/01/2023,195.44
"Communities, Customer & Commercial Services",Sport & Leisure,Supplies & Services,Provisions,BIKOLD,12/01/2023,124.34
"Communities, Customer & Commercial Services",Sport & Leisure,Supplies & Services,Provisions,BIKOLD,12/01/2023,389.99
"Communities, Customer & Commercial Services",Sport & Leisure,Supplies & Services,Provisions,BIKOLD,12/01/2023,153.24
"Communities, Customer & Commercial Services",Sport & Leisure,Supplies & Services,Provisions,BIKOLD,12/01/2023,289.78
"Communities, Customer & Commercial Services",Sport & Leisure,Supplies & Services,Provisions,BIKOLD,12/01/2023,128.71
"Communities, Customer & Commercial Services",Sport & Leisure,Supplies & Services,Provisions,BIKOLD,12/01/2023,454.52
"Communities, Customer & Commercial Services",Sport & Leisure,Supplies & Services,Provisions,BIKOLD,12/01/2023,299.08
"Communities, Customer & Commercial Services",Sport & Leisure,Supplies & Services,Provisions,BIKOLD,12/01/2023,403.23
"Communities, Customer & Commercial Services",Sport & Leisure,Supplies & Services,Provisions,BIKOLD,12/01/2023,298.40
"Communities, Customer & Commercial Services",Sport & Leisure,Supplies & Services,Provisions,BIKOLD,12/01/2023,288.97
"Communities, Customer & Commercial Services",Sport & Leisure,Supplies & Services,Provisions,BIKOLD,12/01/2023,207.38
"Communities, Customer & Commercial Services",Sport & Leisure,Supplies & Services,Provisions,BIKOLD,09/01/2023,139.35
"Communities, Customer & Commercial Services",Sport & Leisure,Supplies & Services,Provisions,BIKOLD,09/01/2023,235.80
"Communities, Customer & Commercial Services",Sport & Leisure,Supplies & Services,Provisions,BIKOLD,12/01/2023,439.29
"Communities, Customer & Commercial Services",Sport & Leisure,Supplies & Services,Provisions,BIKOLD,12/01/2023,107.77
"Communities, Customer & Commercial Services",Sport & Leisure,Supplies & Services,Provisions,BIKOLD,12/01/2023,216.02
"Communities, Customer & Commercial Services",Sport & Leisure,Supplies & Services,Provisions,BIKOLD,12/01/2023,110.17
"Communities, Customer & Commercial Services",Sport & Leisure,Supplies & Services,Provisions,BIKOLD,09/01/2023,322.06
"Communities, Customer & Commercial Services",Sport & Leisure,Supplies & Services,Provisions,BIKOLD,09/01/2023,196.73
"Communities, Customer & Commercial Services",Sport & Leisure,Supplies & Services,Provisions,BIKOLD,09/01/2023,139.51
"Communities, Customer & Commercial Services",Sport & Leisure,Supplies & Services,Provisions,BIKOLD,09/01/2023,143.60
"Communities, Customer & Commercial Services",Sport & Leisure,Supplies & Services,Provisions,BIKOLD,09/01/2023,200.36
"Communities, Customer & Commercial Services",Sport & Leisure,Supplies & Services,Provisions,BIKOLD,09/01/2023,106.12
"Communities, Customer & Commercial Services",Sport & Leisure,Supplies & Services,Provisions,BIKOLD,12/01/2023,129.30
"Communities, Customer & Commercial Services",Sport & Leisure,Supplies & Services,Provisions,BIKOLD,12/01/2023,173.46
"Communities, Customer & Commercial Services",Sport & Leisure,Supplies & Services,Provisions,BIKOLD,12/01/2023,139.17
"Communities, Customer & Commercial Services",Sport & Leisure,Supplies & Services,Provisions,BIKOLD,09/01/2023,196.92
"Communities, Customer & Commercial Services",Sport & Leisure,Supplies & Services,Provisions,BIKOLD,09/01/2023,262.58
"Communities, Customer & Commercial Services",Sport & Leisure,Supplies & Services,Provisions,BIKOLD,09/01/2023,168.56
"Communities, Customer & Commercial Services",Sport & Leisure,Supplies & Services,Provisions,BIKOLD,09/01/2023,252.34
"Communities, Customer & Commercial Services",Sport & Leisure,Supplies & Services,Provisions,BIKOLD,09/01/2023,130.44
"Communities, Customer & Commercial Services",Sport & Leisure,Supplies & Services,Provisions,BIKOLD,12/01/2023,215.63
"Communities, Customer & Commercial Services",Sport & Leisure,Supplies & Services,Provisions,BIKOLD,12/01/2023,160.10
"Communities, Customer & Commercial Services",Sport & Leisure,Supplies & Services,Provisions,BIKOLD,12/01/2023,132.08
"Communities, Customer & Commercial Services",Sport & Leisure,Supplies & Services,Provisions,BIKOLD,12/01/2023,237.45
"Communities, Customer & Commercial Services",Sport & Leisure,Supplies & Services,Provisions,BIKOLD,09/01/2023,454.65
"Communities, Customer & Commercial Services",Sport & Leisure,Supplies & Services,Provisions,BIKOLD,09/01/2023,272.53
"Communities, Customer & Commercial Services",Sport & Leisure,Supplies & Services,Provisions,BIKOLD,09/01/2023,195.81
"Communities, Customer & Commercial Services",Sport & Leisure,Supplies & Services,Provisions,BIKOLD,09/01/2023,117.71
"Communities, Customer & Commercial Services",Sport & Leisure,Supplies & Services,Provisions,BIKOLD,09/01/2023,106.12
"Communities, Customer & Commercial Services",Sport & Leisure,Supplies & Services,Provisions,BIKOLD,09/01/2023,132.65
"Communities, Customer & Commercial Services",Sport & Leisure,Supplies & Services,Provisions,BIKOLD,12/01/2023,290.09
"Communities, Customer & Commercial Services",Sport & Leisure,Supplies & Services,Provisions,BIKOLD,09/01/2023,178.35
"Communities, Customer & Commercial Services",Sport & Leisure,Supplies & Services,Provisions,BIKOLD,09/01/2023,222.21
"Communities, Customer & Commercial Services",Sport & Leisure,Supplies & Services,Provisions,BIKOLD,09/01/2023,462.05
"Communities, Customer & Commercial Services",Sport & Leisure,Supplies & Services,Provisions,BIKOLD,09/01/2023,442.14
"Communities, Customer & Commercial Services",Sport & Leisure,Supplies & Services,Provisions,BIKOLD,09/01/2023,747.08
"Communities, Customer & Commercial Services",Sport & Leisure,Supplies & Services,Provisions,BIKOLD,09/01/2023,418.05
"Communities, Customer & Commercial Services",Sport & Leisure,Supplies & Services,Provisions,BIKOLD,09/01/2023,413.19
"Communities, Customer & Commercial Services",Sport & Leisure,Supplies & Services,Provisions,BIKOLD,09/01/2023,169.27
"Communities, Customer & Commercial Services",Sport & Leisure,Supplies & Services,Provisions,BIKOLD,09/01/2023,432.88
"Communities, Customer & Commercial Services",Sport & Leisure,Supplies & Services,Provisions,BIKOLD,09/01/2023,314.95
"Communities, Customer & Commercial Services",Sport & Leisure,Supplies & Services,Provisions,BIKOLD,09/01/2023,165.31
"Communities, Customer & Commercial Services",Sport & Leisure,Supplies & Services,Provisions,BIKOLD,09/01/2023,210.41
"Communities, Customer & Commercial Services",Sport & Leisure,Supplies & Services,Provisions,BIKOLD,09/01/2023,112.85
"Communities, Customer & Commercial Services",Sport & Leisure,Supplies & Services,Provisions,BIKOLD,09/01/2023,130.14
"Communities, Customer & Commercial Services",Sport & Leisure,Supplies & Services,Provisions,BIKOLD,09/01/2023,113.08
"Communities, Customer & Commercial Services",Sport & Leisure,Supplies & Services,Provisions,BIKOLD,09/01/2023,268.54
"Communities, Customer & Commercial Services",Sport & Leisure,Supplies & Services,Provisions,BIKOLD,09/01/2023,160.82
"Communities, Customer & Commercial Services",Sport & Leisure,Supplies & Services,Provisions,BIKOLD,09/01/2023,184.58
"Communities, Customer & Commercial Services",Sport & Leisure,Supplies & Services,Provisions,BIKOLD,09/01/2023,192.50
"Communities, Customer & Commercial Services",Sport & Leisure,Supplies & Services,Provisions,BIKOLD,09/01/2023,116.74
"Communities, Customer & Commercial Services",Sport & Leisure,Supplies & Services,Provisions,BIKOLD,09/01/2023,174.35
"Communities, Customer & Commercial Services",Sport & Leisure,Supplies & Services,Provisions,BIKOLD,09/01/2023,121.24
"Communities, Customer & Commercial Services",Sport & Leisure,Supplies & Services,Provisions,BIKOLD,09/01/2023,181.90
"Communities, Customer & Commercial Services",Sport & Leisure,Supplies & Services,Provisions,BIKOLD,09/01/2023,316.42
"Communities, Customer & Commercial Services",Sport & Leisure,Supplies & Services,Provisions,BIKOLD,09/01/2023,220.88
"Communities, Customer & Commercial Services",Sport & Leisure,Supplies & Services,Provisions,BIKOLD,09/01/2023,153.27
"Communities, Customer & Commercial Services",Sport & Leisure,Supplies & Services,Provisions,BIKOLD,09/01/2023,120.33
"Communities, Customer & Commercial Services",Sport & Leisure,Supplies & Services,Provisions,BIKOLD,09/01/2023,199.07
"Communities, Customer & Commercial Services",Sport & Leisure,Supplies & Services,Provisions,BIKOLD,09/01/2023,379.85
"Communities, Customer & Commercial Services",Sport & Leisure,Supplies & Services,Provisions,BIKOLD,09/01/2023,202.57
"Communities, Customer & Commercial Services",Sport & Leisure,Supplies & Services,Provisions,BIKOLD,09/01/2023,261.39
"Communities, Customer & Commercial Services",Sport & Leisure,Supplies & Services,Provisions,BIKOLD,09/01/2023,357.47
"Communities, Customer & Commercial Services",Sport & Leisure,Supplies & Services,Provisions,BIKOLD,09/01/2023,292.59
"Communities, Customer & Commercial Services",Sport & Leisure,Supplies & Services,Provisions,BIKOLD,09/01/2023,252.08
"Communities, Customer & Commercial Services",Sport & Leisure,Supplies & Services,Provisions,BIKOLD,09/01/2023,311.79
"Communities, Customer & Commercial Services",Sport & Leisure,Supplies & Services,Provisions,BIKOLD,09/01/2023,226.92
"Communities, Customer & Commercial Services",Sport & Leisure,Supplies & Services,Provisions,BIKOLD,12/01/2023,279.83
"Communities, Customer & Commercial Services",Sport & Leisure,Supplies & Services,Provisions,BIKOLD,12/01/2023,202.58
"Communities, Customer & Commercial Services",Sport & Leisure,Supplies & Services,Provisions,BIKOLD,12/01/2023,156.66
"Communities, Customer & Commercial Services",Sport & Leisure,Supplies & Services,Provisions,BIKOLD,12/01/2023,131.94
"Communities, Customer & Commercial Services",Sport & Leisure,Supplies & Services,Provisions,BIKOLD,12/01/2023,288.09
"Communities, Customer & Commercial Services",Sport & Leisure,Supplies & Services,Provisions,BIKOLD,09/01/2023,263.81
"Communities, Customer & Commercial Services",Sport & Leisure,Supplies & Services,Provisions,BIKOLD,09/01/2023,427.50
"Communities, Customer & Commercial Services",Sport & Leisure,Supplies & Services,Provisions,BIKOLD,09/01/2023,337.19
"Communities, Customer & Commercial Services",Sport & Leisure,Supplies & Services,Provisions,BIKOLD,09/01/2023,342.49
"Communities, Customer & Commercial Services",Sport & Leisure,Supplies & Services,Provisions,BIKOLD,09/01/2023,151.93
"Communities, Customer & Commercial Services",Sport & Leisure,Supplies & Services,Provisions,BIKOLD,09/01/2023,126.72
"Communities, Customer & Commercial Services",Sport & Leisure,Supplies & Services,Crockery/Hardware/Light Equip,E N CATERING EQUIPMENT AND SERVICES  LTD,18/01/2023,119.99
"Communities, Customer & Commercial Services",Sport & Leisure,Supplies & Services,Provisions,J S Catering Butchers,13/01/2023,120.50
"Communities, Customer & Commercial Services",Sport & Leisure,Supplies & Services,Provisions,J S Catering Butchers,13/01/2023,109.12
"Communities, Customer & Commercial Services",Sport & Leisure,Supplies & Services,Provisions,J S Catering Butchers,13/01/2023,108.08
"Communities, Customer & Commercial Services",Sport & Leisure,Supplies & Services,Provisions,J S Catering Butchers,13/01/2023,227.30
"Communities, Customer & Commercial Services",Sport & Leisure,Supplies & Services,Provisions,J S Catering Butchers,13/01/2023,191.30
"Communities, Customer & Commercial Services",Sport & Leisure,Supplies & Services,Provisions,J S Catering Butchers,13/01/2023,111.23
"Communities, Customer & Commercial Services",Sport & Leisure,Supplies & Services,Provisions,J S Catering Butchers,24/01/2023,153.05
"Communities, Customer & Commercial Services",Sport & Leisure,Supplies & Services,Provisions,J S Catering Butchers,24/01/2023,239.83
"Communities, Customer & Commercial Services",Sport & Leisure,Supplies & Services,Provisions,J S Catering Butchers,19/01/2023,108.00
"Communities, Customer & Commercial Services",Sport & Leisure,Supplies & Services,Provisions,J S Catering Butchers,19/01/2023,159.50
"Communities, Customer & Commercial Services",Sport & Leisure,Supplies & Services,Provisions,J S Catering Butchers,19/01/2023,110.40
"Communities, Customer & Commercial Services",Sport & Leisure,Supplies & Services,Provisions,J S Catering Butchers,24/01/2023,139.05
"Communities, Customer & Commercial Services",Sport & Leisure,Supplies & Services,Provisions,J S Catering Butchers,24/01/2023,127.25
"Communities, Customer & Commercial Services",Sport & Leisure,Supplies & Services,Provisions,J S Catering Butchers,24/01/2023,182.16
"Communities, Customer & Commercial Services",Sport & Leisure,Supplies & Services,Provisions,J S Catering Butchers,19/01/2023,124.08
"Communities, Customer & Commercial Services",Sport & Leisure,Supplies & Services,Provisions,J S Catering Butchers,19/01/2023,293.90
"Communities, Customer & Commercial Services",Sport & Leisure,Supplies & Services,Provisions,J S Catering Butchers,19/01/2023,101.35
"Communities, Customer & Commercial Services",Sport & Leisure,Supplies & Services,Provisions,J S Catering Butchers,19/01/2023,174.93
"Communities, Customer & Commercial Services",Sport & Leisure,Supplies & Services,Provisions,J S Catering Butchers,19/01/2023,112.00
"Communities, Customer & Commercial Services",Sport & Leisure,Supplies & Services,Provisions,J S Catering Butchers,19/01/2023,249.33
"Communities, Customer & Commercial Services",Sport & Leisure,Supplies & Services,Provisions,J S Catering Butchers,24/01/2023,131.09
"Communities, Customer & Commercial Services",Sport & Leisure,Supplies & Services,Provisions,J S Catering Butchers,24/01/2023,110.40
"Communities, Customer & Commercial Services",Sport & Leisure,Supplies & Services,Provisions,J S Catering Butchers,13/01/2023,108.08
"Communities, Customer & Commercial Services",Sport & Leisure,Supplies & Services,Provisions,J S Catering Butchers,13/01/2023,227.30
"Communities, Customer & Commercial Services",Sport & Leisure,Supplies & Services,Provisions,J S Catering Butchers,19/01/2023,163.40
"Communities, Customer & Commercial Services",Sport & Leisure,Supplies & Services,Provisions,J S Catering Butchers,19/01/2023,108.18
"Communities, Customer & Commercial Services",Sport & Leisure,Supplies & Services,Provisions,J S Catering Butchers,13/01/2023,111.23
"Communities, Customer & Commercial Services",Sport & Leisure,Supplies & Services,Provisions,J S Catering Butchers,13/01/2023,191.30
"Communities, Customer & Commercial Services",Sport & Leisure,Supplies & Services,Provisions,J S Catering Butchers,13/01/2023,120.50
"Communities, Customer & Commercial Services",Sport & Leisure,Supplies & Services,Provisions,J S Catering Butchers,13/01/2023,109.12
"Communities, Customer & Commercial Services",Sport & Leisure,Supplies & Services,Provisions,J S Catering Butchers,19/01/2023,177.30
"Communities, Customer & Commercial Services",Sport & Leisure,Supplies & Services,Provisions,J S Catering Butchers,24/01/2023,182.32
"Communities, Customer & Commercial Services",Sport & Leisure,Supplies & Services,Provisions,J S Catering Butchers,13/01/2023,224.40
"Communities, Customer & Commercial Services",Sport & Leisure,Supplies & Services,Provisions,J S Catering Butchers,13/01/2023,144.00
"Communities, Customer & Commercial Services",Sport & Leisure,Supplies & Services,Provisions,J S Catering Butchers,13/01/2023,112.88
"Communities, Customer & Commercial Services",Sport & Leisure,Supplies & Services,Provisions,J S Catering Butchers,13/01/2023,112.88
"Communities, Customer & Commercial Services",Sport & Leisure,Supplies & Services,Provisions,J S Catering Butchers,13/01/2023,144.00
"Communities, Customer & Commercial Services",Sport & Leisure,Supplies & Services,Provisions,J S Catering Butchers,13/01/2023,224.40
"Communities, Customer & Commercial Services",Sport & Leisure,Supplies & Services,Provisions,On A Roll,18/01/2023,337.50
"Communities, Customer & Commercial Services",Sport & Leisure,Supplies & Services,Provisions,On A Roll,18/01/2023,286.65
"Communities, Customer & Commercial Services",Sport & Leisure,Supplies & Services,Provisions,On A Roll,27/01/2023,270.00
"Communities, Customer & Commercial Services",Sport & Leisure,Supplies & Services,Provisions,R & COMPANY,16/01/2023,112.60
"Communities, Customer & Commercial Services",Sport & Leisure,Supplies & Services,Provisions,R & COMPANY,16/01/2023,130.23
"Communities, Customer & Commercial Services",Sport & Leisure,Supplies & Services,Provisions,R & COMPANY,16/01/2023,109.62
"Communities, Customer & Commercial Services",Sport & Leisure,Supplies & Services,Provisions,R & COMPANY,16/01/2023,122.32
"Communities, Customer & Commercial Services",Sport & Leisure,Supplies & Services,Provisions,R & COMPANY,16/01/2023,163.54
"Communities, Customer & Commercial Services",Sport & Leisure,Supplies & Services,Provisions,R & COMPANY,16/01/2023,213.78
"Communities, Customer & Commercial Services",Sport & Leisure,Supplies & Services,Provisions,R & COMPANY,24/01/2023,103.77
"Communities, Customer & Commercial Services",Sport & Leisure,Supplies & Services,Provisions,R & COMPANY,24/01/2023,116.29
"Communities, Customer & Commercial Services",Sport & Leisure,Supplies & Services,Provisions,R & COMPANY,24/01/2023,199.86
"Communities, Customer & Commercial Services",Sport & Leisure,Supplies & Services,Provisions,R & COMPANY,24/01/2023,127.95
"Communities, Customer & Commercial Services",Sport & Leisure,Supplies & Services,Provisions,R & COMPANY,24/01/2023,114.84
"Communities, Customer & Commercial Services",Sport & Leisure,Supplies & Services,Provisions,R & COMPANY,24/01/2023,184.17
"Communities, Customer & Commercial Services",Sport & Leisure,Supplies & Services,Provisions,R & COMPANY,24/01/2023,122.36
"Communities, Customer & Commercial Services",Sport & Leisure,Supplies & Services,Provisions,R & COMPANY,24/01/2023,106.56
"Communities, Customer & Commercial Services",Sport & Leisure,Supplies & Services,Provisions,R & COMPANY,24/01/2023,129.76
"Communities, Customer & Commercial Services",Sport & Leisure,Supplies & Services,Provisions,R & COMPANY,24/01/2023,120.37
"Communities, Customer & Commercial Services",Sport & Leisure,Supplies & Services,Provisions,R & COMPANY,24/01/2023,132.89
"Communities, Customer & Commercial Services",Sport & Leisure,Supplies & Services,Provisions,R & COMPANY,24/01/2023,139.66
"Communities, Customer & Commercial Services",Sport & Leisure,Supplies & Services,Provisions,R & COMPANY,24/01/2023,129.11
"Communities, Customer & Commercial Services",Sport & Leisure,Supplies & Services,Provisions,R & COMPANY,24/01/2023,166.96
"Communities, Customer & Commercial Services",Sport & Leisure,Supplies & Services,Provisions,R & COMPANY,24/01/2023,113.82
"Communities, Customer & Commercial Services",Sport & Leisure,Supplies & Services,Provisions,R & COMPANY,24/01/2023,287.24
"Communities, Customer & Commercial Services",Sport & Leisure,Supplies & Services,Provisions,R & COMPANY,24/01/2023,226.78
"Communities, Customer & Commercial Services",Sport & Leisure,Supplies & Services,Provisions,R & COMPANY,24/01/2023,132.31
"Communities, Customer & Commercial Services",Sport & Leisure,Supplies & Services,Provisions,R & COMPANY,24/01/2023,113.40
"Communities, Customer & Commercial Services",Sport & Leisure,Supplies & Services,Provisions,R & COMPANY,24/01/2023,132.66
"Communities, Customer & Commercial Services",Sport & Leisure,Supplies & Services,Provisions,R & COMPANY,24/01/2023,100.97
"Communities, Customer & Commercial Services",Sport & Leisure,Supplies & Services,Provisions,R & COMPANY,20/01/2023,185.79
"Communities, Customer & Commercial Services",Sport & Leisure,Supplies & Services,Provisions,R & COMPANY,20/01/2023,114.59
"Communities, Customer & Commercial Services",Sport & Leisure,Supplies & Services,Provisions,R & COMPANY,20/01/2023,118.73
"Communities, Customer & Commercial Services",Sport & Leisure,Supplies & Services,Provisions,R & COMPANY,20/01/2023,113.05
"Communities, Customer & Commercial Services",Sport & Leisure,Supplies & Services,Provisions,R & COMPANY,20/01/2023,156.08
"Communities, Customer & Commercial Services",Sport & Leisure,Supplies & Services,Provisions,R & COMPANY,24/01/2023,108.36
"Communities, Customer & Commercial Services",Sport & Leisure,Supplies & Services,Provisions,R & COMPANY,16/01/2023,156.81
"Communities, Customer & Commercial Services",Sport & Leisure,Supplies & Services,Provisions,R & COMPANY,16/01/2023,103.18
"Communities, Customer & Commercial Services",Sport & Leisure,Supplies & Services,Provisions,R & COMPANY,20/01/2023,108.79
"Communities, Customer & Commercial Services",Sport & Leisure,Supplies & Services,Provisions,R & COMPANY,20/01/2023,129.38
"Communities, Customer & Commercial Services",Sport & Leisure,Supplies & Services,Provisions,R & COMPANY,20/01/2023,143.34
"Communities, Customer & Commercial Services",Sport & Leisure,Supplies & Services,Provisions,R & COMPANY,20/01/2023,110.08
"Communities, Customer & Commercial Services",Sport & Leisure,Supplies & Services,Provisions,R & COMPANY,20/01/2023,137.30
"Communities, Customer & Commercial Services",Sport & Leisure,Supplies & Services,Provisions,R & COMPANY,20/01/2023,142.51
"Communities, Customer & Commercial Services",Sport & Leisure,Supplies & Services,Provisions,R & COMPANY,20/01/2023,128.57
"Communities, Customer & Commercial Services",Sport & Leisure,Supplies & Services,Provisions,R & COMPANY,20/01/2023,106.27
"Communities, Customer & Commercial Services",Sport & Leisure,Supplies & Services,Provisions,R & COMPANY,20/01/2023,142.56
"Communities, Customer & Commercial Services",Sport & Leisure,Supplies & Services,Provisions,R & COMPANY,20/01/2023,112.38
"Communities, Customer & Commercial Services",Sport & Leisure,Supplies & Services,Provisions,R & COMPANY,20/01/2023,159.86
"Communities, Customer & Commercial Services",Sport & Leisure,Supplies & Services,Provisions,R & COMPANY,20/01/2023,285.19
"Communities, Customer & Commercial Services",Sport & Leisure,Supplies & Services,Provisions,R & COMPANY,20/01/2023,206.24
"Communities, Customer & Commercial Services",Sport & Leisure,Supplies & Services,Provisions,R & COMPANY,20/01/2023,110.78
"Communities, Customer & Commercial Services",Sport & Leisure,Supplies & Services,Provisions,R & COMPANY,20/01/2023,119.22
"Communities, Customer & Commercial Services",Sport & Leisure,Supplies & Services,Provisions,R & COMPANY,20/01/2023,136.70
"Communities, Customer & Commercial Services",Sport & Leisure,Supplies & Services,Provisions,R & COMPANY,16/01/2023,111.10
"Communities, Customer & Commercial Services",Sport & Leisure,Supplies & Services,Provisions,R & COMPANY,16/01/2023,128.65
"Communities, Customer & Commercial Services",Sport & Leisure,Supplies & Services,Provisions,R & COMPANY,16/01/2023,106.23
"Communities, Customer & Commercial Services",Sport & Leisure,Supplies & Services,Provisions,R & COMPANY,16/01/2023,117.70
"Communities, Customer & Commercial Services",Sport & Leisure,Supplies & Services,Provisions,R & COMPANY,16/01/2023,-117.70
"Communities, Customer & Commercial Services",Sport & Leisure,Supplies & Services,Provisions,R & COMPANY,20/01/2023,107.41
"Communities, Customer & Commercial Services",Sport & Leisure,Supplies & Services,Provisions,R & COMPANY,16/01/2023,129.74
"Communities, Customer & Commercial Services",Sport & Leisure,Supplies & Services,Provisions,R & COMPANY,16/01/2023,130.23
"Communities, Customer & Commercial Services",Sport & Leisure,Supplies & Services,Provisions,R & COMPANY,16/01/2023,249.27
"Communities, Customer & Commercial Services",Sport & Leisure,Supplies & Services,Provisions,R & COMPANY,16/01/2023,117.41
"Communities, Customer & Commercial Services",Sport & Leisure,Supplies & Services,Provisions,R & COMPANY,16/01/2023,162.51
"Communities, Customer & Commercial Services",Sport & Leisure,Supplies & Services,Provisions,R & COMPANY,16/01/2023,174.82
"Communities, Customer & Commercial Services",Sport & Leisure,Supplies & Services,Provisions,R & COMPANY,16/01/2023,107.30
"Communities, Customer & Commercial Services",Sport & Leisure,Supplies & Services,Provisions,R & COMPANY,16/01/2023,150.54
"Communities, Customer & Commercial Services",Sport & Leisure,Supplies & Services,Provisions,R & COMPANY,16/01/2023,123.93
"Communities, Customer & Commercial Services",Sport & Leisure,Supplies & Services,Provisions,R & COMPANY,16/01/2023,109.66
"Communities, Customer & Commercial Services",Sport & Leisure,Supplies & Services,Provisions,R & COMPANY,16/01/2023,176.22
"Communities, Customer & Commercial Services",Sport & Leisure,Supplies & Services,Provisions,R & COMPANY,16/01/2023,157.86
"Communities, Customer & Commercial Services",Sport & Leisure,Supplies & Services,Provisions,R & COMPANY,16/01/2023,123.78
"Communities, Customer & Commercial Services",Sport & Leisure,Supplies & Services,Provisions,R & COMPANY,16/01/2023,125.92
"Communities, Customer & Commercial Services",Sport & Leisure,Supplies & Services,Provisions,R & COMPANY,16/01/2023,100.93
"Communities, Customer & Commercial Services",Sport & Leisure,Supplies & Services,Provisions,R & COMPANY,16/01/2023,112.05
"Communities, Customer & Commercial Services",Sport & Leisure,Supplies & Services,Provisions,R & COMPANY,16/01/2023,154.88
"Communities, Customer & Commercial Services",Sport & Leisure,Supplies & Services,Provisions,R & COMPANY,16/01/2023,141.90
"Communities, Customer & Commercial Services",Sport & Leisure,Supplies & Services,Provisions,SPICE TIME,04/01/2023,127.10
"Communities, Customer & Commercial Services",Sport & Leisure,Supplies & Services,Provisions,SPICE TIME,04/01/2023,163.60
"Communities, Customer & Commercial Services",Sport & Leisure,Supplies & Services,Provisions,BIKOLD,30/01/2023,247.66
"Communities, Customer & Commercial Services",Sport & Leisure,Supplies & Services,Provisions,BIKOLD,30/01/2023,164.95
"Communities, Customer & Commercial Services",Sport & Leisure,Supplies & Services,Provisions,BIKOLD,30/01/2023,323.44
"Communities, Customer & Commercial Services",Sport & Leisure,Supplies & Services,Provisions,BIKOLD,30/01/2023,450.44
"Communities, Customer & Commercial Services",Sport & Leisure,Supplies & Services,Provisions,BIKOLD,30/01/2023,513.64
"Communities, Customer & Commercial Services",Sport & Leisure,Supplies & Services,Provisions,BIKOLD,30/01/2023,174.77
"Communities, Customer & Commercial Services",Sport & Leisure,Supplies & Services,Provisions,BIKOLD,30/01/2023,420.07
"Communities, Customer & Commercial Services",Sport & Leisure,Supplies & Services,Provisions,BIKOLD,30/01/2023,"1,034.57"
"Communities, Customer & Commercial Services",Sport & Leisure,Supplies & Services,Provisions,BIKOLD,30/01/2023,246.31
"Communities, Customer & Commercial Services",Sport & Leisure,Supplies & Services,Provisions,BIKOLD,30/01/2023,"1,214.03"
"Communities, Customer & Commercial Services",Sport & Leisure,Supplies & Services,Provisions,BIKOLD,30/01/2023,311.95
"Communities, Customer & Commercial Services",Sport & Leisure,Supplies & Services,Provisions,BIKOLD,30/01/2023,172.20
"Communities, Customer & Commercial Services",Sport & Leisure,Supplies & Services,Provisions,BIKOLD,30/01/2023,103.80
"Communities, Customer & Commercial Services",Sport & Leisure,Supplies & Services,Provisions,BIKOLD,30/01/2023,102.10
"Communities, Customer & Commercial Services",Sport & Leisure,Supplies & Services,Provisions,BIKOLD,30/01/2023,147.83
"Communities, Customer & Commercial Services",Sport & Leisure,Supplies & Services,Provisions,BIKOLD,30/01/2023,864.81
"Communities, Customer & Commercial Services",Sport & Leisure,Supplies & Services,Provisions,BIKOLD,30/01/2023,113.88
"Communities, Customer & Commercial Services",Sport & Leisure,Supplies & Services,Provisions,BIKOLD,30/01/2023,448.47
"Communities, Customer & Commercial Services",Sport & Leisure,Supplies & Services,Provisions,BIKOLD,30/01/2023,700.87
"Communities, Customer & Commercial Services",Sport & Leisure,Supplies & Services,Provisions,BIKOLD,30/01/2023,115.86
"Communities, Customer & Commercial Services",Sport & Leisure,Supplies & Services,Provisions,BIKOLD,30/01/2023,631.85
"Communities, Customer & Commercial Services",Sport & Leisure,Supplies & Services,Provisions,BIKOLD,20/01/2023,193.50
"Communities, Customer & Commercial Services",Sport & Leisure,Supplies & Services,Provisions,BIKOLD,20/01/2023,202.58
"Communities, Customer & Commercial Services",Sport & Leisure,Supplies & Services,Provisions,BIKOLD,20/01/2023,413.46
"Communities, Customer & Commercial Services",Sport & Leisure,Supplies & Services,Provisions,BIKOLD,20/01/2023,773.88
"Communities, Customer & Commercial Services",Sport & Leisure,Supplies & Services,Provisions,BIKOLD,20/01/2023,161.21
"Communities, Customer & Commercial Services",Sport & Leisure,Supplies & Services,Provisions,BIKOLD,20/01/2023,345.17
"Communities, Customer & Commercial Services",Sport & Leisure,Supplies & Services,Provisions,BIKOLD,20/01/2023,137.31
"Communities, Customer & Commercial Services",Sport & Leisure,Supplies & Services,Provisions,BIKOLD,20/01/2023,313.82
"Communities, Customer & Commercial Services",Sport & Leisure,Supplies & Services,Provisions,BIKOLD,20/01/2023,"1,144.25"
"Communities, Customer & Commercial Services",Sport & Leisure,Supplies & Services,Provisions,BIKOLD,20/01/2023,499.40
"Communities, Customer & Commercial Services",Sport & Leisure,Supplies & Services,Provisions,BIKOLD,20/01/2023,223.70
"Communities, Customer & Commercial Services",Sport & Leisure,Supplies & Services,Provisions,BIKOLD,20/01/2023,198.07
"Communities, Customer & Commercial Services",Sport & Leisure,Supplies & Services,Provisions,BIKOLD,20/01/2023,"1,006.03"
"Communities, Customer & Commercial Services",Sport & Leisure,Supplies & Services,Provisions,BIKOLD,20/01/2023,210.06
"Communities, Customer & Commercial Services",Sport & Leisure,Supplies & Services,Provisions,BIKOLD,20/01/2023,131.79
"Communities, Customer & Commercial Services",Sport & Leisure,Supplies & Services,Provisions,BIKOLD,20/01/2023,719.48
"Communities, Customer & Commercial Services",Sport & Leisure,Supplies & Services,Provisions,BIKOLD,20/01/2023,219.67
"Communities, Customer & Commercial Services",Sport & Leisure,Supplies & Services,Provisions,BIKOLD,20/01/2023,193.56
"Communities, Customer & Commercial Services",Sport & Leisure,Supplies & Services,Provisions,BIKOLD,20/01/2023,241.83
"Communities, Customer & Commercial Services",Sport & Leisure,Supplies & Services,Provisions,BIKOLD,20/01/2023,292.11
"Communities, Customer & Commercial Services",Sport & Leisure,Supplies & Services,Provisions,BIKOLD,20/01/2023,411.78
"Communities, Customer & Commercial Services",Sport & Leisure,Supplies & Services,Provisions,BIKOLD,20/01/2023,262.99
"Communities, Customer & Commercial Services",Sport & Leisure,Supplies & Services,Provisions,BIKOLD,20/01/2023,142.49
"Communities, Customer & Commercial Services",Sport & Leisure,Supplies & Services,Provisions,BIKOLD,20/01/2023,643.37
"Communities, Customer & Commercial Services",Sport & Leisure,Supplies & Services,Provisions,BIKOLD,12/01/2023,473.46
"Communities, Customer & Commercial Services",Sport & Leisure,Supplies & Services,Provisions,BIKOLD,12/01/2023,219.93
"Communities, Customer & Commercial Services",Sport & Leisure,Supplies & Services,Provisions,BIKOLD,12/01/2023,425.20
"Communities, Customer & Commercial Services",Sport & Leisure,Supplies & Services,Provisions,BIKOLD,12/01/2023,103.32
"Communities, Customer & Commercial Services",Sport & Leisure,Supplies & Services,Provisions,BIKOLD,20/01/2023,579.14
"Communities, Customer & Commercial Services",Sport & Leisure,Supplies & Services,Provisions,BIKOLD,20/01/2023,677.44
"Communities, Customer & Commercial Services",Sport & Leisure,Supplies & Services,Provisions,BIKOLD,12/01/2023,132.57
"Communities, Customer & Commercial Services",Sport & Leisure,Supplies & Services,Provisions,BIKOLD,12/01/2023,702.96
"Communities, Customer & Commercial Services",Sport & Leisure,Supplies & Services,Provisions,BIKOLD,12/01/2023,249.36
"Communities, Customer & Commercial Services",Sport & Leisure,Supplies & Services,Provisions,BIKOLD,12/01/2023,356.66
"Communities, Customer & Commercial Services",Sport & Leisure,Supplies & Services,Provisions,BIKOLD,12/01/2023,282.98
"Communities, Customer & Commercial Services",Sport & Leisure,Supplies & Services,Provisions,BIKOLD,12/01/2023,220.74
"Communities, Customer & Commercial Services",Sport & Leisure,Supplies & Services,Provisions,BIKOLD,12/01/2023,130.66
"Communities, Customer & Commercial Services",Sport & Leisure,Supplies & Services,Provisions,BIKOLD,12/01/2023,689.73
"Communities, Customer & Commercial Services",Sport & Leisure,Supplies & Services,Provisions,BIKOLD,12/01/2023,345.32
"Communities, Customer & Commercial Services",Sport & Leisure,Supplies & Services,Provisions,BIKOLD,12/01/2023,171.85
"Communities, Customer & Commercial Services",Sport & Leisure,Supplies & Services,Provisions,BIKOLD,12/01/2023,268.34
"Communities, Customer & Commercial Services",Sport & Leisure,Supplies & Services,Provisions,BIKOLD,12/01/2023,"1,246.47"
"Communities, Customer & Commercial Services",Sport & Leisure,Supplies & Services,Provisions,BIKOLD,09/01/2023,180.68
"Communities, Customer & Commercial Services",Sport & Leisure,Supplies & Services,Provisions,BIKOLD,09/01/2023,475.01
"Communities, Customer & Commercial Services",Sport & Leisure,Supplies & Services,Provisions,BIKOLD,09/01/2023,808.10
"Communities, Customer & Commercial Services",Sport & Leisure,Supplies & Services,Provisions,BIKOLD,12/01/2023,254.67
"Communities, Customer & Commercial Services",Sport & Leisure,Supplies & Services,Provisions,BIKOLD,12/01/2023,437.02
"Communities, Customer & Commercial Services",Sport & Leisure,Supplies & Services,Provisions,BIKOLD,12/01/2023,506.14
"Communities, Customer & Commercial Services",Sport & Leisure,Supplies & Services,Provisions,BIKOLD,09/01/2023,"1,923.00"
"Communities, Customer & Commercial Services",Sport & Leisure,Supplies & Services,Provisions,BIKOLD,09/01/2023,276.51
"Communities, Customer & Commercial Services",Sport & Leisure,Supplies & Services,Provisions,BIKOLD,09/01/2023,276.05
"Communities, Customer & Commercial Services",Sport & Leisure,Supplies & Services,Provisions,BIKOLD,09/01/2023,292.11
"Communities, Customer & Commercial Services",Sport & Leisure,Supplies & Services,Provisions,BIKOLD,09/01/2023,393.56
"Communities, Customer & Commercial Services",Sport & Leisure,Supplies & Services,Provisions,BIKOLD,09/01/2023,859.83
"Communities, Customer & Commercial Services",Sport & Leisure,Supplies & Services,Provisions,BIKOLD,09/01/2023,619.88
"Communities, Customer & Commercial Services",Sport & Leisure,Supplies & Services,Provisions,BIKOLD,09/01/2023,304.31
"Communities, Customer & Commercial Services",Sport & Leisure,Supplies & Services,Provisions,BIKOLD,09/01/2023,358.19
"Communities, Customer & Commercial Services",Sport & Leisure,Supplies & Services,Provisions,BIKOLD,09/01/2023,569.14
"Communities, Customer & Commercial Services",Sport & Leisure,Supplies & Services,Provisions,Handmade Speciality Products Ltd,27/01/2023,327.16
"Communities, Customer & Commercial Services",Sport & Leisure,Supplies & Services,Provisions,J S Catering Butchers,19/01/2023,120.21
"Communities, Customer & Commercial Services",Sport & Leisure,Supplies & Services,Provisions,J S Catering Butchers,19/01/2023,152.42
"Communities, Customer & Commercial Services",Sport & Leisure,Supplies & Services,Provisions,J S Catering Butchers,19/01/2023,167.80
"Communities, Customer & Commercial Services",Sport & Leisure,Supplies & Services,Provisions,J S Catering Butchers,19/01/2023,209.75
"Communities, Customer & Commercial Services",Sport & Leisure,Supplies & Services,Provisions,J S Catering Butchers,24/01/2023,210.17
"Communities, Customer & Commercial Services",Sport & Leisure,Supplies & Services,Provisions,J S Catering Butchers,24/01/2023,166.42
"Communities, Customer & Commercial Services",Sport & Leisure,Supplies & Services,Provisions,J S Catering Butchers,13/01/2023,117.14
"Communities, Customer & Commercial Services",Sport & Leisure,Supplies & Services,Provisions,J S Catering Butchers,13/01/2023,112.63
"Communities, Customer & Commercial Services",Sport & Leisure,Supplies & Services,Provisions,J S Catering Butchers,13/01/2023,117.14
"Communities, Customer & Commercial Services",Sport & Leisure,Supplies & Services,Provisions,J S Catering Butchers,13/01/2023,112.63
"Communities, Customer & Commercial Services",Sport & Leisure,Supplies & Services,Provisions,On A Roll,18/01/2023,141.65
"Communities, Customer & Commercial Services",Sport & Leisure,Supplies & Services,Provisions,On A Roll,18/01/2023,174.45
"Communities, Customer & Commercial Services",Sport & Leisure,Supplies & Services,Provisions,On A Roll,18/01/2023,314.36
"Communities, Customer & Commercial Services",Sport & Leisure,Supplies & Services,Provisions,On A Roll,18/01/2023,198.20
"Communities, Customer & Commercial Services",Sport & Leisure,Supplies & Services,Provisions,On A Roll,18/01/2023,913.14
"Communities, Customer & Commercial Services",Sport & Leisure,Supplies & Services,Provisions,On A Roll,18/01/2023,608.21
"Communities, Customer & Commercial Services",Sport & Leisure,Supplies & Services,Provisions,On A Roll,27/01/2023,198.25
"Communities, Customer & Commercial Services",Sport & Leisure,Supplies & Services,Provisions,On A Roll,27/01/2023,174.45
"Communities, Customer & Commercial Services",Sport & Leisure,Supplies & Services,Provisions,On A Roll,27/01/2023,659.09
"Communities, Customer & Commercial Services",Sport & Leisure,Supplies & Services,Provisions,PASTA KING LIMITED,18/01/2023,375.60
"Communities, Customer & Commercial Services",Sport & Leisure,Supplies & Services,Provisions,PASTA KING LIMITED,18/01/2023,413.16
"Communities, Customer & Commercial Services",Sport & Leisure,Supplies & Services,Provisions,PASTA KING LIMITED,18/01/2023,131.22
"Communities, Customer & Commercial Services",Sport & Leisure,Supplies & Services,Provisions,PASTA KING LIMITED,18/01/2023,375.60
"Communities, Customer & Commercial Services",Sport & Leisure,Supplies & Services,Crockery/Hardware/Light Equip,PLANGLOW LTD,18/01/2023,506.22
"Communities, Customer & Commercial Services",Sport & Leisure,Supplies & Services,Crockery/Hardware/Light Equip,PLANGLOW LTD,18/01/2023,379.67
"Communities, Customer & Commercial Services",Sport & Leisure,Supplies & Services,Provisions,R & COMPANY,16/01/2023,108.94
"Communities, Customer & Commercial Services",Sport & Leisure,Supplies & Services,Provisions,R & COMPANY,16/01/2023,201.57
"Communities, Customer & Commercial Services",Sport & Leisure,Supplies & Services,Provisions,R & COMPANY,20/01/2023,123.61
"Communities, Customer & Commercial Services",Sport & Leisure,Supplies & Services,Provisions,R & COMPANY,20/01/2023,105.42
"Communities, Customer & Commercial Services",Sport & Leisure,Supplies & Services,Provisions,R & COMPANY,24/01/2023,112.08
"Communities, Customer & Commercial Services",Sport & Leisure,Supplies & Services,Provisions,T FOOD SERVICE LTD,18/01/2023,353.70
"Communities, Customer & Commercial Services",Sport & Leisure,Supplies & Services,Provisions,T FOOD SERVICE LTD,18/01/2023,"1,180.15"
"Communities, Customer & Commercial Services",Sport & Leisure,Supplies & Services,Provisions,T FOOD SERVICE LTD,27/01/2023,322.60
"Communities, Customer & Commercial Services",Sport & Leisure,Supplies & Services,Provisions,T FOOD SERVICE LTD,27/01/2023,944.05
"Communities, Customer & Commercial Services",Sport & Leisure,Supplies & Services,Crockery/Hardware/Light Equip,Vegware,27/01/2023,355.68
"Communities, Customer & Commercial Services",Sport & Leisure,Premises-Related Expenditure,Clean Mats & Toilet Requisites,Border Janitorial Supplies Limited,13/01/2023,524.80
"Communities, Customer & Commercial Services",Sport & Leisure,Premises-Related Expenditure,Clean Mats & Toilet Requisites,Border Janitorial Supplies Limited,13/01/2023,111.62
"Communities, Customer & Commercial Services",Sport & Leisure,Premises-Related Expenditure,Clean Mats & Toilet Requisites,Border Janitorial Supplies Limited,13/01/2023,159.76
"Communities, Customer & Commercial Services",Sport & Leisure,Premises-Related Expenditure,Clean Mats & Toilet Requisites,Border Janitorial Supplies Limited,13/01/2023,477.67
"Communities, Customer & Commercial Services",Sport & Leisure,Premises-Related Expenditure,Clean Mats & Toilet Requisites,Border Janitorial Supplies Limited,13/01/2023,148.99
"Communities, Customer & Commercial Services",Sport & Leisure,Premises-Related Expenditure,Clean Mats & Toilet Requisites,Border Janitorial Supplies Limited,13/01/2023,137.49
"Communities, Customer & Commercial Services",Sport & Leisure,Premises-Related Expenditure,Clean Mats & Toilet Requisites,Border Janitorial Supplies Limited,13/01/2023,343.73
"Communities, Customer & Commercial Services",Sport & Leisure,Premises-Related Expenditure,Clean Mats & Toilet Requisites,Border Janitorial Supplies Limited,17/01/2023,184.48
"Communities, Customer & Commercial Services",Sport & Leisure,Premises-Related Expenditure,Clean Mats & Toilet Requisites,Border Janitorial Supplies Limited,11/01/2023,153.21
"Communities, Customer & Commercial Services",Sport & Leisure,Premises-Related Expenditure,Clean Mats & Toilet Requisites,Border Janitorial Supplies Limited,30/01/2023,395.78
"Communities, Customer & Commercial Services",Sport & Leisure,Premises-Related Expenditure,Clean Mats & Toilet Requisites,Border Janitorial Supplies Limited,19/01/2023,111.11
"Communities, Customer & Commercial Services",Sport & Leisure,Premises-Related Expenditure,Clean Mats & Toilet Requisites,Border Janitorial Supplies Limited,19/01/2023,224.84
"Communities, Customer & Commercial Services",Sport & Leisure,Premises-Related Expenditure,Clean Mats & Toilet Requisites,Border Janitorial Supplies Limited,19/01/2023,540.29
"Communities, Customer & Commercial Services",Sport & Leisure,Premises-Related Expenditure,Clean Mats & Toilet Requisites,Border Janitorial Supplies Limited,17/01/2023,277.99
"Communities, Customer & Commercial Services",Sport & Leisure,Premises-Related Expenditure,Clean Mats & Toilet Requisites,Border Janitorial Supplies Limited,17/01/2023,134.49
"Communities, Customer & Commercial Services",Sport & Leisure,Premises-Related Expenditure,Clean Mats & Toilet Requisites,Border Janitorial Supplies Limited,17/01/2023,434.32
"Communities, Customer & Commercial Services",Sport & Leisure,Premises-Related Expenditure,Clean Mats & Toilet Requisites,Border Janitorial Supplies Limited,11/01/2023,171.29
"Communities, Customer & Commercial Services",Sport & Leisure,Premises-Related Expenditure,Clean Mats & Toilet Requisites,Border Janitorial Supplies Limited,11/01/2023,161.00
"Communities, Customer & Commercial Services",Sport & Leisure,Premises-Related Expenditure,Clean Mats & Toilet Requisites,Border Janitorial Supplies Limited,11/01/2023,153.11
"Communities, Customer & Commercial Services",Sport & Leisure,Premises-Related Expenditure,Clean Mats & Toilet Requisites,Border Janitorial Supplies Limited,11/01/2023,177.12
"Communities, Customer & Commercial Services",Sport & Leisure,Premises-Related Expenditure,Clean Mats & Toilet Requisites,Border Janitorial Supplies Limited,11/01/2023,139.32
"Communities, Customer & Commercial Services",Sport & Leisure,Premises-Related Expenditure,Clean Mats & Toilet Requisites,Border Janitorial Supplies Limited,11/01/2023,262.25
"Communities, Customer & Commercial Services",Sport & Leisure,Premises-Related Expenditure,Clean Mats & Toilet Requisites,Border Janitorial Supplies Limited,11/01/2023,153.58
"Communities, Customer & Commercial Services",Sport & Leisure,Premises-Related Expenditure,Clean Mats & Toilet Requisites,Border Janitorial Supplies Limited,11/01/2023,170.67
"Communities, Customer & Commercial Services",Sport & Leisure,Premises-Related Expenditure,Clean Mats & Toilet Requisites,Border Janitorial Supplies Limited,13/01/2023,142.65
"Communities, Customer & Commercial Services",Sport & Leisure,Premises-Related Expenditure,Clean Mats & Toilet Requisites,Border Janitorial Supplies Limited,13/01/2023,206.09
"Communities, Customer & Commercial Services",Sport & Leisure,Premises-Related Expenditure,Clean Mats & Toilet Requisites,Border Janitorial Supplies Limited,30/01/2023,195.74
"Communities, Customer & Commercial Services",Sport & Leisure,Premises-Related Expenditure,Clean Mats & Toilet Requisites,Border Janitorial Supplies Limited,30/01/2023,193.37
"Communities, Customer & Commercial Services",Sport & Leisure,Premises-Related Expenditure,Clean Mats & Toilet Requisites,Border Janitorial Supplies Limited,30/01/2023,250.15
"Communities, Customer & Commercial Services",Sport & Leisure,Premises-Related Expenditure,Clean Mats & Toilet Requisites,Border Janitorial Supplies Limited,30/01/2023,251.75
"Communities, Customer & Commercial Services",Sport & Leisure,Premises-Related Expenditure,Clean Mats & Toilet Requisites,Border Janitorial Supplies Limited,17/01/2023,284.65
"Communities, Customer & Commercial Services",Sport & Leisure,Premises-Related Expenditure,Clean Mats & Toilet Requisites,Border Janitorial Supplies Limited,13/01/2023,200.12
"Communities, Customer & Commercial Services",Sport & Leisure,Premises-Related Expenditure,Clean Mats & Toilet Requisites,Border Janitorial Supplies Limited,11/01/2023,137.13
"Communities, Customer & Commercial Services",Sport & Leisure,Premises-Related Expenditure,Clean Mats & Toilet Requisites,Border Janitorial Supplies Limited,11/01/2023,228.95
"Communities, Customer & Commercial Services",Sport & Leisure,Premises-Related Expenditure,Clean Mats & Toilet Requisites,Border Janitorial Supplies Limited,25/01/2023,354.87
"Communities, Customer & Commercial Services",Sport & Leisure,Premises-Related Expenditure,Clean Mats & Toilet Requisites,Border Janitorial Supplies Limited,25/01/2023,118.11
"Communities, Customer & Commercial Services",Sport & Leisure,Premises-Related Expenditure,Clean Mats & Toilet Requisites,Border Janitorial Supplies Limited,11/01/2023,124.56
"Communities, Customer & Commercial Services",Sport & Leisure,Premises-Related Expenditure,Clean Mats & Toilet Requisites,Border Janitorial Supplies Limited,17/01/2023,111.01
"Communities, Customer & Commercial Services",Sport & Leisure,Premises-Related Expenditure,Clean Mats & Toilet Requisites,Border Janitorial Supplies Limited,17/01/2023,478.02
"Communities, Customer & Commercial Services",Sport & Leisure,Premises-Related Expenditure,Clean Mats & Toilet Requisites,Border Janitorial Supplies Limited,17/01/2023,179.95
"Communities, Customer & Commercial Services",Sport & Leisure,Premises-Related Expenditure,Clean Mats & Toilet Requisites,Border Janitorial Supplies Limited,17/01/2023,132.26
"Communities, Customer & Commercial Services",Sport & Leisure,Premises-Related Expenditure,Clean Mats & Toilet Requisites,Border Janitorial Supplies Limited,17/01/2023,104.09
"Communities, Customer & Commercial Services",Sport & Leisure,Premises-Related Expenditure,Clean Mats & Toilet Requisites,Border Janitorial Supplies Limited,19/01/2023,145.74
"Communities, Customer & Commercial Services",Sport & Leisure,Premises-Related Expenditure,Clean Mats & Toilet Requisites,Border Janitorial Supplies Limited,19/01/2023,175.75
"Communities, Customer & Commercial Services",Sport & Leisure,Premises-Related Expenditure,Clean Mats & Toilet Requisites,Border Janitorial Supplies Limited,19/01/2023,232.69
"Communities, Customer & Commercial Services",Sport & Leisure,Premises-Related Expenditure,Clean Mats & Toilet Requisites,Border Janitorial Supplies Limited,19/01/2023,448.67
"Communities, Customer & Commercial Services",Sport & Leisure,Premises-Related Expenditure,Clean Mats & Toilet Requisites,Border Janitorial Supplies Limited,19/01/2023,216.39
"Communities, Customer & Commercial Services",Sport & Leisure,Premises-Related Expenditure,Clean Mats & Toilet Requisites,Border Janitorial Supplies Limited,11/01/2023,124.52
"Communities, Customer & Commercial Services",Sport & Leisure,Premises-Related Expenditure,Clean Mats & Toilet Requisites,Border Janitorial Supplies Limited,11/01/2023,204.28
"Communities, Customer & Commercial Services",Sport & Leisure,Premises-Related Expenditure,Clean Mats & Toilet Requisites,Border Janitorial Supplies Limited,11/01/2023,117.71
"Communities, Customer & Commercial Services",Sport & Leisure,Premises-Related Expenditure,Clean Mats & Toilet Requisites,Border Janitorial Supplies Limited,11/01/2023,347.02
"Communities, Customer & Commercial Services",Sport & Leisure,Premises-Related Expenditure,Clean Mats & Toilet Requisites,Border Janitorial Supplies Limited,11/01/2023,318.79
"Communities, Customer & Commercial Services",Sport & Leisure,Premises-Related Expenditure,Clean Mats & Toilet Requisites,Border Janitorial Supplies Limited,19/01/2023,146.91
"Communities, Customer & Commercial Services",Sport & Leisure,Premises-Related Expenditure,Clean Mats & Toilet Requisites,Border Janitorial Supplies Limited,19/01/2023,159.22
"Communities, Customer & Commercial Services",Sport & Leisure,Premises-Related Expenditure,Clean Mats & Toilet Requisites,Border Janitorial Supplies Limited,11/01/2023,108.04
"Communities, Customer & Commercial Services",Sport & Leisure,Premises-Related Expenditure,Clean Mats & Toilet Requisites,Border Janitorial Supplies Limited,19/01/2023,901.28
"Communities, Customer & Commercial Services",Sport & Leisure,Premises-Related Expenditure,Clean Mats & Toilet Requisites,Border Janitorial Supplies Limited,09/01/2023,190.80
"Communities, Customer & Commercial Services",Sport & Leisure,Premises-Related Expenditure,Clean Mats & Toilet Requisites,Border Janitorial Supplies Limited,17/01/2023,206.68
"Communities, Customer & Commercial Services",Sport & Leisure,Premises-Related Expenditure,Clean Mats & Toilet Requisites,Border Janitorial Supplies Limited,11/01/2023,323.23
"Communities, Customer & Commercial Services",Sport & Leisure,Premises-Related Expenditure,R&M -Building Other,COOL SERVICES LTD,04/01/2023,469.92
"Communities, Customer & Commercial Services",Sport & Leisure,Supplies & Services,Provisions,BIKOLD,04/01/2023,170.20
"Communities, Customer & Commercial Services",Sport & Leisure,Supplies & Services,Provisions,BIKOLD,04/01/2023,179.02
"Communities, Customer & Commercial Services",Sport & Leisure,Supplies & Services,Provisions,BIKOLD,12/01/2023,134.71
"Communities, Customer & Commercial Services",Sport & Leisure,Supplies & Services,Provisions,BIKOLD,20/01/2023,282.22
"Communities, Customer & Commercial Services",Sport & Leisure,Supplies & Services,Provisions,BIKOLD,20/01/2023,202.79
"Communities, Customer & Commercial Services",Sport & Leisure,Supplies & Services,Provisions,BIKOLD,30/01/2023,125.14
"Communities, Customer & Commercial Services",Sport & Leisure,Supplies & Services,Provisions,BIKOLD,30/01/2023,115.91
"Communities, Customer & Commercial Services",Sport & Leisure,Supplies & Services,Provisions,BIKOLD,30/01/2023,121.21
"Communities, Customer & Commercial Services",Sport & Leisure,Supplies & Services,Provisions,BIKOLD,09/01/2023,147.02
"Communities, Customer & Commercial Services",Sport & Leisure,Supplies & Services,Provisions,BIKOLD,09/01/2023,149.67
"Communities, Customer & Commercial Services",Sport & Leisure,Supplies & Services,Provisions,BIKOLD,12/01/2023,140.65
"Communities, Customer & Commercial Services",Sport & Leisure,Supplies & Services,Provisions,On A Roll,18/01/2023,109.86
"Communities, Customer & Commercial Services",Sport & Leisure,Supplies & Services,Provisions,On A Roll,18/01/2023,127.87
"Communities, Customer & Commercial Services",Sport & Leisure,Supplies & Services,Provisions,On A Roll,04/01/2023,338.25
"Communities, Customer & Commercial Services",Sport & Leisure,Supplies & Services,Provisions,On A Roll,18/01/2023,262.94
"Communities, Customer & Commercial Services",Sport & Leisure,Supplies & Services,Provisions,On A Roll,27/01/2023,241.45
"Communities, Customer & Commercial Services",Sport & Leisure,Supplies & Services,Crockery/Hardware/Light Equip,Vegware,18/01/2023,461.59
"Communities, Customer & Commercial Services",Sport & Leisure,Supplies & Services,Provisions,Vegware,18/01/2023,167.65
"Communities, Customer & Commercial Services",Sport & Leisure,Supplies & Services,Sub Contractors,BUSINESS WATCH GUARDING LIMITED,06/01/2023,281.82
"Communities, Customer & Commercial Services",Sport & Leisure,Supplies & Services,Sub Contractors,BUSINESS WATCH GUARDING LIMITED,06/01/2023,519.52
"Communities, Customer & Commercial Services",Sport & Leisure,Supplies & Services,Sub Contractors,Industry Signage,17/01/2023,180.00
"Communities, Customer & Commercial Services",Sport & Leisure,Supplies & Services,Sub Contractors,R Hand Services Limited,11/01/2023,"1,045.00"
"Communities, Customer & Commercial Services",Sport & Leisure,Supplies & Services,Sub Contractors,T MECHANICAL H & P SERVICES LTD,06/01/2023,"1,005.69"
"Communities, Customer & Commercial Services",Sport & Leisure,Premises-Related Expenditure,R&M - Mechanical,Precore Fitness Limited,05/01/2023,377.09
"Communities, Customer & Commercial Services",Sport & Leisure,Supplies & Services,Licences,UK Active,27/01/2023,236.42
"Communities, Customer & Commercial Services",Sport & Leisure,Supplies & Services,Financial Services,DEBIT FINANCE COLLECTIONS ,10/01/2023,276.52
"Communities, Customer & Commercial Services",Sport & Leisure,Supplies & Services,Licences,UK Active,27/01/2023,236.42
"Communities, Customer & Commercial Services",Sport & Leisure,Premises-Related Expenditure,R&M -Buildings DLO Charge,JCE & SONS LTD,03/01/2023,"1,798.57"
"Communities, Customer & Commercial Services",Sport & Leisure,Supplies & Services,Chemicals/Cleaning Products,Border Janitorial Supplies Limited,10/01/2023,187.92
"Communities, Customer & Commercial Services",Sport & Leisure,Supplies & Services,Chemicals/Cleaning Products,BRENNTAG UK LIMITED,18/01/2023,995.00
"Communities, Customer & Commercial Services",Sport & Leisure,Supplies & Services,Protective Clothing,CORPORATE TOGS LTD,20/01/2023,203.50
"Communities, Customer & Commercial Services",Sport & Leisure,Supplies & Services,Items For Resale,J P L LTD,12/01/2023,101.10
"Communities, Customer & Commercial Services",Sport & Leisure,Supplies & Services,Chemicals/Cleaning Products,J P L LTD,24/01/2023,135.10
"Communities, Customer & Commercial Services",Sport & Leisure,Supplies & Services,Equipment - Purchase,SKIPS TELFORD LTD,03/01/2023,210.00
"Communities, Customer & Commercial Services",Sport & Leisure,Supplies & Services,Items For Resale,Splash About International Limited,18/01/2023,200.00
"Communities, Customer & Commercial Services",Sport & Leisure,Supplies & Services,Items For Resale,Splash About International Limited,18/01/2023,200.00
"Communities, Customer & Commercial Services",Sport & Leisure,Supplies & Services,Items For Resale,SWIM ENGLAND TRADING LIMITED ,19/01/2023,323.45
"Communities, Customer & Commercial Services",Sport & Leisure,Premises-Related Expenditure,R&M -Building Other,Envirosport Maintenance Limited,17/01/2023,495.00
"Communities, Customer & Commercial Services",Sport & Leisure,Supplies & Services,Financial Services,DEBIT FINANCE COLLECTIONS ,10/01/2023,349.68
"Communities, Customer & Commercial Services",Sport & Leisure,Supplies & Services,Licences,L M Fitness UK Ltd,17/01/2023,650.00
"Communities, Customer & Commercial Services",Sport & Leisure,Supplies & Services,Licences,UK Active,27/01/2023,236.42
"Communities, Customer & Commercial Services",Sport & Leisure,Supplies & Services,Comp Hardware (Purch / Hire),CCS MEDIA LIMITED,31/01/2023,440.00
"Communities, Customer & Commercial Services",Sport & Leisure,Supplies & Services,Equipment - Purchase,WF Education Group Limited,16/01/2023,149.00
"Communities, Customer & Commercial Services",Sport & Leisure,Supplies & Services,Printing - Other,Visual Print & Design,04/01/2023,915.00
"Communities, Customer & Commercial Services",Sport & Leisure,Supplies & Services,Registration / Licence Fees,Cascade3D,27/01/2023,981.00
"Communities, Customer & Commercial Services",Sport & Leisure,Supplies & Services,Research Surveys,Community First Partnership LTD,30/01/2023,"5,662.50"
"Communities, Customer & Commercial Services",Sport & Leisure,Supplies & Services,Flex Charges,GB GROUP PLC,27/01/2023,300.00
"Communities, Customer & Commercial Services",Sport & Leisure,Supplies & Services,Other Expenses,Gladstone MRM Ltd,30/01/2023,887.50
"Communities, Customer & Commercial Services",Sport & Leisure,Supplies & Services,Flex Charges,Verifone UK Limited,19/01/2023,297.50
"Communities, Customer & Commercial Services",Sport & Leisure,Supplies & Services,Flex Charges,Verifone UK Limited,12/01/2023,297.50
"Communities, Customer & Commercial Services",Sport & Leisure,Premises-Related Expenditure,R&M - Mechanical,H Technologies Ltd.,19/01/2023,155.00
"Communities, Customer & Commercial Services",Sport & Leisure,Premises-Related Expenditure,R&M - Mechanical,H Technologies Ltd.,19/01/2023,140.00
"Communities, Customer & Commercial Services",Sport & Leisure,Premises-Related Expenditure,R&M - Mechanical,H Technologies Ltd.,19/01/2023,112.00
"Communities, Customer & Commercial Services",Sport & Leisure,Supplies & Services,Licences,UK Active,27/01/2023,236.42
"Communities, Customer & Commercial Services",Sport & Leisure,Supplies & Services,Financial Services,DEBIT FINANCE COLLECTIONS ,10/01/2023,198.08
"Communities, Customer & Commercial Services",Sport & Leisure,Supplies & Services,Licences,UK Active,27/01/2023,236.50
"Communities, Customer & Commercial Services",Sport & Leisure,Supplies & Services,Equipment - Purchase,JCE & SONS LTD,10/01/2023,150.73
"Communities, Customer & Commercial Services",Sport & Leisure,Premises-Related Expenditure,R&M WC Planned,K S CONTRACTING SERVICES,13/01/2023,116.67
"Communities, Customer & Commercial Services",Sport & Leisure,Transport-Related Expenditure,Servicing & Repairs V&P,C STORES LTD,13/01/2023,354.10
"Communities, Customer & Commercial Services",Sport & Leisure,Transport-Related Expenditure,Servicing & Repairs V&P,C STORES LTD,26/01/2023,"2,061.39"
"Communities, Customer & Commercial Services",Sport & Leisure,Supplies & Services,Provisions,BIKOLD,30/01/2023,242.92
"Communities, Customer & Commercial Services",Sport & Leisure,Supplies & Services,Provisions,BIKOLD,30/01/2023,262.74
"Communities, Customer & Commercial Services",Sport & Leisure,Supplies & Services,Provisions,BIKOLD,30/01/2023,474.55
"Communities, Customer & Commercial Services",Sport & Leisure,Supplies & Services,Provisions,BIKOLD,30/01/2023,415.73
"Communities, Customer & Commercial Services",Sport & Leisure,Supplies & Services,Provisions,BIKOLD,20/01/2023,242.40
"Communities, Customer & Commercial Services",Sport & Leisure,Supplies & Services,Provisions,BIKOLD,20/01/2023,150.50
"Communities, Customer & Commercial Services",Sport & Leisure,Supplies & Services,Provisions,BIKOLD,20/01/2023,447.42
"Communities, Customer & Commercial Services",Sport & Leisure,Supplies & Services,Provisions,BIKOLD,20/01/2023,166.41
"Communities, Customer & Commercial Services",Sport & Leisure,Supplies & Services,Provisions,BIKOLD,20/01/2023,285.17
"Communities, Customer & Commercial Services",Sport & Leisure,Supplies & Services,Provisions,BIKOLD,20/01/2023,242.03
"Communities, Customer & Commercial Services",Sport & Leisure,Supplies & Services,Provisions,BIKOLD,09/01/2023,105.20
"Communities, Customer & Commercial Services",Sport & Leisure,Supplies & Services,Provisions,BIKOLD,12/01/2023,293.08
"Communities, Customer & Commercial Services",Sport & Leisure,Supplies & Services,Provisions,BIKOLD,12/01/2023,301.21
"Communities, Customer & Commercial Services",Sport & Leisure,Supplies & Services,Provisions,BIKOLD,12/01/2023,505.28
"Communities, Customer & Commercial Services",Sport & Leisure,Supplies & Services,Provisions,BIKOLD,12/01/2023,257.81
"Communities, Customer & Commercial Services",Sport & Leisure,Supplies & Services,Provisions,BIKOLD,20/01/2023,195.24
"Communities, Customer & Commercial Services",Sport & Leisure,Supplies & Services,Provisions,BIKOLD,06/01/2023,174.41
"Communities, Customer & Commercial Services",Sport & Leisure,Supplies & Services,Provisions,BIKOLD,06/01/2023,238.28
"Communities, Customer & Commercial Services",Sport & Leisure,Supplies & Services,Provisions,BIKOLD,06/01/2023,339.10
"Communities, Customer & Commercial Services",Sport & Leisure,Supplies & Services,Provisions,BIKOLD,06/01/2023,109.25
"Communities, Customer & Commercial Services",Sport & Leisure,Supplies & Services,Provisions,BIKOLD,09/01/2023,476.14
"Communities, Customer & Commercial Services",Sport & Leisure,Supplies & Services,Provisions,BIKOLD,09/01/2023,654.15
"Communities, Customer & Commercial Services",Sport & Leisure,Supplies & Services,Provisions,Handmade Speciality Products Ltd,04/01/2023,247.14
"Communities, Customer & Commercial Services",Sport & Leisure,Supplies & Services,Crockery/Hardware/Light Equip,PLANGLOW LTD,18/01/2023,549.17
"Communities, Customer & Commercial Services",Sport & Leisure,Supplies & Services,Provisions,TROPICAL ICE,18/01/2023,360.00
"Communities, Customer & Commercial Services",Sport & Leisure,Supplies & Services,Provisions,TROPICAL ICE,18/01/2023,238.50
"Communities, Customer & Commercial Services",Sport & Leisure,Supplies & Services,Provisions,TROPICAL ICE,18/01/2023,435.00
"Communities, Customer & Commercial Services",Sport & Leisure,Supplies & Services,Provisions,TROPICAL ICE,18/01/2023,110.00
"Communities, Customer & Commercial Services",Sport & Leisure,Supplies & Services,Provisions,TROPICAL ICE,18/01/2023,260.00
"Communities, Customer & Commercial Services",Sport & Leisure,Supplies & Services,Provisions,TROPICAL ICE,18/01/2023,102.50
"Communities, Customer & Commercial Services",Sport & Leisure,Supplies & Services,Provisions,TROPICAL ICE,18/01/2023,130.00
"Communities, Customer & Commercial Services",Sport & Leisure,Supplies & Services,Provisions,TROPICAL ICE,18/01/2023,130.00
"Communities, Customer & Commercial Services",Sport & Leisure,Supplies & Services,Payment Of Income Collected,Telford Tigers Limited,10/01/2023,"6,062.64"
"Communities, Customer & Commercial Services",Sport & Leisure,Supplies & Services,Payment Of Income Collected,Telford Tigers Limited,04/01/2023,"7,699.68"
"Communities, Customer & Commercial Services",Sport & Leisure,Supplies & Services,Payment Of Income Collected,Telford Tigers Limited,17/01/2023,"3,453.60"
"Communities, Customer & Commercial Services",Sport & Leisure,Supplies & Services,Payment Of Income Collected,Telford Tigers Limited,31/01/2023,"5,780.16"
"Communities, Customer & Commercial Services",Sport & Leisure,Supplies & Services,Payment Of Income Collected,Telford Tigers Limited,23/01/2023,"4,602.72"
"Communities, Customer & Commercial Services",Sport & Leisure,Employees,Staff Training,ICE RINK MANAGERS ASSOCIATION,11/01/2023,655.00
"Communities, Customer & Commercial Services",Sport & Leisure,Supplies & Services,Carriage/Delivery Charge,IcetechUK,06/01/2023,"3,290.53"
"Communities, Customer & Commercial Services",Sport & Leisure,Supplies & Services,Equipment - Purchase,IcetechUK,06/01/2023,"11,100.00"
"Communities, Customer & Commercial Services",Sport & Leisure,Supplies & Services,Equipment - Hire,SLIDERS SKATE SHOP,31/01/2023,424.00
"Communities, Customer & Commercial Services",Sport & Leisure,Supplies & Services,Equipment - Hire,SLIDERS SKATE SHOP,04/01/2023,300.00
"Communities, Customer & Commercial Services",Sport & Leisure,Supplies & Services,Financial Services,DEBIT FINANCE COLLECTIONS ,10/01/2023,285.42
"Communities, Customer & Commercial Services",Sport & Leisure,Supplies & Services,Licences,UK Active,27/01/2023,236.42
"Communities, Customer & Commercial Services",Sport & Leisure,Employees,Staff Training,APSE,05/01/2023,259.00
"Communities, Customer & Commercial Services",Sport & Leisure,Supplies & Services,Equipment - Purchase,RLSS UK Shop,05/01/2023,266.00
"Communities, Customer & Commercial Services",Sport & Leisure,Supplies & Services,Financial Services,DEBIT FINANCE COLLECTIONS ,10/01/2023,523.16
"Communities, Customer & Commercial Services",Sport & Leisure,Supplies & Services,Sport Equip - Purchase,H Technologies Ltd.,10/01/2023,113.62
"Communities, Customer & Commercial Services",Sport & Leisure,Supplies & Services,Licences,L M Fitness UK Ltd,12/01/2023,"1,045.00"
"Communities, Customer & Commercial Services",Sport & Leisure,Supplies & Services,Licences,UK Active,27/01/2023,236.42
"Communities, Customer & Commercial Services",Sport & Leisure,Supplies & Services,Sport Equip - Purchase,J P L LTD,05/01/2023,212.60
"Communities, Customer & Commercial Services",Sport & Leisure,Supplies & Services,Chemicals/Cleaning Products,BRENNTAG UK LIMITED,31/01/2023,"1,113.60"
"Communities, Customer & Commercial Services",Sport & Leisure,Supplies & Services,Chemicals/Cleaning Products,BRENNTAG UK LIMITED,31/01/2023,294.60
"Communities, Customer & Commercial Services",Sport & Leisure,Supplies & Services,Chemicals/Cleaning Products,BRENNTAG UK LIMITED,31/01/2023,252.36
"Communities, Customer & Commercial Services",Sport & Leisure,Supplies & Services,Protective Clothing,CORPORATE TOGS LTD,09/01/2023,689.15
"Communities, Customer & Commercial Services",Sport & Leisure,Supplies & Services,Fees,Austin Mix Ltd,05/01/2023,"1,850.00"
"Communities, Customer & Commercial Services",Sport & Leisure,Capital Expenditure,Payments to Contractor,BATTLEFIELD LAND SURVEYS LTD,30/01/2023,"1,500.00"
"Communities, Customer & Commercial Services",Sport & Leisure,Capital Expenditure,Payments to Contractor,GRANVILLE CONSTRUCTION & MAINTENANCE LTD,06/01/2023,"4,220.00"
"Communities, Customer & Commercial Services",Sport & Leisure,Capital Expenditure,Payments to Contractor,GRANVILLE CONSTRUCTION & MAINTENANCE LTD,06/01/2023,"7,840.00"
"Communities, Customer & Commercial Services",Sport & Leisure,Capital Expenditure,Payments to Contractor,GRANVILLE CONSTRUCTION & MAINTENANCE LTD,06/01/2023,"8,200.00"
"Communities, Customer & Commercial Services",Sport & Leisure,Capital Expenditure,Payments to Contractor,GRANVILLE CONSTRUCTION & MAINTENANCE LTD,06/01/2023,"13,709.60"
"Communities, Customer & Commercial Services",Sport & Leisure,Capital Expenditure,Fixtures & Fittings & Equipment,H Technologies Ltd.,24/01/2023,"-5,466.44"
"Communities, Customer & Commercial Services",Sport & Leisure,Capital Expenditure,Payments to Contractor,ICTn Limited,12/01/2023,"3,810.74"
"Communities, Customer & Commercial Services",Sport & Leisure,Capital Expenditure,Fixtures & Fittings & Equipment,J Fitness  Ltd,10/01/2023,652.44
"Communities, Customer & Commercial Services",Sport & Leisure,Capital Expenditure,Fixtures & Fittings & Equipment,J Fitness  Ltd,10/01/2023,187.47
"Communities, Customer & Commercial Services",Sport & Leisure,Capital Expenditure,Fixtures & Fittings & Equipment,M H Ltd,12/01/2023,"10,444.10"
"Communities, Customer & Commercial Services",Sport & Leisure,Capital Expenditure,Fixtures & Fittings & Equipment,M H Ltd,12/01/2023,270.00
Corporate Items,Corporate Codes,Capital Financing Costs,Unitary Charge,PYRAMID SCHOOLS LTD,13/01/2023,"1,005,653.64"
Corporate Items,Corporate Codes,Capital Financing Costs,Penalty Deductions,PYRAMID SCHOOLS LTD,13/01/2023,"-1,537.23"
Corporate Items,Corporate Codes,Employees,Agency Supply Costs,Matrix SCM,18/01/2023,"31,321.93"
Corporate Items,Corporate Codes,Employees,Agency Supply Costs,Matrix SCM,05/01/2023,"48,728.58"
Corporate Items,Corporate Codes,Employees,Agency Supply Costs,Matrix SCM,11/01/2023,"23,848.76"
Corporate Items,Corporate Codes,Employees,Agency Supply Costs,Matrix SCM,24/01/2023,"43,292.49"
Education & Skills,Consultancy & Advisory Services,Employees,Staff Training,ITS Training Limited,25/01/2023,434.00
Education & Skills,Consultancy & Advisory Services,Premises-Related Expenditure,Hire Of Rooms,Mercure Telford Centre Hotel,12/01/2023,139.17
Education & Skills,Consultancy & Advisory Services,Premises-Related Expenditure,Hire Of Rooms,Mercure Telford Centre Hotel,30/01/2023,145.00
Education & Skills,Consultancy & Advisory Services,Premises-Related Expenditure,Hire Of Rooms,MEETING POINT TRUST LTD,27/01/2023,275.00
Education & Skills,Consultancy & Advisory Services,Premises-Related Expenditure,Hire Of Rooms,MEETING POINT TRUST LTD,27/01/2023,360.00
Education & Skills,Consultancy & Advisory Services,Supplies & Services,Comp Software (Purch / Hire),Access UK Ltd,25/01/2023,"17,474.75"
Education & Skills,Education & Skills,Capital Expenditure,Payments to Contractor,WINDOW & DOOR CONTRACT SERVICES,30/01/2023,"82,499.77"
Education & Skills,Education & Skills,Capital Expenditure,Legal Fees,FREETHS LLP,03/01/2023,567.20
Education & Skills,Education & Skills,Capital Expenditure,Legal Fees,FREETHS LLP,03/01/2023,891.80
Education & Skills,Education & Skills,Capital Expenditure,Payments to Contractor,REDACTED PERSONAL INFORMATION,30/01/2023,300.00
Education & Skills,Education & Skills,Capital Expenditure,Payments to Contractor,R G STONES LTD,30/01/2023,450.00
Education & Skills,Education & Skills,Capital Expenditure,Payments to Contractor,R G STONES LTD,26/01/2023,550.00
Education & Skills,Education & Skills,Capital Expenditure,Payments to Contractor,R G STONES LTD,26/01/2023,450.00
Education & Skills,Education & Skills,Capital Expenditure,Payments to Contractor,R G STONES LTD,26/01/2023,960.00
Education & Skills,Education & Skills,Capital Expenditure,Payments to Contractor,Services in Design Ltd,23/01/2023,"2,068.00"
Education & Skills,Education & Skills,Capital Expenditure,Payments to Contractor,GRANVILLE CONSTRUCTION & MAINTENANCE LTD,09/01/2023,"18,230.35"
Education & Skills,Education & Skills,Capital Expenditure,Payments to Contractor,Cubic FM Ltd,26/01/2023,"12,100.00"
Education & Skills,Education & Skills,Capital Expenditure,Payments to Contractor,P LTD,09/01/2023,248.00
Education & Skills,Education & Skills,Capital Expenditure,Payments to Contractor,JCE & SONS LTD,26/01/2023,160.00
Education & Skills,Education & Skills,Capital Expenditure,Payments to Contractor,MERCIAN MASTERPLAN LTD,05/01/2023,118.80
Education & Skills,Education & Skills,Capital Expenditure,Payments to Contractor,WINDOW & DOOR CONTRACT SERVICES,30/01/2023,"39,574.73"
Education & Skills,Education & Skills,Capital Expenditure,Payments to Contractor,GRANVILLE CONSTRUCTION & MAINTENANCE LTD,09/01/2023,699.00
Education & Skills,Education & Skills,Capital Expenditure,Payments to Contractor,SIGNS EXPRESS ,30/01/2023,"1,037.60"
Education & Skills,Pupil Support Services,Third Party Payments,Misc. Education Payments to T&W Schools (incl Academies),ABRAHAM DARBY ACADEMY ,25/01/2023,"1,709.79"
Education & Skills,Pupil Support Services,Third Party Payments,Misc. Education Payments to T&W Schools (incl Academies),ABRAHAM DARBY ACADEMY ,25/01/2023,275.48
Education & Skills,Pupil Support Services,Third Party Payments,Misc. Education Payments to T&W Schools (incl Academies),CAT - Telford Priory School,25/01/2023,"1,321.26"
Education & Skills,Pupil Support Services,Third Party Payments,Misc. Education Payments to T&W Schools (incl Academies),CAT - Telford Priory School,25/01/2023,202.02
Education & Skills,Pupil Support Services,Third Party Payments,Misc. Education Payments to T&W Schools (incl Academies),CAT - Telford Priory School,25/01/2023,"5,525.27"
Education & Skills,Pupil Support Services,Third Party Payments,Misc. Education Payments to T&W Schools (incl Academies),CAT - Telford Priory School,25/01/2023,844.81
Education & Skills,Pupil Support Services,Third Party Payments,Misc. Education Payments to T&W Schools (incl Academies),Charlton Academy,25/01/2023,"4,907.43"
Education & Skills,Pupil Support Services,Third Party Payments,Misc. Education Payments to T&W Schools (incl Academies),Charlton Academy,25/01/2023,826.44
Education & Skills,Pupil Support Services,Third Party Payments,Misc. Education Payments to T&W Schools (incl Academies),Ercall Wood Academy,25/01/2023,"1,200.51"
Education & Skills,Pupil Support Services,Third Party Payments,Misc. Education Payments to T&W Schools (incl Academies),Ercall Wood Academy,25/01/2023,202.02
Education & Skills,Pupil Support Services,Third Party Payments,Misc. Education Payments to T&W Schools (incl Academies),Ercall Wood Academy,25/01/2023,"5,381.83"
Education & Skills,Pupil Support Services,Third Party Payments,Misc. Education Payments to T&W Schools (incl Academies),Ercall Wood Academy,25/01/2023,881.54
Education & Skills,Pupil Support Services,Third Party Payments,Misc. Education Payments to T&W Schools (incl Academies),Hadley Learning Community Academy,25/01/2023,764.17
Education & Skills,Pupil Support Services,Third Party Payments,Misc. Education Payments to T&W Schools (incl Academies),Hadley Learning Community Academy,25/01/2023,128.56
Education & Skills,Pupil Support Services,Third Party Payments,Misc. Education Payments to T&W Schools (incl Academies),Hadley Learning Community Academy,25/01/2023,655.00
Education & Skills,Pupil Support Services,Third Party Payments,Misc. Education Payments to T&W Schools (incl Academies),Hadley Learning Community Academy,25/01/2023,110.19
Education & Skills,Pupil Support Services,Third Party Payments,Misc. Education Payments to T&W Schools (incl Academies),Telford Park School,25/01/2023,"5,877.47"
Education & Skills,Pupil Support Services,Third Party Payments,Misc. Education Payments to T&W Schools (incl Academies),Telford Park School,25/01/2023,863.17
Education & Skills,Pupil Support Services,Supplies & Services,Other Grants (Expenses),AFC Telford United Foundation CIC,16/01/2023,194.66
Education & Skills,Pupil Support Services,Supplies & Services,Other Grants (Expenses),AFC Telford United Foundation CIC,16/01/2023,"2,543.33"
Education & Skills,Pupil Support Services,Supplies & Services,Mobile Phones,EE LTD EQUIPMENT ,20/01/2023,142.00
Education & Skills,Pupil Support Services,Supplies & Services,Other Grants (Expenses),Shropshire Youth Association,16/01/2023,"8,768.13"
Education & Skills,Pupil Support Services,Supplies & Services,Other Grants (Expenses),Shropshire Youth Association,16/01/2023,"2,309.50"
Education & Skills,Pupil Support Services,Third Party Payments,DSG - High Needs Block,THE EDUCATION DEVELOPMENT SERVICE LTD,20/01/2023,"7,850.00"
Education & Skills,Pupil Support Services,Supplies & Services,Instructors Fees,Entrust Support Services Ltd,03/01/2023,"8,544.00"
Education & Skills,Pupil Support Services,Supplies & Services,Other Expenses,Entrust Support Services Ltd,19/01/2023,"1,152.00"
Education & Skills,Pupil Support Services,Supplies & Services,Equipment - Purchase,N MUSICAL INSTRUMENTS,19/01/2023,133.20
Education & Skills,SEND (0-25),Transport-Related Expenditure,Taxi Costs,24X7 Ltd,12/01/2023,"2,026.71"
Education & Skills,SEND (0-25),Transport-Related Expenditure,Taxi Costs,24X7 Ltd,12/01/2023,332.13
Education & Skills,SEND (0-25),Transport-Related Expenditure,Taxi Costs,24X7 Ltd,12/01/2023,"3,933.09"
Education & Skills,SEND (0-25),Transport-Related Expenditure,Taxi Costs,A2B Transports,03/01/2023,660.00
Education & Skills,SEND (0-25),Transport-Related Expenditure,Taxi Costs,A-STAR TRANSPORT MIDLANDS LTD,03/01/2023,"3,344.00"
Education & Skills,SEND (0-25),Transport-Related Expenditure,Transport Contractors,A-STAR TRANSPORT MIDLANDS LTD,03/01/2023,"3,900.00"
Education & Skills,SEND (0-25),Transport-Related Expenditure,Taxi Costs,Elite Telford Limited,12/01/2023,"1,296.00"
Education & Skills,SEND (0-25),Transport-Related Expenditure,Taxi Costs,ROYAL MENCAP SOCIETY,30/01/2023,399.30
Education & Skills,SEND (0-25),Transport-Related Expenditure,Taxi Costs,ROYAL MENCAP SOCIETY,30/01/2023,108.80
Education & Skills,SEND (0-25),Transport-Related Expenditure,Taxi Costs,ROYAL MENCAP SOCIETY,30/01/2023,108.80
Education & Skills,SEND (0-25),Transport-Related Expenditure,Taxi Costs,Telford and Wrekin Community Enterprise LTD,03/01/2023,"1,323.00"
Education & Skills,SEND (0-25),Transport-Related Expenditure,Taxi Costs,Telford and Wrekin Community Enterprise LTD,03/01/2023,800.00
Education & Skills,SEND (0-25),Transport-Related Expenditure,Taxi Costs,Telford and Wrekin Community Enterprise LTD,03/01/2023,736.00
Education & Skills,SEND (0-25),Transport-Related Expenditure,Taxi Costs,Telford Taxi Hire Limited,12/01/2023,660.00
Education & Skills,SEND (0-25),Transport-Related Expenditure,Taxi Costs,Telford Taxi Hire Limited,12/01/2023,"2,640.00"
Education & Skills,SEND (0-25),Transport-Related Expenditure,Taxi Costs,Telford Taxi Hire Limited,12/01/2023,"3,240.00"
Education & Skills,SEND (0-25),Transport-Related Expenditure,Taxi Costs,Telford Taxi Hire Limited,12/01/2023,"3,120.00"
Education & Skills,SEND (0-25),Transport-Related Expenditure,Taxi Costs,Telford Taxi Hire Limited,12/01/2023,"1,900.00"
Education & Skills,SEND (0-25),Transport-Related Expenditure,Transport Contractors,Telford Taxi Hire Limited,12/01/2023,"2,880.00"
Education & Skills,SEND (0-25),Transport-Related Expenditure,Taxi Costs,Telford Taxi Hire Limited,12/01/2023,390.00
Education & Skills,SEND (0-25),Transport-Related Expenditure,Taxi Costs,Telford Taxi Hire Limited,12/01/2023,"2,520.00"
Education & Skills,SEND (0-25),Transport-Related Expenditure,Taxi Costs,Go Carz,12/01/2023,412.00
Education & Skills,SEND (0-25),Employees,Staff Training,Crisis Prevention Institute Europe,10/01/2023,487.50
Education & Skills,SEND (0-25),Supplies & Services,Other Services,GL Assessments,11/01/2023,787.50
Education & Skills,SEND (0-25),Third Party Payments,DSG - High Needs Block,ABC DAY NURSERY HOLLINSWOOD ,03/01/2023,832.88
Education & Skills,SEND (0-25),Third Party Payments,DSG - High Needs Block,ABC DAY NURSERY HOLLINSWOOD ,23/01/2023,534.25
Education & Skills,SEND (0-25),Third Party Payments,DSG - High Needs Block,ABC DAY NURSERY LTD ,23/01/2023,246.58
Education & Skills,SEND (0-25),Third Party Payments,DSG - High Needs Block,Apley Village Day Nursery,03/01/2023,413.93
Education & Skills,SEND (0-25),Third Party Payments,DSG - High Needs Block,Aqueduct Little Learners,23/01/2023,493.15
Education & Skills,SEND (0-25),Third Party Payments,DSG - High Needs Block,BROOKSIDE PRE-SCHOOL & PLAYGROUP,03/01/2023,416.44
Education & Skills,SEND (0-25),Third Party Payments,DSG - High Needs Block,CENTRAL PARK NURSERY,23/01/2023,416.44
Education & Skills,SEND (0-25),Third Party Payments,DSG - High Needs Block,Chec Mates Day Care,03/01/2023,416.44
Education & Skills,SEND (0-25),Third Party Payments,DSG - High Needs Block,Church Street Day Nursery,03/01/2023,756.16
Education & Skills,SEND (0-25),Third Party Payments,DSG - High Needs Block,Grange Park Primary School - Community Academies Trust,03/01/2023,433.10
Education & Skills,SEND (0-25),Third Party Payments,DSG - High Needs Block,H Childcare Ltd,23/01/2023,246.58
Education & Skills,SEND (0-25),Third Party Payments,DSG - High Needs Block,HONEYBUNS NURSERIES,03/01/2023,"1,106.85"
Education & Skills,SEND (0-25),Third Party Payments,DSG - High Needs Block,LITTLE CHICKS PRE-SCHOOL LTD,03/01/2023,832.88
Education & Skills,SEND (0-25),Third Party Payments,DSG - High Needs Block,LITTLE DRAGONS PRE-SCHOOL,03/01/2023,"1,665.76"
Education & Skills,SEND (0-25),Third Party Payments,DSG - High Needs Block,LONGFORD PLAYGROUP ,03/01/2023,326.03
Education & Skills,SEND (0-25),Third Party Payments,DSG - High Needs Block,LONGFORD PLAYGROUP,23/01/2023,739.73
Education & Skills,SEND (0-25),Third Party Payments,DSG - High Needs Block,T MONTESSORI NURSERY,03/01/2023,832.88
Education & Skills,SEND (0-25),Third Party Payments,DSG - High Needs Block,OAKENGATES UNITED PRE-SCHOOL,03/01/2023,416.44
Education & Skills,SEND (0-25),Third Party Payments,DSG - High Needs Block,PLAY-DAYS CORPORATION LTD,23/01/2023,739.73
Education & Skills,SEND (0-25),Third Party Payments,DSG - High Needs Block,PRIORSLEE ACADEMY,23/01/2023,493.15
Education & Skills,SEND (0-25),Third Party Payments,DSG - High Needs Block,Twiggys Day Nursery Ltd ,23/01/2023,739.73
Education & Skills,SEND (0-25),Third Party Payments,DSG - High Needs Block,WOODEN TOPS DAY NURSERY,03/01/2023,416.44
Education & Skills,SEND (0-25),Supplies & Services,Equipment - Purchase,SANDWELL METROPOLITAN BOROUGH COUNCIL,04/01/2023,350.00
Education & Skills,SEND (0-25),Third Party Payments,DSG - High Needs Block,Bridge Therapy,30/01/2023,190.00
Education & Skills,SEND (0-25),Third Party Payments,Health Funded Services,SHROPSHIRE COMMUNITY HEALTH NHS TRUST,16/01/2023,"4,000.00"
Education & Skills,SEND (0-25),Third Party Payments,Health Funded Services,SHROPSHIRE COMMUNITY HEALTH NHS TRUST,30/01/2023,"4,000.00"
Education & Skills,SEND (0-25),Third Party Payments,DSG - High Needs Block,Dawley C of E Primary Academy,03/01/2023,348.28
Education & Skills,SEND (0-25),Third Party Payments,DSG - High Needs Block,Dawley C of E Primary Academy,23/01/2023,348.28
Education & Skills,SEND (0-25),Third Party Payments,DSG - High Needs Block,Grange Park Primary School - Community Academies Trust,03/01/2023,"3,744.05"
Education & Skills,SEND (0-25),Third Party Payments,DSG - High Needs Block,Grange Park Primary School - Community Academies Trust,23/01/2023,"3,744.05"
Education & Skills,SEND (0-25),Third Party Payments,DSG - High Needs Block,Lawley Village Academy,03/01/2023,609.50
Education & Skills,SEND (0-25),Third Party Payments,DSG - High Needs Block,Lawley Village Academy,23/01/2023,609.50
Education & Skills,SEND (0-25),Third Party Payments,DSG - High Needs Block,PRIORSLEE ACADEMY,03/01/2023,"1,567.28"
Education & Skills,SEND (0-25),Third Party Payments,DSG - High Needs Block,PRIORSLEE ACADEMY,23/01/2023,"1,567.28"
Education & Skills,SEND (0-25),Third Party Payments,DSG - High Needs Block,Redhill Primary Academy,03/01/2023,"3,918.19"
Education & Skills,SEND (0-25),Third Party Payments,DSG - High Needs Block,Redhill Primary Academy,23/01/2023,"3,918.19"
Education & Skills,SEND (0-25),Third Party Payments,DSG - High Needs Block,St Peter�s Bratton C of E Academy,03/01/2023,783.64
Education & Skills,SEND (0-25),Third Party Payments,DSG - High Needs Block,St Peter�s Bratton C of E Academy,23/01/2023,783.64
Education & Skills,SEND (0-25),Third Party Payments,DSG - High Needs Block,Windmill Primary School Academy,03/01/2023,"1,218.99"
Education & Skills,SEND (0-25),Third Party Payments,DSG - High Needs Block,Windmill Primary School Academy,23/01/2023,"1,218.99"
Education & Skills,SEND (0-25),Third Party Payments,DSG - High Needs Block,Wrekin View Primary School,03/01/2023,"4,221.62"
Education & Skills,SEND (0-25),Third Party Payments,DSG - High Needs Block,Wrekin View Primary School,23/01/2023,"4,221.62"
Education & Skills,SEND (0-25),Third Party Payments,DSG - High Needs Block,ABRAHAM DARBY ACADEMY ,03/01/2023,"5,746.67"
Education & Skills,SEND (0-25),Third Party Payments,DSG - High Needs Block,ABRAHAM DARBY ACADEMY ,23/01/2023,"5,746.67"
Education & Skills,SEND (0-25),Third Party Payments,DSG - High Needs Block,CAT - Telford Priory School,23/01/2023,"5,746.68"
Education & Skills,SEND (0-25),Third Party Payments,DSG - High Needs Block,CAT - Telford Priory School,03/01/2023,"5,746.68"
Education & Skills,SEND (0-25),Third Party Payments,DSG - High Needs Block,Charlton Academy,03/01/2023,"3,221.62"
Education & Skills,SEND (0-25),Third Party Payments,DSG - High Needs Block,Charlton Academy,23/01/2023,"3,221.62"
Education & Skills,SEND (0-25),Third Party Payments,DSG - High Needs Block,Ercall Wood Academy,03/01/2023,"8,881.23"
Education & Skills,SEND (0-25),Third Party Payments,DSG - High Needs Block,Ercall Wood Academy,23/01/2023,"8,881.23"
Education & Skills,SEND (0-25),Third Party Payments,DSG - High Needs Block,Hadley Learning Community Academy,03/01/2023,"13,844.28"
Education & Skills,SEND (0-25),Third Party Payments,DSG - High Needs Block,Hadley Learning Community Academy,03/01/2023,"1,741.42"
Education & Skills,SEND (0-25),Third Party Payments,DSG - High Needs Block,Hadley Learning Community Academy,23/01/2023,"1,741.42"
Education & Skills,SEND (0-25),Third Party Payments,DSG - High Needs Block,Hadley Learning Community Academy,23/01/2023,"13,844.28"
Education & Skills,SEND (0-25),Third Party Payments,DSG - High Needs Block,MADELEY ACADEMY TRUST LTD,03/01/2023,"4,788.90"
Education & Skills,SEND (0-25),Third Party Payments,DSG - High Needs Block,MADELEY ACADEMY TRUST LTD,23/01/2023,"4,788.90"
Education & Skills,SEND (0-25),Third Party Payments,DSG - High Needs Block,NEWPORT GIRLS HIGH SCHOOL ACADEMY TRUST,03/01/2023,609.50
Education & Skills,SEND (0-25),Third Party Payments,DSG - High Needs Block,NEWPORT GIRLS HIGH SCHOOL ACADEMY TRUST,23/01/2023,609.50
Education & Skills,SEND (0-25),Third Party Payments,DSG - High Needs Block,Telford Park School,03/01/2023,"7,313.95"
Education & Skills,SEND (0-25),Third Party Payments,DSG - High Needs Block,Telford Park School,23/01/2023,"7,313.95"
Education & Skills,SEND (0-25),Third Party Payments,DSG - High Needs Block,The Telford Langley School ,03/01/2023,"5,833.75"
Education & Skills,SEND (0-25),Third Party Payments,DSG - High Needs Block,THOMAS TELFORD SCHOOL ,03/01/2023,348.28
Education & Skills,SEND (0-25),Third Party Payments,DSG - High Needs Block,THOMAS TELFORD SCHOOL ,23/01/2023,348.28
Education & Skills,SEND (0-25),Third Party Payments,DSG - High Needs Block,Queensway HLC,27/01/2023,"89,334.19"
Education & Skills,SEND (0-25),Third Party Payments,DSG - High Needs Block,Queensway HLC,10/01/2023,"112,545.52"
Education & Skills,SEND (0-25),Third Party Payments,DSG - High Needs Block,Queensway HLC,10/01/2023,"182,815.33"
Education & Skills,SEND (0-25),Third Party Payments,DSG - High Needs Block,Kickstart Academy,27/01/2023,"77,237.00"
Education & Skills,SEND (0-25),Supplies & Services,Respite Care,Physis Quantum Ltd,09/01/2023,"5,925.00"
Education & Skills,SEND (0-25),Third Party Payments,DSG - High Needs Block,Acorn Care & Education Ltd,16/01/2023,"4,883.00"
Education & Skills,SEND (0-25),Third Party Payments,DSG - High Needs Block,Acorn Care & Education Ltd,16/01/2023,"4,976.65"
Education & Skills,SEND (0-25),Third Party Payments,DSG - High Needs Block,Acorn Education & Care Ltd,23/01/2023,"35,517.70"
Education & Skills,SEND (0-25),Third Party Payments,DSG - High Needs Block,Bredon School Ltd,30/01/2023,"15,030.00"
Education & Skills,SEND (0-25),Third Party Payments,DSG - High Needs Block,Keys PCE Limited,09/01/2023,"2,550.00"
Education & Skills,SEND (0-25),Third Party Payments,DSG - High Needs Block,Keys PCE Limited,03/01/2023,"3,740.00"
Education & Skills,SEND (0-25),Third Party Payments,DSG - High Needs Block,Keys PCE Limited,30/01/2023,"17,405.00"
Education & Skills,SEND (0-25),Third Party Payments,DSG - High Needs Block,Keys PCE Limited,30/01/2023,"17,405.00"
